Body,Body Name,Date,Transaction Number,Invoice number,Amount,Supplier,Supplier Id,Expense Area,Expense Type,Expense Code
http://statistics.data.gov.uk/id/local-authority/47UD,Redditch Borough Council,06/12/2013,196253,UK-AR03-13-888,721.50,Orthofix Limited,1016,Surestart Project,Project Work,4733
http://statistics.data.gov.uk/id/local-authority/47UD,Redditch Borough Council,13/12/2013,195844,BE130,6974.78,B Evans & Son,103,Rbc Balance Sheet,Contract Payments,8131
http://statistics.data.gov.uk/id/local-authority/47UD,Redditch Borough Council,13/12/2013,195844,BE130,2075.62,B Evans & Son,103,Rbc Balance Sheet,Dlo,8130
http://statistics.data.gov.uk/id/local-authority/47UD,Redditch Borough Council,13/12/2013,195908,BE131,3801.30,B Evans & Son,103,Rbc Balance Sheet,Contract Payments,8131
http://statistics.data.gov.uk/id/local-authority/47UD,Redditch Borough Council,13/12/2013,196346,BE132,14603.39,B Evans & Son,103,Rbc Balance Sheet,Contract Payments,8131
http://statistics.data.gov.uk/id/local-authority/47UD,Redditch Borough Council,13/12/2013,196346,BE132,1027.54,B Evans & Son,103,Rbc Balance Sheet,Dlo,8130
http://statistics.data.gov.uk/id/local-authority/47UD,Redditch Borough Council,13/12/2013,196901,BE133,18892.50,B Evans & Son,103,Rbc Balance Sheet,Contract Payments,8131
http://statistics.data.gov.uk/id/local-authority/47UD,Redditch Borough Council,13/12/2013,196901,BE133,5848.72,B Evans & Son,103,Rbc Balance Sheet,Dlo,8130
http://statistics.data.gov.uk/id/local-authority/47UD,Redditch Borough Council,06/12/2013,196939,PI042142,3879.77,Npower Business And Social Housing Limited,1030,Housing Repairs Account,Contractors,5158
http://statistics.data.gov.uk/id/local-authority/47UD,Redditch Borough Council,20/12/2013,197840,P601 CERT7,121561.11,Npower Business And Social Housing Limited,1030,Rbc Balance Sheet,Dlo,8130
http://statistics.data.gov.uk/id/local-authority/47UD,Redditch Borough Council,13/12/2013,196754,9001376790,3991.73,Birmingham City Council,1035,Chief Executive,Franking Machine,4400
http://statistics.data.gov.uk/id/local-authority/47UD,Redditch Borough Council,06/12/2013,194506,0534595790,-4.98,Trade Uk 6331 6400 0675 6274,104,Housing Repairs Account,Materials,4170
http://statistics.data.gov.uk/id/local-authority/47UD,Redditch Borough Council,06/12/2013,194510,0534609031,24.98,Trade Uk 6331 6400 0675 6274,104,Housing Repairs Account,Materials,4170
http://statistics.data.gov.uk/id/local-authority/47UD,Redditch Borough Council,13/12/2013,196224,0538526130,74.71,Trade Uk 6331 6400 0675 6274,104,Executive Director Lec,Materials,4170
http://statistics.data.gov.uk/id/local-authority/47UD,Redditch Borough Council,13/12/2013,196225,0538526122,329.33,Trade Uk 6331 6400 0675 6274,104,Housing Repairs Account,Materials,4170
http://statistics.data.gov.uk/id/local-authority/47UD,Redditch Borough Council,13/12/2013,196226,0538342447,31.83,Trade Uk 6331 6400 0675 6274,104,Housing Repairs Account,Materials,4170
http://statistics.data.gov.uk/id/local-authority/47UD,Redditch Borough Council,13/12/2013,196227,0538342439,98.67,Trade Uk 6331 6400 0675 6274,104,Housing Repairs Account,Materials,4170
http://statistics.data.gov.uk/id/local-authority/47UD,Redditch Borough Council,13/12/2013,196228,0538342420,19.12,Trade Uk 6331 6400 0675 6274,104,Housing Repairs Account,Materials,4170
http://statistics.data.gov.uk/id/local-authority/47UD,Redditch Borough Council,13/12/2013,196229,0538166177,43.33,Trade Uk 6331 6400 0675 6274,104,Housing Repairs Account,Materials,4170
http://statistics.data.gov.uk/id/local-authority/47UD,Redditch Borough Council,13/12/2013,196231,0538166169,228.29,Trade Uk 6331 6400 0675 6274,104,Housing Repairs Account,Materials,4170
http://statistics.data.gov.uk/id/local-authority/47UD,Redditch Borough Council,13/12/2013,196722,0538685107,6.65,Trade Uk 6331 6400 0675 6274,104,Housing Repairs Account,Materials,4170
http://statistics.data.gov.uk/id/local-authority/47UD,Redditch Borough Council,13/12/2013,196724,0538685115,11.89,Trade Uk 6331 6400 0675 6274,104,Housing Repairs Account,Materials,4170
http://statistics.data.gov.uk/id/local-authority/47UD,Redditch Borough Council,13/12/2013,196726,0538685123,73.83,Trade Uk 6331 6400 0675 6274,104,Housing Repairs Account,Materials,4170
http://statistics.data.gov.uk/id/local-authority/47UD,Redditch Borough Council,13/12/2013,196730,0538685131,24.98,Trade Uk 6331 6400 0675 6274,104,Housing Repairs Account,Materials,4170
http://statistics.data.gov.uk/id/local-authority/47UD,Redditch Borough Council,13/12/2013,196732,0538897481,42.45,Trade Uk 6331 6400 0675 6274,104,Exec. Director Fin. & Resource,Materials,4170
http://statistics.data.gov.uk/id/local-authority/47UD,Redditch Borough Council,13/12/2013,196733,0538897503,12.48,Trade Uk 6331 6400 0675 6274,104,Executive Director Lec,Misc. Expenses,4730
http://statistics.data.gov.uk/id/local-authority/47UD,Redditch Borough Council,13/12/2013,196734,0538897511,21.64,Trade Uk 6331 6400 0675 6274,104,Housing Repairs Account,Materials,4170
http://statistics.data.gov.uk/id/local-authority/47UD,Redditch Borough Council,13/12/2013,196737,0539097845,104.98,Trade Uk 6331 6400 0675 6274,104,Housing Repairs Account,Materials,4170
http://statistics.data.gov.uk/id/local-authority/47UD,Redditch Borough Council,13/12/2013,196745,0539097853,9.96,Trade Uk 6331 6400 0675 6274,104,Executive Director Lec,Misc. Expenses,4730
http://statistics.data.gov.uk/id/local-authority/47UD,Redditch Borough Council,13/12/2013,196746,0539097861,7.16,Trade Uk 6331 6400 0675 6274,104,Housing Repairs Account,Materials,4170
http://statistics.data.gov.uk/id/local-authority/47UD,Redditch Borough Council,13/12/2013,196747,0539097888,40.83,Trade Uk 6331 6400 0675 6274,104,Housing Repairs Account,Materials,4170
http://statistics.data.gov.uk/id/local-authority/47UD,Redditch Borough Council,13/12/2013,196748,0539097896,17.23,Trade Uk 6331 6400 0675 6274,104,Housing Repairs Account,Materials,4170
http://statistics.data.gov.uk/id/local-authority/47UD,Redditch Borough Council,13/12/2013,196749,0539097918,11.16,Trade Uk 6331 6400 0675 6274,104,Housing Repairs Account,Materials,4170
http://statistics.data.gov.uk/id/local-authority/47UD,Redditch Borough Council,13/12/2013,196751,0539097926,11.16,Trade Uk 6331 6400 0675 6274,104,Housing Repairs Account,Materials,4170
http://statistics.data.gov.uk/id/local-authority/47UD,Redditch Borough Council,13/12/2013,196752,0539097934,64.64,Trade Uk 6331 6400 0675 6274,104,Housing Repairs Account,Materials,4170
http://statistics.data.gov.uk/id/local-authority/47UD,Redditch Borough Council,13/12/2013,196776,0539293717,24.98,Trade Uk 6331 6400 0675 6274,104,Housing Repairs Account,Materials,4170
http://statistics.data.gov.uk/id/local-authority/47UD,Redditch Borough Council,13/12/2013,196778,0539293733,6.63,Trade Uk 6331 6400 0675 6274,104,Housing Repairs Account,Materials,4170
http://statistics.data.gov.uk/id/local-authority/47UD,Redditch Borough Council,13/12/2013,196779,0539445703,14.15,Trade Uk 6331 6400 0675 6274,104,Housing Repairs Account,Materials,4170
http://statistics.data.gov.uk/id/local-authority/47UD,Redditch Borough Council,13/12/2013,196780,0539445711,16.00,Trade Uk 6331 6400 0675 6274,104,Housing Repairs Account,Materials,4170
http://statistics.data.gov.uk/id/local-authority/47UD,Redditch Borough Council,13/12/2013,196781,0539445738,41.64,Trade Uk 6331 6400 0675 6274,104,Housing Repairs Account,Materials,4170
http://statistics.data.gov.uk/id/local-authority/47UD,Redditch Borough Council,13/12/2013,196871,0540506877,49.98,Trade Uk 6331 6400 0675 6274,104,Housing Repairs Account,Materials,4170
http://statistics.data.gov.uk/id/local-authority/47UD,Redditch Borough Council,13/12/2013,196872,0540506885,6.65,Trade Uk 6331 6400 0675 6274,104,Housing Repairs Account,Materials,4170
http://statistics.data.gov.uk/id/local-authority/47UD,Redditch Borough Council,13/12/2013,196873,0539861979,23.65,Trade Uk 6331 6400 0675 6274,104,Housing Repairs Account,Materials,4170
http://statistics.data.gov.uk/id/local-authority/47UD,Redditch Borough Council,13/12/2013,196874,0539861987,19.92,Trade Uk 6331 6400 0675 6274,104,Executive Director Lec,Materials,4170
http://statistics.data.gov.uk/id/local-authority/47UD,Redditch Borough Council,13/12/2013,196875,0539861995,58.60,Trade Uk 6331 6400 0675 6274,104,Housing Repairs Account,Materials,4170
http://statistics.data.gov.uk/id/local-authority/47UD,Redditch Borough Council,13/12/2013,196876,0540284793,8.32,Trade Uk 6331 6400 0675 6274,104,Housing Repairs Account,Materials,4170
http://statistics.data.gov.uk/id/local-authority/47UD,Redditch Borough Council,13/12/2013,196877,0540506869,23.65,Trade Uk 6331 6400 0675 6274,104,Housing Repairs Account,Materials,4170
http://statistics.data.gov.uk/id/local-authority/47UD,Redditch Borough Council,06/12/2013,196312,JCT071,90.00,Jestaminute Community Theatre C.I.C.,1040,Executive Director Lec,Agency Staff,3020
http://statistics.data.gov.uk/id/local-authority/47UD,Redditch Borough Council,06/12/2013,196313,JCT 070,497.00,Jestaminute Community Theatre C.I.C.,1040,Executive Director Lec,Agency Staff,3020
http://statistics.data.gov.uk/id/local-authority/47UD,Redditch Borough Council,13/12/2013,197426,JCT073,1600.00,Jestaminute Community Theatre C.I.C.,1040,Executive Director Lec,Project Work,4733
http://statistics.data.gov.uk/id/local-authority/47UD,Redditch Borough Council,20/12/2013,197824,JCT075,70.00,Jestaminute Community Theatre C.I.C.,1040,Executive Director Lec,Agency Staff,3020
http://statistics.data.gov.uk/id/local-authority/47UD,Redditch Borough Council,20/12/2013,197825,JCT074,50.00,Jestaminute Community Theatre C.I.C.,1040,Executive Director Lec,Agency Staff,3020
http://statistics.data.gov.uk/id/local-authority/47UD,Redditch Borough Council,20/12/2013,197825,JCT074,270.00,Jestaminute Community Theatre C.I.C.,1040,Executive Director Lec,Agency Staff,3020
http://statistics.data.gov.uk/id/local-authority/47UD,Redditch Borough Council,20/12/2013,197826,JCT072,500.00,Jestaminute Community Theatre C.I.C.,1040,Executive Director Lec,Project Work,4733
http://statistics.data.gov.uk/id/local-authority/47UD,Redditch Borough Council,06/12/2013,196928,D21518,40.00,B & Q Plc,105,Housing Repairs Account,Contractors,5158
http://statistics.data.gov.uk/id/local-authority/47UD,Redditch Borough Council,13/12/2013,197416,D21700,695.00,B & Q Plc,105,Housing Repairs Account,Contractors,5158
http://statistics.data.gov.uk/id/local-authority/47UD,Redditch Borough Council,20/12/2013,197858,D21904,530.00,B & Q Plc,105,Housing Repairs Account,Contractors,5158
http://statistics.data.gov.uk/id/local-authority/47UD,Redditch Borough Council,13/12/2013,196264,833283,7.21,Dulux Decorator Centres,1082,Housing Repairs Account,Materials,4170
http://statistics.data.gov.uk/id/local-authority/47UD,Redditch Borough Council,13/12/2013,196265,843892,60.72,Dulux Decorator Centres,1082,Housing Repairs Account,Materials,4170
http://statistics.data.gov.uk/id/local-authority/47UD,Redditch Borough Council,13/12/2013,196266,843893,728.01,Dulux Decorator Centres,1082,Crossgate Stocks,Received Not Invoiced,2096
http://statistics.data.gov.uk/id/local-authority/47UD,Redditch Borough Council,13/12/2013,196704,875225,4.34,Dulux Decorator Centres,1082,Housing Repairs Account,Materials,4170
http://statistics.data.gov.uk/id/local-authority/47UD,Redditch Borough Council,13/12/2013,196820,900853,10.63,Dulux Decorator Centres,1082,Housing Repairs Account,Materials,4170
http://statistics.data.gov.uk/id/local-authority/47UD,Redditch Borough Council,13/12/2013,196821,900854,28.39,Dulux Decorator Centres,1082,Housing Repairs Account,Materials,4170
http://statistics.data.gov.uk/id/local-authority/47UD,Redditch Borough Council,13/12/2013,196822,906574,64.55,Dulux Decorator Centres,1082,Housing Repairs Account,Materials,4170
http://statistics.data.gov.uk/id/local-authority/47UD,Redditch Borough Council,13/12/2013,196825,911652,67.56,Dulux Decorator Centres,1082,Executive Director Lec,Materials,4170
http://statistics.data.gov.uk/id/local-authority/47UD,Redditch Borough Council,20/12/2013,196824,911651,635.48,Dulux Decorator Centres,1082,Crossgate Stocks,Received Not Invoiced,2096
http://statistics.data.gov.uk/id/local-authority/47UD,Redditch Borough Council,20/12/2013,196826,923164,16.25,Dulux Decorator Centres,1082,Housing Repairs Account,Materials,4170
http://statistics.data.gov.uk/id/local-authority/47UD,Redditch Borough Council,20/12/2013,196828,923165,305.44,Dulux Decorator Centres,1082,Crossgate Stocks,Received Not Invoiced,2096
http://statistics.data.gov.uk/id/local-authority/47UD,Redditch Borough Council,20/12/2013,197161,928057,83.85,Dulux Decorator Centres,1082,Housing Repairs Account,Materials,4170
http://statistics.data.gov.uk/id/local-authority/47UD,Redditch Borough Council,20/12/2013,197163,933017,5.54,Dulux Decorator Centres,1082,Housing Repairs Account,Materials,4170
http://statistics.data.gov.uk/id/local-authority/47UD,Redditch Borough Council,18/12/2013,197798,DEDS DEC 2013,1004.29,Child Support Agency Client Fund A/C,1105,Payroll Control,Payments Over -Current Year,2921
http://statistics.data.gov.uk/id/local-authority/47UD,Redditch Borough Council,06/12/2013,196009,8160166,42190.19,Bromsgrove District Council,1114,Chief Executive,B'Grove Shared Services Cost,5012
http://statistics.data.gov.uk/id/local-authority/47UD,Redditch Borough Council,13/12/2013,197442,DEC 13,50330.00,Bromsgrove District Council,1114,Exec. Director Prrh,Wett Shared Service Cost,5013
http://statistics.data.gov.uk/id/local-authority/47UD,Redditch Borough Council,20/12/2013,196621,8161333,450.00,Bromsgrove District Council,1114,Executive Director Lec,Project Work,4733
http://statistics.data.gov.uk/id/local-authority/47UD,Redditch Borough Council,13/12/2013,196658,ARCMIN/99040292,1588.25,Advanced Business Solutions,114,Chief Executive,Software Maintenance,4503
http://statistics.data.gov.uk/id/local-authority/47UD,Redditch Borough Council,20/12/2013,197228,ARBK/99027602,950.00,Advanced Business Solutions,114,Exec. Director Fin. & Resource,Consultants Fees,4351
http://statistics.data.gov.uk/id/local-authority/47UD,Redditch Borough Council,06/12/2013,195783,5547,2470.75,Cava Security Services Ltd,115,Executive Director Lec,Professional Fees,4352
http://statistics.data.gov.uk/id/local-authority/47UD,Redditch Borough Council,06/12/2013,195784,5546,93.50,Cava Security Services Ltd,115,Executive Director Lec,Operation Equip- Hire & Rental,4151
http://statistics.data.gov.uk/id/local-authority/47UD,Redditch Borough Council,06/12/2013,195784,5546,93.50,Cava Security Services Ltd,115,Executive Director Lec,Operation Equip- Hire & Rental,4151
http://statistics.data.gov.uk/id/local-authority/47UD,Redditch Borough Council,06/12/2013,195790,5545,3959.00,Cava Security Services Ltd,115,Executive Director Lec,Operation Equip- Hire & Rental,4151
http://statistics.data.gov.uk/id/local-authority/47UD,Redditch Borough Council,06/12/2013,195790,5545,441.00,Cava Security Services Ltd,115,Executive Director Lec,Security Costs,3500
http://statistics.data.gov.uk/id/local-authority/47UD,Redditch Borough Council,13/12/2013,196750,PSI962540,778.00,Mila Hardware,1159,Crossgate Stocks,Received Not Invoiced,2096
http://statistics.data.gov.uk/id/local-authority/47UD,Redditch Borough Council,13/12/2013,196689,19/4342945,567.40,N & C Building Products Ltd,1160,Crossgate Stocks,Received Not Invoiced,2096
http://statistics.data.gov.uk/id/local-authority/47UD,Redditch Borough Council,13/12/2013,196863,19/4348879,586.95,N & C Building Products Ltd,1160,Crossgate Stocks,Received Not Invoiced,2096
http://statistics.data.gov.uk/id/local-authority/47UD,Redditch Borough Council,06/12/2013,195414,178825,432.86,Tallis Amos Group,1187,Crossgate Stocks,Received Not Invoiced,2096
http://statistics.data.gov.uk/id/local-authority/47UD,Redditch Borough Council,06/12/2013,195414,178825,1481.70,Tallis Amos Group,1187,Executive Director Lec,Materials (Veh),3700
http://statistics.data.gov.uk/id/local-authority/47UD,Redditch Borough Council,13/12/2013,196794,179496,180.96,Tallis Amos Group,1187,Executive Director Lec,Materials (Veh),3700
http://statistics.data.gov.uk/id/local-authority/47UD,Redditch Borough Council,06/12/2013,196232,C/BC120513,1925.00,Civica Uk Limited,1233,Exec. Director Fin. & Resource,Audit Fees,4359
http://statistics.data.gov.uk/id/local-authority/47UD,Redditch Borough Council,06/12/2013,196234,C/BC120514,720.00,Civica Uk Limited,1233,Exec. Director Fin. & Resource,Agency Staff,3020
http://statistics.data.gov.uk/id/local-authority/47UD,Redditch Borough Council,06/12/2013,196373,X/BC23289,570.50,Civica Uk Limited,1233,Exec. Director Fin. & Resource,Audit Fees,4359
http://statistics.data.gov.uk/id/local-authority/47UD,Redditch Borough Council,06/12/2013,196386,C/BC120614,720.00,Civica Uk Limited,1233,Exec. Director Fin. & Resource,Agency Staff,3020
http://statistics.data.gov.uk/id/local-authority/47UD,Redditch Borough Council,13/12/2013,197276,C/BC120876,720.00,Civica Uk Limited,1233,Exec. Director Fin. & Resource,Agency Staff,3020
http://statistics.data.gov.uk/id/local-authority/47UD,Redditch Borough Council,20/12/2013,197848,3608,1983.46,Sutcliffe Play South West,1234,Executive Director Lec,Recreational Equip -Reps/Maint,4102
http://statistics.data.gov.uk/id/local-authority/47UD,Redditch Borough Council,18/12/2013,197805,MONTH 8 2013,255314.65,Cumbernauld Rms (Accounts/Payments),1488,Payroll Control,Payments Over -Current Year,2921
http://statistics.data.gov.uk/id/local-authority/47UD,Redditch Borough Council,18/12/2013,197805,MONTH 8 2013,753.70,Cumbernauld Rms (Accounts/Payments),1488,Rbc Balance Sheet,Sub Contractors Paid Over,2012
http://statistics.data.gov.uk/id/local-authority/47UD,Redditch Borough Council,18/12/2013,197800,DEDS DEC 13,956.83,Birmingham Hospital Saturday Fund,1508,Payroll Control,Payments Over -Current Year,2921
http://statistics.data.gov.uk/id/local-authority/47UD,Redditch Borough Council,18/12/2013,197801,DEDS DEC 13,1932.75,Unison West Midlands Regional Centre,1510,Payroll Control,Payments Over -Current Year,2921
http://statistics.data.gov.uk/id/local-authority/47UD,Redditch Borough Council,06/12/2013,196965,133287,103.55,Bristow  & Sutor,157,Vat Control Account,Vat Input Tax Adjustments,2994
http://statistics.data.gov.uk/id/local-authority/47UD,Redditch Borough Council,06/12/2013,196966,132994,90.33,Bristow  & Sutor,157,Vat Control Account,Vat Input Tax Adjustments,2994
http://statistics.data.gov.uk/id/local-authority/47UD,Redditch Borough Council,06/12/2013,196967,133242,3.01,Bristow  & Sutor,157,Vat Control Account,Vat Input Tax Adjustments,2994
http://statistics.data.gov.uk/id/local-authority/47UD,Redditch Borough Council,06/12/2013,196968,133067,386.93,Bristow  & Sutor,157,Vat Control Account,Vat Input Tax Adjustments,2994
http://statistics.data.gov.uk/id/local-authority/47UD,Redditch Borough Council,06/12/2013,196969,132860,392.28,Bristow  & Sutor,157,Vat Control Account,Vat Input Tax Adjustments,2994
http://statistics.data.gov.uk/id/local-authority/47UD,Redditch Borough Council,06/12/2013,196970,132823,197.20,Bristow  & Sutor,157,Vat Control Account,Vat Input Tax Adjustments,2994
http://statistics.data.gov.uk/id/local-authority/47UD,Redditch Borough Council,13/12/2013,197366,132970,126.78,Bristow  & Sutor,157,Exec. Director Fin. & Resource,Agency Fee,4362
http://statistics.data.gov.uk/id/local-authority/47UD,Redditch Borough Council,13/12/2013,197367,132969,58.17,Bristow  & Sutor,157,Exec. Director Fin. & Resource,Agency Fee,4362
http://statistics.data.gov.uk/id/local-authority/47UD,Redditch Borough Council,13/12/2013,197368,132966,93.41,Bristow  & Sutor,157,Exec. Director Fin. & Resource,Agency Fee,4362
http://statistics.data.gov.uk/id/local-authority/47UD,Redditch Borough Council,13/12/2013,197369,132968,79.75,Bristow  & Sutor,157,Exec. Director Fin. & Resource,Agency Fee,4362
http://statistics.data.gov.uk/id/local-authority/47UD,Redditch Borough Council,13/12/2013,197370,132965,55.85,Bristow  & Sutor,157,Exec. Director Fin. & Resource,Agency Fee,4362
http://statistics.data.gov.uk/id/local-authority/47UD,Redditch Borough Council,13/12/2013,197371,132967,7.35,Bristow  & Sutor,157,Exec. Director Fin. & Resource,Agency Fee,4362
http://statistics.data.gov.uk/id/local-authority/47UD,Redditch Borough Council,13/12/2013,197378,132581,68.24,Bristow  & Sutor,157,Exec. Director Fin. & Resource,Agency Fee,4362
http://statistics.data.gov.uk/id/local-authority/47UD,Redditch Borough Council,13/12/2013,197379,132584,40.09,Bristow  & Sutor,157,Exec. Director Fin. & Resource,Agency Fee,4362
http://statistics.data.gov.uk/id/local-authority/47UD,Redditch Borough Council,13/12/2013,197380,132582,7.35,Bristow  & Sutor,157,Exec. Director Fin. & Resource,Agency Fee,4362
http://statistics.data.gov.uk/id/local-authority/47UD,Redditch Borough Council,13/12/2013,197381,132583,69.25,Bristow  & Sutor,157,Exec. Director Fin. & Resource,Agency Fee,4362
http://statistics.data.gov.uk/id/local-authority/47UD,Redditch Borough Council,13/12/2013,197382,132585,91.28,Bristow  & Sutor,157,Exec. Director Fin. & Resource,Agency Fee,4362
http://statistics.data.gov.uk/id/local-authority/47UD,Redditch Borough Council,13/12/2013,197383,132580,40.78,Bristow  & Sutor,157,Exec. Director Fin. & Resource,Agency Fee,4362
http://statistics.data.gov.uk/id/local-authority/47UD,Redditch Borough Council,13/12/2013,197430,133453,238.00,Bristow  & Sutor,157,Vat Control Account,Vat Input Tax Adjustments,2994
http://statistics.data.gov.uk/id/local-authority/47UD,Redditch Borough Council,13/12/2013,197431,133557,319.12,Bristow  & Sutor,157,Vat Control Account,Vat Input Tax Adjustments,2994
http://statistics.data.gov.uk/id/local-authority/47UD,Redditch Borough Council,20/12/2013,197959,133490,127.41,Bristow  & Sutor,157,Vat Control Account,Vat Input Tax Adjustments,2994
http://statistics.data.gov.uk/id/local-authority/47UD,Redditch Borough Council,20/12/2013,197960,133414,8.21,Bristow  & Sutor,157,Vat Control Account,Vat Input Tax Adjustments,2994
http://statistics.data.gov.uk/id/local-authority/47UD,Redditch Borough Council,13/12/2013,196625,4085,2600.00,Pryor & Rickett Silviculture,1579,Executive Director Lec,Other Works,5161
http://statistics.data.gov.uk/id/local-authority/47UD,Redditch Borough Council,20/12/2013,198009,CONTRIBUTION,10000.00,Redditch Nightstop,1583,Exec. Director Prrh,Redditch Night Stop,4702
http://statistics.data.gov.uk/id/local-authority/47UD,Redditch Borough Council,06/12/2013,196936,01989,2092.26,Sweeney Entertainments,1707,Executive Director Lec,Professional Fees,4352
http://statistics.data.gov.uk/id/local-authority/47UD,Redditch Borough Council,06/12/2013,196407,W0813,4431.06,Peter J Ward,1805,Executive Director Lec,Materials,4170
http://statistics.data.gov.uk/id/local-authority/47UD,Redditch Borough Council,20/12/2013,197201,4680,2730.00,Elc Contractors Ltd,184,Executive Director Lec,Contractors,5158
http://statistics.data.gov.uk/id/local-authority/47UD,Redditch Borough Council,06/12/2013,195862,RED/310719,20.00,Grafton Merchanting Gb Ltd,188,Executive Director Lec,Operational Equip- Purchase,4150
http://statistics.data.gov.uk/id/local-authority/47UD,Redditch Borough Council,13/12/2013,196222,RED/308671,392.00,Grafton Merchanting Gb Ltd,188,Housing Repairs Account,Materials,4170
http://statistics.data.gov.uk/id/local-authority/47UD,Redditch Borough Council,13/12/2013,196244,RED/310960,3.98,Grafton Merchanting Gb Ltd,188,Housing Repairs Account,Materials,4170
http://statistics.data.gov.uk/id/local-authority/47UD,Redditch Borough Council,13/12/2013,196245,RED/310932,11.51,Grafton Merchanting Gb Ltd,188,Housing Repairs Account,Materials,4170
http://statistics.data.gov.uk/id/local-authority/47UD,Redditch Borough Council,13/12/2013,196247,RED/310930,62.73,Grafton Merchanting Gb Ltd,188,Housing Repairs Account,Materials,4170
http://statistics.data.gov.uk/id/local-authority/47UD,Redditch Borough Council,13/12/2013,196250,RED/310829,264.16,Grafton Merchanting Gb Ltd,188,Crossgate Stocks,Received Not Invoiced,2096
http://statistics.data.gov.uk/id/local-authority/47UD,Redditch Borough Council,13/12/2013,196252,RED/311111,30.10,Grafton Merchanting Gb Ltd,188,Housing Repairs Account,Materials,4170
http://statistics.data.gov.uk/id/local-authority/47UD,Redditch Borough Council,13/12/2013,196254,RED/311060,244.01,Grafton Merchanting Gb Ltd,188,Housing Repairs Account,Materials,4170
http://statistics.data.gov.uk/id/local-authority/47UD,Redditch Borough Council,13/12/2013,196388,RED/311438,16.00,Grafton Merchanting Gb Ltd,188,Housing Repairs Account,Materials,4170
http://statistics.data.gov.uk/id/local-authority/47UD,Redditch Borough Council,13/12/2013,196605,RED/311519,152.01,Grafton Merchanting Gb Ltd,188,Crossgate Stocks,Received Not Invoiced,2096
http://statistics.data.gov.uk/id/local-authority/47UD,Redditch Borough Council,13/12/2013,196606,RED/311145,44.00,Grafton Merchanting Gb Ltd,188,Crossgate Stocks,Received Not Invoiced,2096
http://statistics.data.gov.uk/id/local-authority/47UD,Redditch Borough Council,13/12/2013,196607,RED/311720,347.76,Grafton Merchanting Gb Ltd,188,Housing Repairs Account,Materials,4170
http://statistics.data.gov.uk/id/local-authority/47UD,Redditch Borough Council,13/12/2013,196608,RED/311686,25.00,Grafton Merchanting Gb Ltd,188,Housing Repairs Account,Materials,4170
http://statistics.data.gov.uk/id/local-authority/47UD,Redditch Borough Council,13/12/2013,196609,RED/311685,14.00,Grafton Merchanting Gb Ltd,188,Housing Repairs Account,Materials,4170
http://statistics.data.gov.uk/id/local-authority/47UD,Redditch Borough Council,13/12/2013,196610,RED/311671,80.30,Grafton Merchanting Gb Ltd,188,Housing Repairs Account,Materials,4170
http://statistics.data.gov.uk/id/local-authority/47UD,Redditch Borough Council,13/12/2013,196612,RED311795,34.15,Grafton Merchanting Gb Ltd,188,Housing Repairs Account,Materials,4170
http://statistics.data.gov.uk/id/local-authority/47UD,Redditch Borough Council,13/12/2013,196629,RED/310503,66.48,Grafton Merchanting Gb Ltd,188,Crossgate Stocks,Received Not Invoiced,2096
http://statistics.data.gov.uk/id/local-authority/47UD,Redditch Borough Council,13/12/2013,196631,RED/311551,21.90,Grafton Merchanting Gb Ltd,188,Housing Repairs Account,Materials,4170
http://statistics.data.gov.uk/id/local-authority/47UD,Redditch Borough Council,13/12/2013,196725,RED/312061,16.58,Grafton Merchanting Gb Ltd,188,Housing Repairs Account,Materials,4170
http://statistics.data.gov.uk/id/local-authority/47UD,Redditch Borough Council,13/12/2013,196727,RED/312090,12.79,Grafton Merchanting Gb Ltd,188,Housing Repairs Account,Materials,4170
http://statistics.data.gov.uk/id/local-authority/47UD,Redditch Borough Council,13/12/2013,196760,RED/311916,38.00,Grafton Merchanting Gb Ltd,188,Executive Director Lec,Misc. Expenses,4730
http://statistics.data.gov.uk/id/local-authority/47UD,Redditch Borough Council,13/12/2013,196761,RED/311793,192.12,Grafton Merchanting Gb Ltd,188,Crossgate Stocks,Received Not Invoiced,2096
http://statistics.data.gov.uk/id/local-authority/47UD,Redditch Borough Council,13/12/2013,196788,RED/312172,64.75,Grafton Merchanting Gb Ltd,188,Housing Repairs Account,Materials,4170
http://statistics.data.gov.uk/id/local-authority/47UD,Redditch Borough Council,13/12/2013,196789,RED/312170,45.90,Grafton Merchanting Gb Ltd,188,Housing Repairs Account,Materials,4170
http://statistics.data.gov.uk/id/local-authority/47UD,Redditch Borough Council,20/12/2013,197188,RED/312324,125.36,Grafton Merchanting Gb Ltd,188,Crossgate Stocks,Received Not Invoiced,2096
http://statistics.data.gov.uk/id/local-authority/47UD,Redditch Borough Council,20/12/2013,197189,RED/312231,264.80,Grafton Merchanting Gb Ltd,188,Crossgate Stocks,Received Not Invoiced,2096
http://statistics.data.gov.uk/id/local-authority/47UD,Redditch Borough Council,20/12/2013,197190,RED/311150,203.44,Grafton Merchanting Gb Ltd,188,Housing Repairs Account,Materials,4170
http://statistics.data.gov.uk/id/local-authority/47UD,Redditch Borough Council,06/12/2013,190104,2202035947,420.00,Worcestershire County Council,195,Executive Director Lec,Operational Equip- Purchase,4150
http://statistics.data.gov.uk/id/local-authority/47UD,Redditch Borough Council,06/12/2013,194945,2203015771,37000.00,Worcestershire County Council,195,Rbc Balance Sheet,Contract Payments,8131
http://statistics.data.gov.uk/id/local-authority/47UD,Redditch Borough Council,06/12/2013,196218,2206044687,100.00,Worcestershire County Council,195,Executive Director Lec,Professional Fees,4352
http://statistics.data.gov.uk/id/local-authority/47UD,Redditch Borough Council,13/12/2013,194598,1234,144.00,E & J Contractors Ltd,201,Housing Repairs Account,Contractors,5158
http://statistics.data.gov.uk/id/local-authority/47UD,Redditch Borough Council,13/12/2013,194599,1230,207.00,E & J Contractors Ltd,201,Housing Repairs Account,Drainage,3201
http://statistics.data.gov.uk/id/local-authority/47UD,Redditch Borough Council,13/12/2013,194600,1232,230.40,E & J Contractors Ltd,201,Housing Repairs Account,Contractors,5158
http://statistics.data.gov.uk/id/local-authority/47UD,Redditch Borough Council,13/12/2013,194601,1231,172.80,E & J Contractors Ltd,201,Housing Repairs Account,Drainage,3201
http://statistics.data.gov.uk/id/local-authority/47UD,Redditch Borough Council,13/12/2013,195353,1241,124.20,E & J Contractors Ltd,201,Housing Repairs Account,Drainage,3201
http://statistics.data.gov.uk/id/local-authority/47UD,Redditch Borough Council,13/12/2013,195354,1242,124.20,E & J Contractors Ltd,201,Housing Repairs Account,Drainage,3201
http://statistics.data.gov.uk/id/local-authority/47UD,Redditch Borough Council,13/12/2013,195355,1243,124.20,E & J Contractors Ltd,201,Housing Repairs Account,Drainage,3201
http://statistics.data.gov.uk/id/local-authority/47UD,Redditch Borough Council,20/12/2013,197141,1260,900.00,E & J Contractors Ltd,201,Housing Repairs Account,Drainage,3201
http://statistics.data.gov.uk/id/local-authority/47UD,Redditch Borough Council,20/12/2013,197142,1259,450.00,E & J Contractors Ltd,201,Housing Repairs Account,Drainage,3201
http://statistics.data.gov.uk/id/local-authority/47UD,Redditch Borough Council,13/12/2013,195795,5548969,1260.00,Michael Page International,2099,Housing Repairs Account,Agency Staff,3020
http://statistics.data.gov.uk/id/local-authority/47UD,Redditch Borough Council,13/12/2013,195827,5547483,1295.00,Michael Page International,2099,Housing Repairs Account,Agency Staff,3020
http://statistics.data.gov.uk/id/local-authority/47UD,Redditch Borough Council,13/12/2013,195828,5547490,1295.00,Michael Page International,2099,Housing Repairs Account,Agency Staff,3020
http://statistics.data.gov.uk/id/local-authority/47UD,Redditch Borough Council,13/12/2013,195829,5547482,1295.00,Michael Page International,2099,Housing Repairs Account,Agency Staff,3020
http://statistics.data.gov.uk/id/local-authority/47UD,Redditch Borough Council,13/12/2013,196238,5552448,1295.00,Michael Page International,2099,Housing Repairs Account,Agency Staff,3020
http://statistics.data.gov.uk/id/local-authority/47UD,Redditch Borough Council,13/12/2013,196687,5556739,1260.00,Michael Page International,2099,Housing Repairs Account,Agency Staff,3020
http://statistics.data.gov.uk/id/local-authority/47UD,Redditch Borough Council,20/12/2013,197958,1800000002,15280.00,Zurich Municipal,2100,Exec. Director Fin. & Resource,Misc. Insurance,4734
http://statistics.data.gov.uk/id/local-authority/47UD,Redditch Borough Council,20/12/2013,197844,NOV13E,1276.50,Dr M J Chalkley,215,Executive Director Lec,Medical Fees,3040
http://statistics.data.gov.uk/id/local-authority/47UD,Redditch Borough Council,20/12/2013,197845,NOV13T,81.90,Dr M J Chalkley,215,Executive Director Lec,Car Mileage,3911
http://statistics.data.gov.uk/id/local-authority/47UD,Redditch Borough Council,06/12/2013,196985,HB REF 22259,100.00,H M Courts & Tribunals Service,2160,Exec. Director Fin. & Resource,Legal Fees,4350
http://statistics.data.gov.uk/id/local-authority/47UD,Redditch Borough Council,06/12/2013,196986,HB REF 17006,100.00,H M Courts & Tribunals Service,2160,Exec. Director Fin. & Resource,Legal Fees,4350
http://statistics.data.gov.uk/id/local-authority/47UD,Redditch Borough Council,06/12/2013,196987,HB REF 15596,100.00,H M Courts & Tribunals Service,2160,Exec. Director Fin. & Resource,Legal Fees,4350
http://statistics.data.gov.uk/id/local-authority/47UD,Redditch Borough Council,06/12/2013,196988,HB REF 10808,100.00,H M Courts & Tribunals Service,2160,Exec. Director Fin. & Resource,Legal Fees,4350
http://statistics.data.gov.uk/id/local-authority/47UD,Redditch Borough Council,06/12/2013,196989,HB REF 14384,100.00,H M Courts & Tribunals Service,2160,Exec. Director Fin. & Resource,Legal Fees,4350
http://statistics.data.gov.uk/id/local-authority/47UD,Redditch Borough Council,06/12/2013,196990,HB REF 11921,100.00,H M Courts & Tribunals Service,2160,Exec. Director Fin. & Resource,Legal Fees,4350
http://statistics.data.gov.uk/id/local-authority/47UD,Redditch Borough Council,06/12/2013,196991,HB REF 17777,100.00,H M Courts & Tribunals Service,2160,Exec. Director Fin. & Resource,Legal Fees,4350
http://statistics.data.gov.uk/id/local-authority/47UD,Redditch Borough Council,06/12/2013,196992,HB REF 6744,100.00,H M Courts & Tribunals Service,2160,Exec. Director Fin. & Resource,Legal Fees,4350
http://statistics.data.gov.uk/id/local-authority/47UD,Redditch Borough Council,06/12/2013,196993,HB REF 9164,100.00,H M Courts & Tribunals Service,2160,Exec. Director Fin. & Resource,Legal Fees,4350
http://statistics.data.gov.uk/id/local-authority/47UD,Redditch Borough Council,06/12/2013,196994,HB REF 11758,40.00,H M Courts & Tribunals Service,2160,Exec. Director Fin. & Resource,Legal Fees,4350
http://statistics.data.gov.uk/id/local-authority/47UD,Redditch Borough Council,13/12/2013,197444,HB REF 10399,40.00,H M Courts & Tribunals Service,2160,Exec. Director Fin. & Resource,Legal Fees,4350
http://statistics.data.gov.uk/id/local-authority/47UD,Redditch Borough Council,06/12/2013,196267,2012162,638.00,Woods Farm,2209,Exec. Director Prrh,Project Work,4733
http://statistics.data.gov.uk/id/local-authority/47UD,Redditch Borough Council,13/12/2013,197386,HJG/79188 5284,900.00,Berrymans Lace Mawer,2340,Internal Ins A/C,Third Party Claims,2941
http://statistics.data.gov.uk/id/local-authority/47UD,Redditch Borough Council,13/12/2013,197397,HJG/79188.5,333.50,Berrymans Lace Mawer,2340,Internal Ins A/C,Third Party Claims,2941
http://statistics.data.gov.uk/id/local-authority/47UD,Redditch Borough Council,13/12/2013,197398,PSO/79188.5183,195.08,Berrymans Lace Mawer,2340,Vat Control Account,Vat Input Tax Adjustments,2994
http://statistics.data.gov.uk/id/local-authority/47UD,Redditch Borough Council,06/12/2013,195830,0677,230.00,Abbeyclean,2367,Surestart Project,Contract Cleaning,3600
http://statistics.data.gov.uk/id/local-authority/47UD,Redditch Borough Council,06/12/2013,195830,0677,515.00,Abbeyclean,2367,Surestart Project,Contract Cleaning,3600
http://statistics.data.gov.uk/id/local-authority/47UD,Redditch Borough Council,06/12/2013,195830,0677,230.00,Abbeyclean,2367,Surestart Project,Contract Cleaning,3600
http://statistics.data.gov.uk/id/local-authority/47UD,Redditch Borough Council,20/12/2013,197232,101096620131101,986.30,Martin Brokers (Uk) Ltd,2375,Notional Deprn And Financing,Commission - Short Term Borrow,5801
http://statistics.data.gov.uk/id/local-authority/47UD,Redditch Borough Council,06/12/2013,195380,306783740,556.88,Eurocell Building Plastics Ltd,24,Crossgate Stocks,Received Not Invoiced,2096
http://statistics.data.gov.uk/id/local-authority/47UD,Redditch Borough Council,06/12/2013,195869,306803036,9.25,Eurocell Building Plastics Ltd,24,Housing Repairs Account,Materials,4170
http://statistics.data.gov.uk/id/local-authority/47UD,Redditch Borough Council,06/12/2013,195912,306806750,25.81,Eurocell Building Plastics Ltd,24,Housing Repairs Account,Materials,4170
http://statistics.data.gov.uk/id/local-authority/47UD,Redditch Borough Council,13/12/2013,196377,306834390,1982.66,Eurocell Building Plastics Ltd,24,Crossgate Stocks,Received Not Invoiced,2096
http://statistics.data.gov.uk/id/local-authority/47UD,Redditch Borough Council,13/12/2013,196753,306846326,1448.50,Eurocell Building Plastics Ltd,24,Crossgate Stocks,Received Not Invoiced,2096
http://statistics.data.gov.uk/id/local-authority/47UD,Redditch Borough Council,13/12/2013,196398,1150814,801.40,Mcd Kidderminster,255,Housing Repairs Account,Materials,4170
http://statistics.data.gov.uk/id/local-authority/47UD,Redditch Borough Council,06/12/2013,195150,174473,1793.54,Malcolm Dyson Stationers Ltd,262,Executive Director Lec,Office Equipment Purchase,4000
http://statistics.data.gov.uk/id/local-authority/47UD,Redditch Borough Council,06/12/2013,195153,174467,99.80,Malcolm Dyson Stationers Ltd,262,Surestart Project,Computer Consumables,4500
http://statistics.data.gov.uk/id/local-authority/47UD,Redditch Borough Council,13/12/2013,196647,174667,20.45,Malcolm Dyson Stationers Ltd,262,Surestart Project,Office Consumables,4304
http://statistics.data.gov.uk/id/local-authority/47UD,Redditch Borough Council,13/12/2013,196657,174810,142.40,Malcolm Dyson Stationers Ltd,262,Surestart Project,Computer Consumables,4500
http://statistics.data.gov.uk/id/local-authority/47UD,Redditch Borough Council,13/12/2013,196665,174811,187.00,Malcolm Dyson Stationers Ltd,262,Surestart Project,Computer Consumables,4500
http://statistics.data.gov.uk/id/local-authority/47UD,Redditch Borough Council,13/12/2013,196667,174812,119.40,Malcolm Dyson Stationers Ltd,262,Surestart Project,Computer Consumables,4500
http://statistics.data.gov.uk/id/local-authority/47UD,Redditch Borough Council,13/12/2013,195773,162760,292.49,Inn Express,263,Executive Director Lec,Catering Provisions(Vat Exempt,4200
http://statistics.data.gov.uk/id/local-authority/47UD,Redditch Borough Council,13/12/2013,195775,161856,217.45,Inn Express,263,Executive Director Lec,Catering Provisions(Vat Exempt,4200
http://statistics.data.gov.uk/id/local-authority/47UD,Redditch Borough Council,20/12/2013,197261,165159,133.76,Inn Express,263,Executive Director Lec,Catering Provisions(Vat Exempt,4200
http://statistics.data.gov.uk/id/local-authority/47UD,Redditch Borough Council,13/12/2013,197399,3RD QTR 2013/14,2000.00,The Ditch Youth Project,2633,Executive Director Lec,Grants To Voluntary Bodies,4661
http://statistics.data.gov.uk/id/local-authority/47UD,Redditch Borough Council,06/12/2013,196342,7366,7552.16,M & D Carpentry & Bldng Contractor Ltd,265,Rbc Balance Sheet,Contract Payments,8131
http://statistics.data.gov.uk/id/local-authority/47UD,Redditch Borough Council,13/12/2013,196344,7367,1914.74,M & D Carpentry & Bldng Contractor Ltd,265,Housing Repairs Account,Contractors,5158
http://statistics.data.gov.uk/id/local-authority/47UD,Redditch Borough Council,13/12/2013,196344,7367,20987.39,M & D Carpentry & Bldng Contractor Ltd,265,Rbc Balance Sheet,Contract Payments,8131
http://statistics.data.gov.uk/id/local-authority/47UD,Redditch Borough Council,06/12/2013,194729,INV00152,10504.72,Rsa Academy Arrow Vale,2678,Executive Director Lec,Dual Use Contributions,5003
http://statistics.data.gov.uk/id/local-authority/47UD,Redditch Borough Council,13/12/2013,196941,08356,840.00,Recycling Organic Matter,2701,Executive Director Lec,Trade Waste Disposal,5000
http://statistics.data.gov.uk/id/local-authority/47UD,Redditch Borough Council,20/12/2013,197841,T10958,553.12,Theam Security,2937,Executive Director Lec,Project Work,4733
http://statistics.data.gov.uk/id/local-authority/47UD,Redditch Borough Council,20/12/2013,197843,T10957,425.44,Theam Security,2937,Executive Director Lec,Project Work,4733
http://statistics.data.gov.uk/id/local-authority/47UD,Redditch Borough Council,06/12/2013,196362,29892,16054.42,Robert Bruce Construction  Limited,2950,Rbc Balance Sheet,Contract Payments,8131
http://statistics.data.gov.uk/id/local-authority/47UD,Redditch Borough Council,13/12/2013,196349,29893,90.28,Robert Bruce Construction  Limited,2950,Rbc Balance Sheet,Contract Payments,8131
http://statistics.data.gov.uk/id/local-authority/47UD,Redditch Borough Council,06/12/2013,196948,61861,500.00,Smartwater Technology Ltd,2957,Executive Director Lec,Project Work,4733
http://statistics.data.gov.uk/id/local-authority/47UD,Redditch Borough Council,13/12/2013,196715,26433,532.50,B&S Chains Midland Limited Playground Spares,2995,Executive Director Lec,Recreational Equip -Reps/Maint,4102
http://statistics.data.gov.uk/id/local-authority/47UD,Redditch Borough Council,13/12/2013,196797,26517,574.05,B&S Chains Midland Limited Playground Spares,2995,Executive Director Lec,Operational Equip- Purchase,4150
http://statistics.data.gov.uk/id/local-authority/47UD,Redditch Borough Council,20/12/2013,196717,26489,387.05,B&S Chains Midland Limited Playground Spares,2995,Executive Director Lec,Recreational Equip -Reps/Maint,4102
http://statistics.data.gov.uk/id/local-authority/47UD,Redditch Borough Council,06/12/2013,195926,0705/162143,38.13,Jewson Ltd,300,Housing Repairs Account,Materials,4170
http://statistics.data.gov.uk/id/local-authority/47UD,Redditch Borough Council,06/12/2013,195927,0705/0162014,3.19,Jewson Ltd,300,Housing Repairs Account,Materials,4170
http://statistics.data.gov.uk/id/local-authority/47UD,Redditch Borough Council,06/12/2013,195928,0705/0161992,177.39,Jewson Ltd,300,Housing Repairs Account,Materials,4170
http://statistics.data.gov.uk/id/local-authority/47UD,Redditch Borough Council,13/12/2013,196851,0705/0162469,8.99,Jewson Ltd,300,Housing Repairs Account,Materials,4170
http://statistics.data.gov.uk/id/local-authority/47UD,Redditch Borough Council,13/12/2013,196852,0705/0162470,37.77,Jewson Ltd,300,Housing Repairs Account,Materials,4170
http://statistics.data.gov.uk/id/local-authority/47UD,Redditch Borough Council,13/12/2013,196853,0705/0162415,119.96,Jewson Ltd,300,Housing Repairs Account,Materials,4170
http://statistics.data.gov.uk/id/local-authority/47UD,Redditch Borough Council,13/12/2013,196854,0705/0162417,20.97,Jewson Ltd,300,Housing Repairs Account,Materials,4170
http://statistics.data.gov.uk/id/local-authority/47UD,Redditch Borough Council,13/12/2013,196855,0705/0162440,13.01,Jewson Ltd,300,Housing Repairs Account,Materials,4170
http://statistics.data.gov.uk/id/local-authority/47UD,Redditch Borough Council,20/12/2013,196705,0705/0162284,47.15,Jewson Ltd,300,Housing Repairs Account,Materials,4170
http://statistics.data.gov.uk/id/local-authority/47UD,Redditch Borough Council,20/12/2013,196850,0705/0162454,237.60,Jewson Ltd,300,Crossgate Stocks,Received Not Invoiced,2096
http://statistics.data.gov.uk/id/local-authority/47UD,Redditch Borough Council,20/12/2013,197164,0705/0162596,51.66,Jewson Ltd,300,Housing Repairs Account,Materials,4170
http://statistics.data.gov.uk/id/local-authority/47UD,Redditch Borough Council,20/12/2013,197165,0705/0162617,69.29,Jewson Ltd,300,Housing Repairs Account,Materials,4170
http://statistics.data.gov.uk/id/local-authority/47UD,Redditch Borough Council,20/12/2013,197166,0705/0162619,98.28,Jewson Ltd,300,Housing Repairs Account,Materials,4170
http://statistics.data.gov.uk/id/local-authority/47UD,Redditch Borough Council,13/12/2013,196317,247896,198.00,Jack Hobbs Plumbing & Heating Suppl,306,Crossgate Stocks,Received Not Invoiced,2096
http://statistics.data.gov.uk/id/local-authority/47UD,Redditch Borough Council,20/12/2013,195313,247044,2945.89,Jack Hobbs Plumbing & Heating Suppl,306,Crossgate Stocks,Received Not Invoiced,2096
http://statistics.data.gov.uk/id/local-authority/47UD,Redditch Borough Council,20/12/2013,197153,248703,190.00,Jack Hobbs Plumbing & Heating Suppl,306,Housing Repairs Account,Materials,4170
http://statistics.data.gov.uk/id/local-authority/47UD,Redditch Borough Council,06/12/2013,193914,681980,289.95,J P Lennard Ltd,307,Executive Director Lec,Operational Equip- Purchase,4150
http://statistics.data.gov.uk/id/local-authority/47UD,Redditch Borough Council,06/12/2013,194520,683333,252.15,J P Lennard Ltd,307,Executive Director Lec,Operational Equip- Purchase,4150
http://statistics.data.gov.uk/id/local-authority/47UD,Redditch Borough Council,06/12/2013,196974,WHISTLE DOWN,7204.75,Redditch Operatic Society,3074,Executive Director Lec,Other Fees & Charges(Vatable),6302
http://statistics.data.gov.uk/id/local-authority/47UD,Redditch Borough Council,13/12/2013,197405,88558320,-0.03,Office Depot (Uk) Ltd,3098,Exec. Director Fin. & Resource,Office Consumables,4304
http://statistics.data.gov.uk/id/local-authority/47UD,Redditch Borough Council,13/12/2013,197406,81137894,353.88,Office Depot (Uk) Ltd,3098,Chief Executive,Central Printing,4301
http://statistics.data.gov.uk/id/local-authority/47UD,Redditch Borough Council,13/12/2013,197406,81137894,54.55,Office Depot (Uk) Ltd,3098,Chief Executive,Office Consumables,4304
http://statistics.data.gov.uk/id/local-authority/47UD,Redditch Borough Council,13/12/2013,197406,81137894,16.28,Office Depot (Uk) Ltd,3098,Chief Executive,Office Consumables,4304
http://statistics.data.gov.uk/id/local-authority/47UD,Redditch Borough Council,13/12/2013,197406,81137894,30.33,Office Depot (Uk) Ltd,3098,Exec. Director Fin. & Resource,Office Consumables,4304
http://statistics.data.gov.uk/id/local-authority/47UD,Redditch Borough Council,13/12/2013,197406,81137894,35.70,Office Depot (Uk) Ltd,3098,Exec. Director Fin. & Resource,Office Consumables,4304
http://statistics.data.gov.uk/id/local-authority/47UD,Redditch Borough Council,13/12/2013,197406,81137894,18.49,Office Depot (Uk) Ltd,3098,Exec. Director Prrh,Office Consumables,4304
http://statistics.data.gov.uk/id/local-authority/47UD,Redditch Borough Council,13/12/2013,197406,81137894,181.82,Office Depot (Uk) Ltd,3098,Exec. Director Prrh,Office Consumables,4304
http://statistics.data.gov.uk/id/local-authority/47UD,Redditch Borough Council,13/12/2013,197406,81137894,22.20,Office Depot (Uk) Ltd,3098,Executive Director Lec,Catering Provisions(Vat Exempt,4200
http://statistics.data.gov.uk/id/local-authority/47UD,Redditch Borough Council,13/12/2013,197406,81137894,79.26,Office Depot (Uk) Ltd,3098,Executive Director Lec,Computer Consumables,4500
http://statistics.data.gov.uk/id/local-authority/47UD,Redditch Borough Council,13/12/2013,197406,81137894,200.67,Office Depot (Uk) Ltd,3098,Executive Director Lec,Computer Consumables,4500
http://statistics.data.gov.uk/id/local-authority/47UD,Redditch Borough Council,13/12/2013,197406,81137894,87.52,Office Depot (Uk) Ltd,3098,Executive Director Lec,Office Consumables,4304
http://statistics.data.gov.uk/id/local-authority/47UD,Redditch Borough Council,13/12/2013,197406,81137894,21.00,Office Depot (Uk) Ltd,3098,Executive Director Lec,Office Consumables,4304
http://statistics.data.gov.uk/id/local-authority/47UD,Redditch Borough Council,13/12/2013,197406,81137894,88.44,Office Depot (Uk) Ltd,3098,Executive Director Lec,Office Consumables,4304
http://statistics.data.gov.uk/id/local-authority/47UD,Redditch Borough Council,13/12/2013,197406,81137894,45.26,Office Depot (Uk) Ltd,3098,Executive Director Lec,Office Consumables,4304
http://statistics.data.gov.uk/id/local-authority/47UD,Redditch Borough Council,13/12/2013,197406,81137894,3.62,Office Depot (Uk) Ltd,3098,Executive Director Lec,Office Consumables,4304
http://statistics.data.gov.uk/id/local-authority/47UD,Redditch Borough Council,13/12/2013,197406,81137894,2.93,Office Depot (Uk) Ltd,3098,Executive Director Lec,Office Consumables,4304
http://statistics.data.gov.uk/id/local-authority/47UD,Redditch Borough Council,13/12/2013,197406,81137894,224.80,Office Depot (Uk) Ltd,3098,Housing Revenue Account,Office Consumables,4304
http://statistics.data.gov.uk/id/local-authority/47UD,Redditch Borough Council,13/12/2013,197406,81137894,26.44,Office Depot (Uk) Ltd,3098,Surestart Project,Office Consumables,4304
http://statistics.data.gov.uk/id/local-authority/47UD,Redditch Borough Council,13/12/2013,196642,431085,624.96,Instarmac Group Plc,315,Crossgate Stocks,Received Not Invoiced,2096
http://statistics.data.gov.uk/id/local-authority/47UD,Redditch Borough Council,13/12/2013,196868,431379,114.00,Instarmac Group Plc,315,Crossgate Stocks,Received Not Invoiced,2096
http://statistics.data.gov.uk/id/local-authority/47UD,Redditch Borough Council,13/12/2013,194352,1800005364,6750.00,Halfords,3168,Payroll Control,Payments Over -Current Year,2921
http://statistics.data.gov.uk/id/local-authority/47UD,Redditch Borough Council,06/12/2013,196954,6223,-98.00,B & G Comedy Limited,3170,Executive Director Lec,Other Receipts (Non Vat),6209
http://statistics.data.gov.uk/id/local-authority/47UD,Redditch Borough Council,06/12/2013,196954,6223,2632.94,B & G Comedy Limited,3170,Executive Director Lec,Professional Fees,4352
http://statistics.data.gov.uk/id/local-authority/47UD,Redditch Borough Council,20/12/2013,197205,385417,351.62,Lumsden Stuart Ltd For Power Tools Uk,3171,Executive Director Lec,Misc. Expenses,4730
http://statistics.data.gov.uk/id/local-authority/47UD,Redditch Borough Council,20/12/2013,197206,385794,66.15,Lumsden Stuart Ltd For Power Tools Uk,3171,Housing Repairs Account,Operational Equip- Purchase,4150
http://statistics.data.gov.uk/id/local-authority/47UD,Redditch Borough Council,20/12/2013,197209,385971,124.78,Lumsden Stuart Ltd For Power Tools Uk,3171,Housing Repairs Account,Materials,4170
http://statistics.data.gov.uk/id/local-authority/47UD,Redditch Borough Council,20/12/2013,197212,387325,97.50,Lumsden Stuart Ltd For Power Tools Uk,3171,Housing Repairs Account,Materials,4170
http://statistics.data.gov.uk/id/local-authority/47UD,Redditch Borough Council,20/12/2013,197214,386200,44.08,Lumsden Stuart Ltd For Power Tools Uk,3171,Housing Repairs Account,Materials,4170
http://statistics.data.gov.uk/id/local-authority/47UD,Redditch Borough Council,20/12/2013,197198,43929,34390.00,Spa Gas Ltd,3207,Rbc Balance Sheet,Dlo,8130
http://statistics.data.gov.uk/id/local-authority/47UD,Redditch Borough Council,06/12/2013,196918,7787,240.00,Shaw Loos Ltd,335,Executive Director Lec,Operation Equip- Hire & Rental,4151
http://statistics.data.gov.uk/id/local-authority/47UD,Redditch Borough Council,06/12/2013,196919,7788,520.00,Shaw Loos Ltd,335,Executive Director Lec,Operation Equip- Hire & Rental,4151
http://statistics.data.gov.uk/id/local-authority/47UD,Redditch Borough Council,06/12/2013,195468,292686,586.10,Scarab Sweepers Limited,342,Executive Director Lec,Materials (Veh),3700
http://statistics.data.gov.uk/id/local-authority/47UD,Redditch Borough Council,13/12/2013,196270,293169,1721.95,Scarab Sweepers Limited,342,Executive Director Lec,Materials (Veh),3700
http://statistics.data.gov.uk/id/local-authority/47UD,Redditch Borough Council,13/12/2013,196839,293894,934.41,Scarab Sweepers Limited,342,Executive Director Lec,Materials (Veh),3700
http://statistics.data.gov.uk/id/local-authority/47UD,Redditch Borough Council,13/12/2013,196842,294144,107.05,Scarab Sweepers Limited,342,Executive Director Lec,Materials (Veh),3700
http://statistics.data.gov.uk/id/local-authority/47UD,Redditch Borough Council,13/12/2013,196843,294145,151.38,Scarab Sweepers Limited,342,Executive Director Lec,Materials (Veh),3700
http://statistics.data.gov.uk/id/local-authority/47UD,Redditch Borough Council,13/12/2013,196845,294152,1275.36,Scarab Sweepers Limited,342,Executive Director Lec,Materials (Veh),3700
http://statistics.data.gov.uk/id/local-authority/47UD,Redditch Borough Council,13/12/2013,196215,0044/13,650.00,Historical Promotions & Events Management,3648,Executive Director Lec,Project Work,4733
http://statistics.data.gov.uk/id/local-authority/47UD,Redditch Borough Council,06/12/2013,196242,0000267827,111.72,Bullivant Media Ltd,3652,Executive Director Lec,Advertising,4735
http://statistics.data.gov.uk/id/local-authority/47UD,Redditch Borough Council,06/12/2013,196243,0000266599,111.72,Bullivant Media Ltd,3652,Executive Director Lec,Advertising,4735
http://statistics.data.gov.uk/id/local-authority/47UD,Redditch Borough Council,13/12/2013,196615,0000268876,112.00,Bullivant Media Ltd,3652,Executive Director Lec,Advertising,4735
http://statistics.data.gov.uk/id/local-authority/47UD,Redditch Borough Council,13/12/2013,196616,0000268899,150.00,Bullivant Media Ltd,3652,Executive Director Lec,Advertising,4735
http://statistics.data.gov.uk/id/local-authority/47UD,Redditch Borough Council,20/12/2013,197274,0000270181,170.00,Bullivant Media Ltd,3652,Exec. Director Prrh,Advertising,4735
http://statistics.data.gov.uk/id/local-authority/47UD,Redditch Borough Council,20/12/2013,196269,53382,711.25,Force 3 Security Limited,3658,Exec. Director Fin. & Resource,Security Costs,3500
http://statistics.data.gov.uk/id/local-authority/47UD,Redditch Borough Council,13/12/2013,196237,0201/00126413,515.55,Harlow Timber,3667,Housing Repairs Account,Materials,4170
http://statistics.data.gov.uk/id/local-authority/47UD,Redditch Borough Council,13/12/2013,195877,1000/829,391.00,R S T S Landscaping Limited,370,Executive Director Lec,Operational Equip- Purchase,4150
http://statistics.data.gov.uk/id/local-authority/47UD,Redditch Borough Council,20/12/2013,197739,1000/903,378.41,R S T S Landscaping Limited,370,Rbc Balance Sheet,Contract Payments,8131
http://statistics.data.gov.uk/id/local-authority/47UD,Redditch Borough Council,06/12/2013,196956,272124,729.72,R D Rogers Butchers,373,Housing Revenue Account,Catering Provisions(Vat Exempt,4200
http://statistics.data.gov.uk/id/local-authority/47UD,Redditch Borough Council,13/12/2013,196261,77085,17.25,R & H Electric (Redditch) Ltd,374,Exec. Director Fin. & Resource,Materials,4170
http://statistics.data.gov.uk/id/local-authority/47UD,Redditch Borough Council,13/12/2013,196263,77088,46.50,R & H Electric (Redditch) Ltd,374,Crossgate Stocks,Received Not Invoiced,2096
http://statistics.data.gov.uk/id/local-authority/47UD,Redditch Borough Council,13/12/2013,196325,131109,166.16,R & H Electric (Redditch) Ltd,374,Exec. Director Fin. & Resource,Materials,4170
http://statistics.data.gov.uk/id/local-authority/47UD,Redditch Borough Council,13/12/2013,196326,131140,51.00,R & H Electric (Redditch) Ltd,374,Crossgate Stocks,Received Not Invoiced,2096
http://statistics.data.gov.uk/id/local-authority/47UD,Redditch Borough Council,13/12/2013,196827,131181,140.99,R & H Electric (Redditch) Ltd,374,Exec. Director Fin. & Resource,Materials,4170
http://statistics.data.gov.uk/id/local-authority/47UD,Redditch Borough Council,13/12/2013,196830,131211,45.40,R & H Electric (Redditch) Ltd,374,Exec. Director Fin. & Resource,Materials,4170
http://statistics.data.gov.uk/id/local-authority/47UD,Redditch Borough Council,13/12/2013,196831,131214,73.50,R & H Electric (Redditch) Ltd,374,Exec. Director Fin. & Resource,Materials,4170
http://statistics.data.gov.uk/id/local-authority/47UD,Redditch Borough Council,13/12/2013,196832,77150,4.86,R & H Electric (Redditch) Ltd,374,Exec. Director Fin. & Resource,Materials,4170
http://statistics.data.gov.uk/id/local-authority/47UD,Redditch Borough Council,20/12/2013,196829,131217,429.38,R & H Electric (Redditch) Ltd,374,Crossgate Stocks,Received Not Invoiced,2096
http://statistics.data.gov.uk/id/local-authority/47UD,Redditch Borough Council,06/12/2013,195913,9206,47.00,Practical Care Products Ltd,391,Housing Repairs Account,Materials,4170
http://statistics.data.gov.uk/id/local-authority/47UD,Redditch Borough Council,13/12/2013,196236,9214,617.00,Practical Care Products Ltd,391,Housing Repairs Account,Materials,4170
http://statistics.data.gov.uk/id/local-authority/47UD,Redditch Borough Council,13/12/2013,196785,9248,533.50,Practical Care Products Ltd,391,Housing Repairs Account,Materials,4170
http://statistics.data.gov.uk/id/local-authority/47UD,Redditch Borough Council,20/12/2013,197194,9266,325.00,Practical Care Products Ltd,391,Housing Repairs Account,Materials,4170
http://statistics.data.gov.uk/id/local-authority/47UD,Redditch Borough Council,20/12/2013,196381,3115,106.14,Portway Motor Services Ltd,392,Executive Director Lec,Contractors,5158
http://statistics.data.gov.uk/id/local-authority/47UD,Redditch Borough Council,13/12/2013,196260,4168 058175,50.06,Bss Group Plc (Pts),395,Housing Repairs Account,Materials,4170
http://statistics.data.gov.uk/id/local-authority/47UD,Redditch Borough Council,13/12/2013,196652,4168 058885,12.90,Bss Group Plc (Pts),395,Housing Repairs Account,Materials,4170
http://statistics.data.gov.uk/id/local-authority/47UD,Redditch Borough Council,13/12/2013,196654,4168 058854,123.98,Bss Group Plc (Pts),395,Crossgate Stocks,Received Not Invoiced,2096
http://statistics.data.gov.uk/id/local-authority/47UD,Redditch Borough Council,13/12/2013,196692,4168 058695,468.08,Bss Group Plc (Pts),395,Crossgate Stocks,Received Not Invoiced,2096
http://statistics.data.gov.uk/id/local-authority/47UD,Redditch Borough Council,13/12/2013,197318,717743,17.00,Wicksteed Leisure Ltd,415,Executive Director Lec,Recreational Equip -Reps/Maint,4102
http://statistics.data.gov.uk/id/local-authority/47UD,Redditch Borough Council,13/12/2013,197318,717743,17.00,Wicksteed Leisure Ltd,415,Executive Director Lec,Recreational Equip -Reps/Maint,4102
http://statistics.data.gov.uk/id/local-authority/47UD,Redditch Borough Council,13/12/2013,197318,717743,42.00,Wicksteed Leisure Ltd,415,Executive Director Lec,Recreational Equip -Reps/Maint,4102
http://statistics.data.gov.uk/id/local-authority/47UD,Redditch Borough Council,13/12/2013,197318,717743,192.00,Wicksteed Leisure Ltd,415,Executive Director Lec,Recreational Equip -Reps/Maint,4102
http://statistics.data.gov.uk/id/local-authority/47UD,Redditch Borough Council,13/12/2013,197318,717743,42.00,Wicksteed Leisure Ltd,415,Executive Director Lec,Recreational Equip -Reps/Maint,4102
http://statistics.data.gov.uk/id/local-authority/47UD,Redditch Borough Council,13/12/2013,197319,717744,168.00,Wicksteed Leisure Ltd,415,Executive Director Lec,Operational Equip- Purchase,4150
http://statistics.data.gov.uk/id/local-authority/47UD,Redditch Borough Council,13/12/2013,197319,717744,400.00,Wicksteed Leisure Ltd,415,Executive Director Lec,Operational Equip- Purchase,4150
http://statistics.data.gov.uk/id/local-authority/47UD,Redditch Borough Council,13/12/2013,197319,717744,432.00,Wicksteed Leisure Ltd,415,Executive Director Lec,Operational Equip- Purchase,4150
http://statistics.data.gov.uk/id/local-authority/47UD,Redditch Borough Council,13/12/2013,197319,717744,168.00,Wicksteed Leisure Ltd,415,Executive Director Lec,Operational Equip- Purchase,4150
http://statistics.data.gov.uk/id/local-authority/47UD,Redditch Borough Council,13/12/2013,197320,717742,193.63,Wicksteed Leisure Ltd,415,Executive Director Lec,Operational Equip- Purchase,4150
http://statistics.data.gov.uk/id/local-authority/47UD,Redditch Borough Council,13/12/2013,197320,717742,800.00,Wicksteed Leisure Ltd,415,Executive Director Lec,Operational Equip- Purchase,4150
http://statistics.data.gov.uk/id/local-authority/47UD,Redditch Borough Council,06/12/2013,195929,10368,695.00,Pfb Self Drive,441,Executive Director Lec,Contract Hire,3850
http://statistics.data.gov.uk/id/local-authority/47UD,Redditch Borough Council,06/12/2013,195930,10335,125.00,Pfb Self Drive,441,Executive Director Lec,Misc. Expenses,4730
http://statistics.data.gov.uk/id/local-authority/47UD,Redditch Borough Council,13/12/2013,196323,10441,125.00,Pfb Self Drive,441,Executive Director Lec,Misc. Expenses,4730
http://statistics.data.gov.uk/id/local-authority/47UD,Redditch Borough Council,13/12/2013,196324,10419,245.00,Pfb Self Drive,441,Executive Director Lec,Misc. Expenses,4730
http://statistics.data.gov.uk/id/local-authority/47UD,Redditch Borough Council,13/12/2013,196675,10471,695.00,Pfb Self Drive,441,Executive Director Lec,Contract Hire,3850
http://statistics.data.gov.uk/id/local-authority/47UD,Redditch Borough Council,13/12/2013,196833,10536,245.00,Pfb Self Drive,441,Executive Director Lec,Misc. Expenses,4730
http://statistics.data.gov.uk/id/local-authority/47UD,Redditch Borough Council,13/12/2013,196834,10543,125.00,Pfb Self Drive,441,Executive Director Lec,Misc. Expenses,4730
http://statistics.data.gov.uk/id/local-authority/47UD,Redditch Borough Council,13/12/2013,196837,10589,695.00,Pfb Self Drive,441,Executive Director Lec,Contract Hire,3850
http://statistics.data.gov.uk/id/local-authority/47UD,Redditch Borough Council,13/12/2013,197401,10635,1711.67,Pfb Self Drive,441,Executive Director Lec,Contract Hire,3850
http://statistics.data.gov.uk/id/local-authority/47UD,Redditch Borough Council,13/12/2013,197402,10630,245.00,Pfb Self Drive,441,Executive Director Lec,Misc. Expenses,4730
http://statistics.data.gov.uk/id/local-authority/47UD,Redditch Borough Council,06/12/2013,196930,21660563,205.00,3663 First For Foodservice,4449,Executive Director Lec,Catering Provisions(Vat Exempt,4200
http://statistics.data.gov.uk/id/local-authority/47UD,Redditch Borough Council,06/12/2013,196930,21660563,170.00,3663 First For Foodservice,4449,Executive Director Lec,Catering Provisions(Vat Exempt,4200
http://statistics.data.gov.uk/id/local-authority/47UD,Redditch Borough Council,06/12/2013,196930,21660563,13.98,3663 First For Foodservice,4449,Executive Director Lec,Catering Provisions(Vat Exempt,4200
http://statistics.data.gov.uk/id/local-authority/47UD,Redditch Borough Council,06/12/2013,196930,21660563,33.00,3663 First For Foodservice,4449,Executive Director Lec,Catering Provisions(Vat Exempt,4200
http://statistics.data.gov.uk/id/local-authority/47UD,Redditch Borough Council,06/12/2013,196930,21660563,34.95,3663 First For Foodservice,4449,Executive Director Lec,Catering Provisions(Vat Exempt,4200
http://statistics.data.gov.uk/id/local-authority/47UD,Redditch Borough Council,06/12/2013,196930,21660563,34.95,3663 First For Foodservice,4449,Executive Director Lec,Catering Provisions(Vat Exempt,4200
http://statistics.data.gov.uk/id/local-authority/47UD,Redditch Borough Council,06/12/2013,196930,21660563,34.95,3663 First For Foodservice,4449,Executive Director Lec,Catering Provisions(Vat Exempt,4200
http://statistics.data.gov.uk/id/local-authority/47UD,Redditch Borough Council,06/12/2013,196930,21660563,425.10,3663 First For Foodservice,4449,Executive Director Lec,Catering Provisions(Vat Exempt,4200
http://statistics.data.gov.uk/id/local-authority/47UD,Redditch Borough Council,06/12/2013,196930,21660563,310.00,3663 First For Foodservice,4449,Executive Director Lec,Catering Provisions(Vat Exempt,4200
http://statistics.data.gov.uk/id/local-authority/47UD,Redditch Borough Council,13/12/2013,197304,13189274-004,3159.00,Birmingham City University,450,Chief Executive,Training,3043
http://statistics.data.gov.uk/id/local-authority/47UD,Redditch Borough Council,13/12/2013,196684,007249,55.56,Ultrasol,453,Executive Director Lec,Materials,4170
http://statistics.data.gov.uk/id/local-authority/47UD,Redditch Borough Council,13/12/2013,196685,007250,464.00,Ultrasol,453,Executive Director Lec,Materials,4170
http://statistics.data.gov.uk/id/local-authority/47UD,Redditch Borough Council,13/12/2013,196688,007275,211.00,Ultrasol,453,Crossgate Stocks,Received Not Invoiced,2096
http://statistics.data.gov.uk/id/local-authority/47UD,Redditch Borough Council,13/12/2013,196690,007274,176.00,Ultrasol,453,Executive Director Lec,Operational Equip- Purchase,4150
http://statistics.data.gov.uk/id/local-authority/47UD,Redditch Borough Council,13/12/2013,196691,007255,165.76,Ultrasol,453,Crossgate Stocks,Received Not Invoiced,2096
http://statistics.data.gov.uk/id/local-authority/47UD,Redditch Borough Council,13/12/2013,197428,MRI2357632,240.62,Lex Autolease Ltd,4578,Exec. Director Fin. & Resource,Operating Leases,3851
http://statistics.data.gov.uk/id/local-authority/47UD,Redditch Borough Council,13/12/2013,197428,MRI2357632,384.81,Lex Autolease Ltd,4578,Executive Director Lec,Operating Leases,3851
http://statistics.data.gov.uk/id/local-authority/47UD,Redditch Borough Council,13/12/2013,197428,MRI2357632,384.81,Lex Autolease Ltd,4578,Executive Director Lec,Operating Leases,3851
http://statistics.data.gov.uk/id/local-authority/47UD,Redditch Borough Council,13/12/2013,197428,MRI2357632,384.81,Lex Autolease Ltd,4578,Executive Director Lec,Operating Leases,3851
http://statistics.data.gov.uk/id/local-authority/47UD,Redditch Borough Council,13/12/2013,197428,MRI2357632,384.81,Lex Autolease Ltd,4578,Executive Director Lec,Operating Leases,3851
http://statistics.data.gov.uk/id/local-authority/47UD,Redditch Borough Council,13/12/2013,197428,MRI2357632,382.34,Lex Autolease Ltd,4578,Executive Director Lec,Operating Leases,3851
http://statistics.data.gov.uk/id/local-authority/47UD,Redditch Borough Council,13/12/2013,197428,MRI2357632,382.34,Lex Autolease Ltd,4578,Executive Director Lec,Operating Leases,3851
http://statistics.data.gov.uk/id/local-authority/47UD,Redditch Borough Council,13/12/2013,197428,MRI2357632,382.34,Lex Autolease Ltd,4578,Executive Director Lec,Operating Leases,3851
http://statistics.data.gov.uk/id/local-authority/47UD,Redditch Borough Council,13/12/2013,197428,MRI2357632,382.34,Lex Autolease Ltd,4578,Executive Director Lec,Operating Leases,3851
http://statistics.data.gov.uk/id/local-authority/47UD,Redditch Borough Council,13/12/2013,197428,MRI2357632,237.63,Lex Autolease Ltd,4578,Executive Director Lec,Operating Leases,3851
http://statistics.data.gov.uk/id/local-authority/47UD,Redditch Borough Council,13/12/2013,197428,MRI2357632,384.81,Lex Autolease Ltd,4578,Executive Director Lec,Operating Leases,3851
http://statistics.data.gov.uk/id/local-authority/47UD,Redditch Borough Council,13/12/2013,197428,MRI2357632,270.88,Lex Autolease Ltd,4578,Executive Director Lec,Operating Leases,3851
http://statistics.data.gov.uk/id/local-authority/47UD,Redditch Borough Council,13/12/2013,197428,MRI2357632,319.19,Lex Autolease Ltd,4578,Executive Director Lec,Operating Leases,3851
http://statistics.data.gov.uk/id/local-authority/47UD,Redditch Borough Council,13/12/2013,197428,MRI2357632,249.29,Lex Autolease Ltd,4578,Executive Director Lec,Operating Leases,3851
http://statistics.data.gov.uk/id/local-authority/47UD,Redditch Borough Council,13/12/2013,197428,MRI2357632,243.09,Lex Autolease Ltd,4578,Executive Director Lec,Operating Leases,3851
http://statistics.data.gov.uk/id/local-authority/47UD,Redditch Borough Council,13/12/2013,197428,MRI2357632,489.02,Lex Autolease Ltd,4578,Executive Director Lec,Operating Leases,3851
http://statistics.data.gov.uk/id/local-authority/47UD,Redditch Borough Council,13/12/2013,197428,MRI2357632,261.00,Lex Autolease Ltd,4578,Executive Director Lec,Operating Leases,3851
http://statistics.data.gov.uk/id/local-authority/47UD,Redditch Borough Council,13/12/2013,197428,MRI2357632,170.45,Lex Autolease Ltd,4578,Executive Director Lec,Operating Leases,3851
http://statistics.data.gov.uk/id/local-authority/47UD,Redditch Borough Council,13/12/2013,197428,MRI2357632,170.45,Lex Autolease Ltd,4578,Executive Director Lec,Operating Leases,3851
http://statistics.data.gov.uk/id/local-authority/47UD,Redditch Borough Council,13/12/2013,197428,MRI2357632,170.45,Lex Autolease Ltd,4578,Executive Director Lec,Operating Leases,3851
http://statistics.data.gov.uk/id/local-authority/47UD,Redditch Borough Council,13/12/2013,197428,MRI2357632,353.00,Lex Autolease Ltd,4578,Executive Director Lec,Operating Leases,3851
http://statistics.data.gov.uk/id/local-authority/47UD,Redditch Borough Council,13/12/2013,197428,MRI2357632,353.00,Lex Autolease Ltd,4578,Executive Director Lec,Operating Leases,3851
http://statistics.data.gov.uk/id/local-authority/47UD,Redditch Borough Council,13/12/2013,197428,MRI2357632,240.62,Lex Autolease Ltd,4578,Executive Director Lec,Operating Leases,3851
http://statistics.data.gov.uk/id/local-authority/47UD,Redditch Borough Council,13/12/2013,197428,MRI2357632,353.00,Lex Autolease Ltd,4578,Executive Director Lec,Operating Leases,3851
http://statistics.data.gov.uk/id/local-authority/47UD,Redditch Borough Council,13/12/2013,197428,MRI2357632,353.00,Lex Autolease Ltd,4578,Executive Director Lec,Operating Leases,3851
http://statistics.data.gov.uk/id/local-authority/47UD,Redditch Borough Council,13/12/2013,197428,MRI2357632,353.00,Lex Autolease Ltd,4578,Executive Director Lec,Operating Leases,3851
http://statistics.data.gov.uk/id/local-authority/47UD,Redditch Borough Council,13/12/2013,197428,MRI2357632,461.92,Lex Autolease Ltd,4578,Executive Director Lec,Operating Leases,3851
http://statistics.data.gov.uk/id/local-authority/47UD,Redditch Borough Council,13/12/2013,197428,MRI2357632,461.92,Lex Autolease Ltd,4578,Executive Director Lec,Operating Leases,3851
http://statistics.data.gov.uk/id/local-authority/47UD,Redditch Borough Council,13/12/2013,197428,MRI2357632,461.92,Lex Autolease Ltd,4578,Executive Director Lec,Operating Leases,3851
http://statistics.data.gov.uk/id/local-authority/47UD,Redditch Borough Council,13/12/2013,197428,MRI2357632,461.92,Lex Autolease Ltd,4578,Executive Director Lec,Operating Leases,3851
http://statistics.data.gov.uk/id/local-authority/47UD,Redditch Borough Council,13/12/2013,197428,MRI2357632,309.38,Lex Autolease Ltd,4578,Housing Repairs Account,Operating Leases,3851
http://statistics.data.gov.uk/id/local-authority/47UD,Redditch Borough Council,13/12/2013,197428,MRI2357632,309.38,Lex Autolease Ltd,4578,Housing Repairs Account,Operating Leases,3851
http://statistics.data.gov.uk/id/local-authority/47UD,Redditch Borough Council,13/12/2013,197428,MRI2357632,309.38,Lex Autolease Ltd,4578,Housing Repairs Account,Operating Leases,3851
http://statistics.data.gov.uk/id/local-authority/47UD,Redditch Borough Council,13/12/2013,197428,MRI2357632,309.38,Lex Autolease Ltd,4578,Housing Repairs Account,Operating Leases,3851
http://statistics.data.gov.uk/id/local-authority/47UD,Redditch Borough Council,13/12/2013,197428,MRI2357632,309.38,Lex Autolease Ltd,4578,Housing Repairs Account,Operating Leases,3851
http://statistics.data.gov.uk/id/local-authority/47UD,Redditch Borough Council,13/12/2013,197428,MRI2357632,309.38,Lex Autolease Ltd,4578,Housing Repairs Account,Operating Leases,3851
http://statistics.data.gov.uk/id/local-authority/47UD,Redditch Borough Council,13/12/2013,197428,MRI2357632,309.38,Lex Autolease Ltd,4578,Housing Repairs Account,Operating Leases,3851
http://statistics.data.gov.uk/id/local-authority/47UD,Redditch Borough Council,13/12/2013,197428,MRI2357632,309.38,Lex Autolease Ltd,4578,Housing Repairs Account,Operating Leases,3851
http://statistics.data.gov.uk/id/local-authority/47UD,Redditch Borough Council,13/12/2013,197428,MRI2357632,309.38,Lex Autolease Ltd,4578,Housing Repairs Account,Operating Leases,3851
http://statistics.data.gov.uk/id/local-authority/47UD,Redditch Borough Council,13/12/2013,197428,MRI2357632,309.38,Lex Autolease Ltd,4578,Housing Repairs Account,Operating Leases,3851
http://statistics.data.gov.uk/id/local-authority/47UD,Redditch Borough Council,13/12/2013,197428,MRI2357632,309.38,Lex Autolease Ltd,4578,Housing Repairs Account,Operating Leases,3851
http://statistics.data.gov.uk/id/local-authority/47UD,Redditch Borough Council,13/12/2013,197428,MRI2357632,309.38,Lex Autolease Ltd,4578,Housing Repairs Account,Operating Leases,3851
http://statistics.data.gov.uk/id/local-authority/47UD,Redditch Borough Council,13/12/2013,197428,MRI2357632,309.38,Lex Autolease Ltd,4578,Housing Repairs Account,Operating Leases,3851
http://statistics.data.gov.uk/id/local-authority/47UD,Redditch Borough Council,13/12/2013,197428,MRI2357632,309.38,Lex Autolease Ltd,4578,Housing Repairs Account,Operating Leases,3851
http://statistics.data.gov.uk/id/local-authority/47UD,Redditch Borough Council,13/12/2013,197428,MRI2357632,309.38,Lex Autolease Ltd,4578,Housing Repairs Account,Operating Leases,3851
http://statistics.data.gov.uk/id/local-authority/47UD,Redditch Borough Council,13/12/2013,197428,MRI2357632,382.34,Lex Autolease Ltd,4578,Housing Repairs Account,Operating Leases,3851
http://statistics.data.gov.uk/id/local-authority/47UD,Redditch Borough Council,13/12/2013,197428,MRI2357632,382.34,Lex Autolease Ltd,4578,Housing Repairs Account,Operating Leases,3851
http://statistics.data.gov.uk/id/local-authority/47UD,Redditch Borough Council,13/12/2013,197428,MRI2357632,243.09,Lex Autolease Ltd,4578,Housing Repairs Account,Operating Leases,3851
http://statistics.data.gov.uk/id/local-authority/47UD,Redditch Borough Council,13/12/2013,197428,MRI2357632,243.09,Lex Autolease Ltd,4578,Housing Repairs Account,Operating Leases,3851
http://statistics.data.gov.uk/id/local-authority/47UD,Redditch Borough Council,13/12/2013,197428,MRI2357632,243.09,Lex Autolease Ltd,4578,Housing Repairs Account,Operating Leases,3851
http://statistics.data.gov.uk/id/local-authority/47UD,Redditch Borough Council,13/12/2013,197428,MRI2357632,243.09,Lex Autolease Ltd,4578,Housing Repairs Account,Operating Leases,3851
http://statistics.data.gov.uk/id/local-authority/47UD,Redditch Borough Council,13/12/2013,197428,MRI2357632,400.99,Lex Autolease Ltd,4578,Housing Repairs Account,Operating Leases,3851
http://statistics.data.gov.uk/id/local-authority/47UD,Redditch Borough Council,13/12/2013,197428,MRI2357632,243.09,Lex Autolease Ltd,4578,Housing Repairs Account,Operating Leases,3851
http://statistics.data.gov.uk/id/local-authority/47UD,Redditch Borough Council,13/12/2013,197428,MRI2357632,261.00,Lex Autolease Ltd,4578,Housing Repairs Account,Operating Leases,3851
http://statistics.data.gov.uk/id/local-authority/47UD,Redditch Borough Council,13/12/2013,197428,MRI2357632,243.09,Lex Autolease Ltd,4578,Housing Repairs Account,Operating Leases,3851
http://statistics.data.gov.uk/id/local-authority/47UD,Redditch Borough Council,13/12/2013,197428,MRI2357632,514.95,Lex Autolease Ltd,4578,Housing Repairs Account,Operating Leases,3851
http://statistics.data.gov.uk/id/local-authority/47UD,Redditch Borough Council,13/12/2013,197429,MRI2399523,240.62,Lex Autolease Ltd,4578,Exec. Director Fin. & Resource,Operating Leases,3851
http://statistics.data.gov.uk/id/local-authority/47UD,Redditch Borough Council,13/12/2013,197429,MRI2399523,384.81,Lex Autolease Ltd,4578,Executive Director Lec,Operating Leases,3851
http://statistics.data.gov.uk/id/local-authority/47UD,Redditch Borough Council,13/12/2013,197429,MRI2399523,384.81,Lex Autolease Ltd,4578,Executive Director Lec,Operating Leases,3851
http://statistics.data.gov.uk/id/local-authority/47UD,Redditch Borough Council,13/12/2013,197429,MRI2399523,384.81,Lex Autolease Ltd,4578,Executive Director Lec,Operating Leases,3851
http://statistics.data.gov.uk/id/local-authority/47UD,Redditch Borough Council,13/12/2013,197429,MRI2399523,384.81,Lex Autolease Ltd,4578,Executive Director Lec,Operating Leases,3851
http://statistics.data.gov.uk/id/local-authority/47UD,Redditch Borough Council,13/12/2013,197429,MRI2399523,382.34,Lex Autolease Ltd,4578,Executive Director Lec,Operating Leases,3851
http://statistics.data.gov.uk/id/local-authority/47UD,Redditch Borough Council,13/12/2013,197429,MRI2399523,382.34,Lex Autolease Ltd,4578,Executive Director Lec,Operating Leases,3851
http://statistics.data.gov.uk/id/local-authority/47UD,Redditch Borough Council,13/12/2013,197429,MRI2399523,382.34,Lex Autolease Ltd,4578,Executive Director Lec,Operating Leases,3851
http://statistics.data.gov.uk/id/local-authority/47UD,Redditch Borough Council,13/12/2013,197429,MRI2399523,382.34,Lex Autolease Ltd,4578,Executive Director Lec,Operating Leases,3851
http://statistics.data.gov.uk/id/local-authority/47UD,Redditch Borough Council,13/12/2013,197429,MRI2399523,237.63,Lex Autolease Ltd,4578,Executive Director Lec,Operating Leases,3851
http://statistics.data.gov.uk/id/local-authority/47UD,Redditch Borough Council,13/12/2013,197429,MRI2399523,384.81,Lex Autolease Ltd,4578,Executive Director Lec,Operating Leases,3851
http://statistics.data.gov.uk/id/local-authority/47UD,Redditch Borough Council,13/12/2013,197429,MRI2399523,270.88,Lex Autolease Ltd,4578,Executive Director Lec,Operating Leases,3851
http://statistics.data.gov.uk/id/local-authority/47UD,Redditch Borough Council,13/12/2013,197429,MRI2399523,319.19,Lex Autolease Ltd,4578,Executive Director Lec,Operating Leases,3851
http://statistics.data.gov.uk/id/local-authority/47UD,Redditch Borough Council,13/12/2013,197429,MRI2399523,249.29,Lex Autolease Ltd,4578,Executive Director Lec,Operating Leases,3851
http://statistics.data.gov.uk/id/local-authority/47UD,Redditch Borough Council,13/12/2013,197429,MRI2399523,243.09,Lex Autolease Ltd,4578,Executive Director Lec,Operating Leases,3851
http://statistics.data.gov.uk/id/local-authority/47UD,Redditch Borough Council,13/12/2013,197429,MRI2399523,489.02,Lex Autolease Ltd,4578,Executive Director Lec,Operating Leases,3851
http://statistics.data.gov.uk/id/local-authority/47UD,Redditch Borough Council,13/12/2013,197429,MRI2399523,261.00,Lex Autolease Ltd,4578,Executive Director Lec,Operating Leases,3851
http://statistics.data.gov.uk/id/local-authority/47UD,Redditch Borough Council,13/12/2013,197429,MRI2399523,170.45,Lex Autolease Ltd,4578,Executive Director Lec,Operating Leases,3851
http://statistics.data.gov.uk/id/local-authority/47UD,Redditch Borough Council,13/12/2013,197429,MRI2399523,170.45,Lex Autolease Ltd,4578,Executive Director Lec,Operating Leases,3851
http://statistics.data.gov.uk/id/local-authority/47UD,Redditch Borough Council,13/12/2013,197429,MRI2399523,170.45,Lex Autolease Ltd,4578,Executive Director Lec,Operating Leases,3851
http://statistics.data.gov.uk/id/local-authority/47UD,Redditch Borough Council,13/12/2013,197429,MRI2399523,353.00,Lex Autolease Ltd,4578,Executive Director Lec,Operating Leases,3851
http://statistics.data.gov.uk/id/local-authority/47UD,Redditch Borough Council,13/12/2013,197429,MRI2399523,353.00,Lex Autolease Ltd,4578,Executive Director Lec,Operating Leases,3851
http://statistics.data.gov.uk/id/local-authority/47UD,Redditch Borough Council,13/12/2013,197429,MRI2399523,240.62,Lex Autolease Ltd,4578,Executive Director Lec,Operating Leases,3851
http://statistics.data.gov.uk/id/local-authority/47UD,Redditch Borough Council,13/12/2013,197429,MRI2399523,353.00,Lex Autolease Ltd,4578,Executive Director Lec,Operating Leases,3851
http://statistics.data.gov.uk/id/local-authority/47UD,Redditch Borough Council,13/12/2013,197429,MRI2399523,353.00,Lex Autolease Ltd,4578,Executive Director Lec,Operating Leases,3851
http://statistics.data.gov.uk/id/local-authority/47UD,Redditch Borough Council,13/12/2013,197429,MRI2399523,353.00,Lex Autolease Ltd,4578,Executive Director Lec,Operating Leases,3851
http://statistics.data.gov.uk/id/local-authority/47UD,Redditch Borough Council,13/12/2013,197429,MRI2399523,461.92,Lex Autolease Ltd,4578,Executive Director Lec,Operating Leases,3851
http://statistics.data.gov.uk/id/local-authority/47UD,Redditch Borough Council,13/12/2013,197429,MRI2399523,461.92,Lex Autolease Ltd,4578,Executive Director Lec,Operating Leases,3851
http://statistics.data.gov.uk/id/local-authority/47UD,Redditch Borough Council,13/12/2013,197429,MRI2399523,461.92,Lex Autolease Ltd,4578,Executive Director Lec,Operating Leases,3851
http://statistics.data.gov.uk/id/local-authority/47UD,Redditch Borough Council,13/12/2013,197429,MRI2399523,461.92,Lex Autolease Ltd,4578,Executive Director Lec,Operating Leases,3851
http://statistics.data.gov.uk/id/local-authority/47UD,Redditch Borough Council,13/12/2013,197429,MRI2399523,309.38,Lex Autolease Ltd,4578,Housing Repairs Account,Operating Leases,3851
http://statistics.data.gov.uk/id/local-authority/47UD,Redditch Borough Council,13/12/2013,197429,MRI2399523,309.38,Lex Autolease Ltd,4578,Housing Repairs Account,Operating Leases,3851
http://statistics.data.gov.uk/id/local-authority/47UD,Redditch Borough Council,13/12/2013,197429,MRI2399523,309.38,Lex Autolease Ltd,4578,Housing Repairs Account,Operating Leases,3851
http://statistics.data.gov.uk/id/local-authority/47UD,Redditch Borough Council,13/12/2013,197429,MRI2399523,309.38,Lex Autolease Ltd,4578,Housing Repairs Account,Operating Leases,3851
http://statistics.data.gov.uk/id/local-authority/47UD,Redditch Borough Council,13/12/2013,197429,MRI2399523,309.38,Lex Autolease Ltd,4578,Housing Repairs Account,Operating Leases,3851
http://statistics.data.gov.uk/id/local-authority/47UD,Redditch Borough Council,13/12/2013,197429,MRI2399523,309.38,Lex Autolease Ltd,4578,Housing Repairs Account,Operating Leases,3851
http://statistics.data.gov.uk/id/local-authority/47UD,Redditch Borough Council,13/12/2013,197429,MRI2399523,309.38,Lex Autolease Ltd,4578,Housing Repairs Account,Operating Leases,3851
http://statistics.data.gov.uk/id/local-authority/47UD,Redditch Borough Council,13/12/2013,197429,MRI2399523,309.38,Lex Autolease Ltd,4578,Housing Repairs Account,Operating Leases,3851
http://statistics.data.gov.uk/id/local-authority/47UD,Redditch Borough Council,13/12/2013,197429,MRI2399523,309.38,Lex Autolease Ltd,4578,Housing Repairs Account,Operating Leases,3851
http://statistics.data.gov.uk/id/local-authority/47UD,Redditch Borough Council,13/12/2013,197429,MRI2399523,309.38,Lex Autolease Ltd,4578,Housing Repairs Account,Operating Leases,3851
http://statistics.data.gov.uk/id/local-authority/47UD,Redditch Borough Council,13/12/2013,197429,MRI2399523,309.38,Lex Autolease Ltd,4578,Housing Repairs Account,Operating Leases,3851
http://statistics.data.gov.uk/id/local-authority/47UD,Redditch Borough Council,13/12/2013,197429,MRI2399523,309.38,Lex Autolease Ltd,4578,Housing Repairs Account,Operating Leases,3851
http://statistics.data.gov.uk/id/local-authority/47UD,Redditch Borough Council,13/12/2013,197429,MRI2399523,309.38,Lex Autolease Ltd,4578,Housing Repairs Account,Operating Leases,3851
http://statistics.data.gov.uk/id/local-authority/47UD,Redditch Borough Council,13/12/2013,197429,MRI2399523,309.38,Lex Autolease Ltd,4578,Housing Repairs Account,Operating Leases,3851
http://statistics.data.gov.uk/id/local-authority/47UD,Redditch Borough Council,13/12/2013,197429,MRI2399523,309.38,Lex Autolease Ltd,4578,Housing Repairs Account,Operating Leases,3851
http://statistics.data.gov.uk/id/local-authority/47UD,Redditch Borough Council,13/12/2013,197429,MRI2399523,382.34,Lex Autolease Ltd,4578,Housing Repairs Account,Operating Leases,3851
http://statistics.data.gov.uk/id/local-authority/47UD,Redditch Borough Council,13/12/2013,197429,MRI2399523,382.34,Lex Autolease Ltd,4578,Housing Repairs Account,Operating Leases,3851
http://statistics.data.gov.uk/id/local-authority/47UD,Redditch Borough Council,13/12/2013,197429,MRI2399523,243.09,Lex Autolease Ltd,4578,Housing Repairs Account,Operating Leases,3851
http://statistics.data.gov.uk/id/local-authority/47UD,Redditch Borough Council,13/12/2013,197429,MRI2399523,243.09,Lex Autolease Ltd,4578,Housing Repairs Account,Operating Leases,3851
http://statistics.data.gov.uk/id/local-authority/47UD,Redditch Borough Council,13/12/2013,197429,MRI2399523,243.09,Lex Autolease Ltd,4578,Housing Repairs Account,Operating Leases,3851
http://statistics.data.gov.uk/id/local-authority/47UD,Redditch Borough Council,13/12/2013,197429,MRI2399523,243.09,Lex Autolease Ltd,4578,Housing Repairs Account,Operating Leases,3851
http://statistics.data.gov.uk/id/local-authority/47UD,Redditch Borough Council,13/12/2013,197429,MRI2399523,400.99,Lex Autolease Ltd,4578,Housing Repairs Account,Operating Leases,3851
http://statistics.data.gov.uk/id/local-authority/47UD,Redditch Borough Council,13/12/2013,197429,MRI2399523,243.09,Lex Autolease Ltd,4578,Housing Repairs Account,Operating Leases,3851
http://statistics.data.gov.uk/id/local-authority/47UD,Redditch Borough Council,13/12/2013,197429,MRI2399523,261.00,Lex Autolease Ltd,4578,Housing Repairs Account,Operating Leases,3851
http://statistics.data.gov.uk/id/local-authority/47UD,Redditch Borough Council,13/12/2013,197429,MRI2399523,243.09,Lex Autolease Ltd,4578,Housing Repairs Account,Operating Leases,3851
http://statistics.data.gov.uk/id/local-authority/47UD,Redditch Borough Council,13/12/2013,197429,MRI2399523,514.95,Lex Autolease Ltd,4578,Housing Repairs Account,Operating Leases,3851
http://statistics.data.gov.uk/id/local-authority/47UD,Redditch Borough Council,06/12/2013,178173,INV/50244749,450.00,Tunstall  Limited,459,Executive Director Lec,Operation Equip -Rep & Maint,4152
http://statistics.data.gov.uk/id/local-authority/47UD,Redditch Borough Council,06/12/2013,195490,INV/5028422,186.80,Tunstall  Limited,459,Executive Director Lec,Operation Equip -Rep & Maint,4152
http://statistics.data.gov.uk/id/local-authority/47UD,Redditch Borough Council,06/12/2013,195781,INV/50258510,1123.69,Tunstall  Limited,459,Rbc Balance Sheet,Contract Payments,8131
http://statistics.data.gov.uk/id/local-authority/47UD,Redditch Borough Council,06/12/2013,195839,INV/50258343,35.00,Tunstall  Limited,459,Executive Director Lec,Operation Equip -Rep & Maint,4152
http://statistics.data.gov.uk/id/local-authority/47UD,Redditch Borough Council,06/12/2013,195842,INV/50256685,45.94,Tunstall  Limited,459,Executive Director Lec,Operation Equip -Rep & Maint,4152
http://statistics.data.gov.uk/id/local-authority/47UD,Redditch Borough Council,13/12/2013,196635,3IN/10231989,294.00,Tunstall  Limited,459,Executive Director Lec,Operational Equip- Purchase,4150
http://statistics.data.gov.uk/id/local-authority/47UD,Redditch Borough Council,13/12/2013,196644,3IN/10232105,360.00,Tunstall  Limited,459,Executive Director Lec,Operational Equip- Purchase,4150
http://statistics.data.gov.uk/id/local-authority/47UD,Redditch Borough Council,13/12/2013,196723,3IN/10232333,120.00,Tunstall  Limited,459,Executive Director Lec,Operational Equip- Purchase,4150
http://statistics.data.gov.uk/id/local-authority/47UD,Redditch Borough Council,13/12/2013,196759,INV/50259202,35.00,Tunstall  Limited,459,Executive Director Lec,Operation Equip -Rep & Maint,4152
http://statistics.data.gov.uk/id/local-authority/47UD,Redditch Borough Council,13/12/2013,196902,3IN/10232485,70.00,Tunstall  Limited,459,Executive Director Lec,Operational Equip- Purchase,4150
http://statistics.data.gov.uk/id/local-authority/47UD,Redditch Borough Council,13/12/2013,196903,3IN/10232484,130.00,Tunstall  Limited,459,Executive Director Lec,Operational Equip- Purchase,4150
http://statistics.data.gov.uk/id/local-authority/47UD,Redditch Borough Council,13/12/2013,196333,A73245,218.00,Fast Fit Nationwide Ltd,46,Housing Repairs Account,Contractors,3701
http://statistics.data.gov.uk/id/local-authority/47UD,Redditch Borough Council,13/12/2013,196337,A72376,274.00,Fast Fit Nationwide Ltd,46,Executive Director Lec,Materials (Veh),3700
http://statistics.data.gov.uk/id/local-authority/47UD,Redditch Borough Council,13/12/2013,196338,A71750,76.00,Fast Fit Nationwide Ltd,46,Housing Repairs Account,Materials (Veh),3700
http://statistics.data.gov.uk/id/local-authority/47UD,Redditch Borough Council,13/12/2013,197339,714921,3999.80,S P Services Uk Ltd,4621,Chief Executive,Operation Equip -Rep & Maint,4152
http://statistics.data.gov.uk/id/local-authority/47UD,Redditch Borough Council,20/12/2013,197241,99999/11/2013,1002.74,Tradition (Uk) Ltd,465,Notional Deprn And Financing,Commission - Short Term Borrow,5801
http://statistics.data.gov.uk/id/local-authority/47UD,Redditch Borough Council,13/12/2013,196681,21189,665.98,Arcane Direct Marketing,4714,Executive Director Lec,Advertising,4735
http://statistics.data.gov.uk/id/local-authority/47UD,Redditch Borough Council,06/12/2013,196938,00223,1000.00,Strategic Leisure,4726,Executive Director Lec,Operational Equip- Purchase,4150
http://statistics.data.gov.uk/id/local-authority/47UD,Redditch Borough Council,06/12/2013,196982,RENT NOV 13,870.00,Mr D Broadbent,4782,Exec. Director Prrh,Temporary Accomodation,4557
http://statistics.data.gov.uk/id/local-authority/47UD,Redditch Borough Council,06/12/2013,194921,2582,31013.43,Kelbec Civils Ltd,4794,Rbc Balance Sheet,Contract Payments,8131
http://statistics.data.gov.uk/id/local-authority/47UD,Redditch Borough Council,06/12/2013,195493,2586,3948.08,Kelbec Civils Ltd,4794,Housing Repairs Account,Drainage,3201
http://statistics.data.gov.uk/id/local-authority/47UD,Redditch Borough Council,06/12/2013,195768,2596,5699.08,Kelbec Civils Ltd,4794,Housing Revenue Account,Paved Area Maintenance,3202
http://statistics.data.gov.uk/id/local-authority/47UD,Redditch Borough Council,06/12/2013,195769,2595,3636.20,Kelbec Civils Ltd,4794,Executive Director Lec,Contractors,5158
http://statistics.data.gov.uk/id/local-authority/47UD,Redditch Borough Council,06/12/2013,195772,2597,2463.27,Kelbec Civils Ltd,4794,Rbc Balance Sheet,Contract Payments,8131
http://statistics.data.gov.uk/id/local-authority/47UD,Redditch Borough Council,06/12/2013,195792,2599,2108.20,Kelbec Civils Ltd,4794,Housing Revenue Account,Paved Area Maintenance,3202
http://statistics.data.gov.uk/id/local-authority/47UD,Redditch Borough Council,06/12/2013,196380,2616,367.72,Kelbec Civils Ltd,4794,Rbc Balance Sheet,Direct Payments,8132
http://statistics.data.gov.uk/id/local-authority/47UD,Redditch Borough Council,20/12/2013,194430,2557,22916.00,Kelbec Civils Ltd,4794,Rbc Balance Sheet,Contract Payments,8131
http://statistics.data.gov.uk/id/local-authority/47UD,Redditch Borough Council,20/12/2013,194529,2570,7102.63,Kelbec Civils Ltd,4794,Rbc Balance Sheet,Contract Payments,8131
http://statistics.data.gov.uk/id/local-authority/47UD,Redditch Borough Council,20/12/2013,194530,2571,118.89,Kelbec Civils Ltd,4794,Housing Revenue Account,Paved Area Maintenance,3202
http://statistics.data.gov.uk/id/local-authority/47UD,Redditch Borough Council,20/12/2013,194531,2572,96.24,Kelbec Civils Ltd,4794,Executive Director Lec,Contractors,5158
http://statistics.data.gov.uk/id/local-authority/47UD,Redditch Borough Council,20/12/2013,194602,2574,576.13,Kelbec Civils Ltd,4794,Housing Revenue Account,Paved Area Maintenance,3202
http://statistics.data.gov.uk/id/local-authority/47UD,Redditch Borough Council,20/12/2013,195088,2585,52057.36,Kelbec Civils Ltd,4794,Rbc Balance Sheet,Direct Payments,8132
http://statistics.data.gov.uk/id/local-authority/47UD,Redditch Borough Council,20/12/2013,196755,2626,4356.45,Kelbec Civils Ltd,4794,Housing Revenue Account,Paved Area Maintenance,3202
http://statistics.data.gov.uk/id/local-authority/47UD,Redditch Borough Council,20/12/2013,197197,2638,2477.72,Kelbec Civils Ltd,4794,Executive Director Lec,General Repairs,3100
http://statistics.data.gov.uk/id/local-authority/47UD,Redditch Borough Council,13/12/2013,197384,W3920.4206.4,1025.00,V B Johnson,4865,Exec. Director Prrh,Training,3043
http://statistics.data.gov.uk/id/local-authority/47UD,Redditch Borough Council,13/12/2013,197305,SI050780,26152.05,Flintshire Woodlands,4879,Executive Director Lec,Other Works,5161
http://statistics.data.gov.uk/id/local-authority/47UD,Redditch Borough Council,13/12/2013,195430,13920,1005.96,The Glasshouse,495,Housing Repairs Account,Contractors,5158
http://statistics.data.gov.uk/id/local-authority/47UD,Redditch Borough Council,13/12/2013,195431,13919,2825.09,The Glasshouse,495,Housing Repairs Account,Contractors,5158
http://statistics.data.gov.uk/id/local-authority/47UD,Redditch Borough Council,13/12/2013,195902,13810,2396.58,The Glasshouse,495,Housing Repairs Account,Contractors,5158
http://statistics.data.gov.uk/id/local-authority/47UD,Redditch Borough Council,13/12/2013,196869,13981,467.49,The Glasshouse,495,Rbc Balance Sheet,Contract Payments,8131
http://statistics.data.gov.uk/id/local-authority/47UD,Redditch Borough Council,13/12/2013,196888,13980,65.77,The Glasshouse,495,Housing Repairs Account,Materials,4170
http://statistics.data.gov.uk/id/local-authority/47UD,Redditch Borough Council,20/12/2013,196870,13982,958.91,The Glasshouse,495,Housing Repairs Account,Contractors,5158
http://statistics.data.gov.uk/id/local-authority/47UD,Redditch Borough Council,20/12/2013,196912,13983,2123.99,The Glasshouse,495,Housing Repairs Account,Contractors,5158
http://statistics.data.gov.uk/id/local-authority/47UD,Redditch Borough Council,13/12/2013,197427,15/22342,10675.00,Crh Fencing Ltd T/A Darfen Durafencing,4960,Rbc Balance Sheet,Contract Payments,8131
http://statistics.data.gov.uk/id/local-authority/47UD,Redditch Borough Council,13/12/2013,197407,100876,17500.00,Diamond Bus Company Limited,499,Executive Director Lec,Concessionary Travel,5150
http://statistics.data.gov.uk/id/local-authority/47UD,Redditch Borough Council,13/12/2013,197335,02/1113,500.00,Jadelink Developments Ltd,5018,Executive Director Lec,Project Work,4733
http://statistics.data.gov.uk/id/local-authority/47UD,Redditch Borough Council,06/12/2013,195366,48977,4025.27,Sos Group Services Ltd,5054,Housing Repairs Account,Drainage,3201
http://statistics.data.gov.uk/id/local-authority/47UD,Redditch Borough Council,06/12/2013,196964,49037,4194.91,Sos Group Services Ltd,5054,Housing Repairs Account,Drainage,3201
http://statistics.data.gov.uk/id/local-authority/47UD,Redditch Borough Council,20/12/2013,197846,13,758.50,Dr Richard Wilkinson,5065,Executive Director Lec,Medical Fees,3040
http://statistics.data.gov.uk/id/local-authority/47UD,Redditch Borough Council,20/12/2013,197847,14,36.00,Dr Richard Wilkinson,5065,Executive Director Lec,Car Mileage,3911
http://statistics.data.gov.uk/id/local-authority/47UD,Redditch Borough Council,06/12/2013,195408,38200,2050.00,Technical Surfaces Ltd,509,Executive Director Lec,Operation Equip -Rep & Maint,4152
http://statistics.data.gov.uk/id/local-authority/47UD,Redditch Borough Council,20/12/2013,197965,30052335,22962.50,Amas A/C 63907686,5113,Exec. Director Prrh,Hire Of Premises,3351
http://statistics.data.gov.uk/id/local-authority/47UD,Redditch Borough Council,06/12/2013,193946,AVA 1298,294.00,A V Activ,5123,Executive Director Lec,Operational Equip- Purchase,4150
http://statistics.data.gov.uk/id/local-authority/47UD,Redditch Borough Council,06/12/2013,194733,AVA 1306,342.00,A V Activ,5123,Executive Director Lec,Recreational Equip - Purchase,4100
http://statistics.data.gov.uk/id/local-authority/47UD,Redditch Borough Council,13/12/2013,197333,AVA1325,100.00,A V Activ,5123,Executive Director Lec,Operational Equip- Purchase,4150
http://statistics.data.gov.uk/id/local-authority/47UD,Redditch Borough Council,13/12/2013,197199,658412,25173.39,Harvest Energy Limited,5136,Crossgate Stocks,Received Not Invoiced,2096
http://statistics.data.gov.uk/id/local-authority/47UD,Redditch Borough Council,06/12/2013,196472,3005151,-216.32,Amas Ltd (A/C 03457982),5149,Exec. Director Prrh,Fire Insurance,3650
http://statistics.data.gov.uk/id/local-authority/47UD,Redditch Borough Council,06/12/2013,196975,30052713,1923.54,Amas Ltd (A/C 03457982),5149,Exec. Director Prrh,Service Charges,3352
http://statistics.data.gov.uk/id/local-authority/47UD,Redditch Borough Council,06/12/2013,194742,0000001324,-33.18,Toolstation Ltd,5151,Exec. Director Fin. & Resource,Materials,4170
http://statistics.data.gov.uk/id/local-authority/47UD,Redditch Borough Council,06/12/2013,195486,0000046145,1.98,Toolstation Ltd,5151,Housing Repairs Account,Materials,4170
http://statistics.data.gov.uk/id/local-authority/47UD,Redditch Borough Council,06/12/2013,195487,0000046158,25.37,Toolstation Ltd,5151,Housing Repairs Account,Materials,4170
http://statistics.data.gov.uk/id/local-authority/47UD,Redditch Borough Council,06/12/2013,196282,0000046453,8.82,Toolstation Ltd,5151,Housing Repairs Account,Materials,4170
http://statistics.data.gov.uk/id/local-authority/47UD,Redditch Borough Council,06/12/2013,196283,0000046452,14.24,Toolstation Ltd,5151,Housing Repairs Account,Materials,4170
http://statistics.data.gov.uk/id/local-authority/47UD,Redditch Borough Council,06/12/2013,196284,0000046451,50.87,Toolstation Ltd,5151,Housing Repairs Account,Materials,4170
http://statistics.data.gov.uk/id/local-authority/47UD,Redditch Borough Council,13/12/2013,196285,0000046449,21.27,Toolstation Ltd,5151,Housing Repairs Account,Materials,4170
http://statistics.data.gov.uk/id/local-authority/47UD,Redditch Borough Council,13/12/2013,196287,0000046448,17.75,Toolstation Ltd,5151,Exec. Director Fin. & Resource,Materials,4170
http://statistics.data.gov.uk/id/local-authority/47UD,Redditch Borough Council,13/12/2013,196288,0000046447,16.63,Toolstation Ltd,5151,Housing Repairs Account,Materials,4170
http://statistics.data.gov.uk/id/local-authority/47UD,Redditch Borough Council,13/12/2013,196289,0000046445,17.03,Toolstation Ltd,5151,Housing Repairs Account,Materials,4170
http://statistics.data.gov.uk/id/local-authority/47UD,Redditch Borough Council,13/12/2013,196291,0000046444,6.87,Toolstation Ltd,5151,Housing Repairs Account,Materials,4170
http://statistics.data.gov.uk/id/local-authority/47UD,Redditch Borough Council,13/12/2013,196292,0000046443,25.58,Toolstation Ltd,5151,Executive Director Lec,Materials,4170
http://statistics.data.gov.uk/id/local-authority/47UD,Redditch Borough Council,13/12/2013,196293,0000046439,28.25,Toolstation Ltd,5151,Housing Repairs Account,Materials,4170
http://statistics.data.gov.uk/id/local-authority/47UD,Redditch Borough Council,13/12/2013,196295,0000046438,29.08,Toolstation Ltd,5151,Housing Repairs Account,Materials,4170
http://statistics.data.gov.uk/id/local-authority/47UD,Redditch Borough Council,13/12/2013,196297,0000046436,3.58,Toolstation Ltd,5151,Housing Repairs Account,Materials,4170
http://statistics.data.gov.uk/id/local-authority/47UD,Redditch Borough Council,13/12/2013,196298,0000046434,15.48,Toolstation Ltd,5151,Exec. Director Fin. & Resource,Materials,4170
http://statistics.data.gov.uk/id/local-authority/47UD,Redditch Borough Council,13/12/2013,196299,0000046433,6.62,Toolstation Ltd,5151,Housing Repairs Account,Materials,4170
http://statistics.data.gov.uk/id/local-authority/47UD,Redditch Borough Council,13/12/2013,196300,0000046435,7.17,Toolstation Ltd,5151,Housing Repairs Account,Materials,4170
http://statistics.data.gov.uk/id/local-authority/47UD,Redditch Borough Council,13/12/2013,196301,0000046431,8.87,Toolstation Ltd,5151,Exec. Director Fin. & Resource,Materials,4170
http://statistics.data.gov.uk/id/local-authority/47UD,Redditch Borough Council,13/12/2013,196302,0000046432,19.56,Toolstation Ltd,5151,Housing Repairs Account,Materials,4170
http://statistics.data.gov.uk/id/local-authority/47UD,Redditch Borough Council,20/12/2013,193302,0000044981,13.23,Toolstation Ltd,5151,Housing Repairs Account,Materials,4170
http://statistics.data.gov.uk/id/local-authority/47UD,Redditch Borough Council,20/12/2013,196336,0000001296,-13.23,Toolstation Ltd,5151,Housing Repairs Account,Materials,4170
http://statistics.data.gov.uk/id/local-authority/47UD,Redditch Borough Council,20/12/2013,197207,0000046945,43.15,Toolstation Ltd,5151,Housing Repairs Account,Materials,4170
http://statistics.data.gov.uk/id/local-authority/47UD,Redditch Borough Council,20/12/2013,197211,0000046949,15.83,Toolstation Ltd,5151,Housing Repairs Account,Materials,4170
http://statistics.data.gov.uk/id/local-authority/47UD,Redditch Borough Council,20/12/2013,197213,0000046948,2.78,Toolstation Ltd,5151,Housing Repairs Account,Operational Equip- Purchase,4150
http://statistics.data.gov.uk/id/local-authority/47UD,Redditch Borough Council,20/12/2013,197215,0000046954,20.88,Toolstation Ltd,5151,Housing Repairs Account,Materials,4170
http://statistics.data.gov.uk/id/local-authority/47UD,Redditch Borough Council,20/12/2013,197217,0000046953,34.52,Toolstation Ltd,5151,Housing Repairs Account,Materials,4170
http://statistics.data.gov.uk/id/local-authority/47UD,Redditch Borough Council,20/12/2013,197220,0000046875,19.56,Toolstation Ltd,5151,Housing Repairs Account,Materials,4170
http://statistics.data.gov.uk/id/local-authority/47UD,Redditch Borough Council,20/12/2013,197245,0000046876,14.62,Toolstation Ltd,5151,Housing Repairs Account,Materials,4170
http://statistics.data.gov.uk/id/local-authority/47UD,Redditch Borough Council,20/12/2013,197246,0000046878,15.20,Toolstation Ltd,5151,Housing Repairs Account,Materials,4170
http://statistics.data.gov.uk/id/local-authority/47UD,Redditch Borough Council,20/12/2013,197249,0000046939,22.37,Toolstation Ltd,5151,Housing Repairs Account,Materials,4170
http://statistics.data.gov.uk/id/local-authority/47UD,Redditch Borough Council,20/12/2013,197250,0000046937,28.68,Toolstation Ltd,5151,Housing Repairs Account,Materials,4170
http://statistics.data.gov.uk/id/local-authority/47UD,Redditch Borough Council,20/12/2013,197251,0000046936,7.92,Toolstation Ltd,5151,Housing Repairs Account,Materials,4170
http://statistics.data.gov.uk/id/local-authority/47UD,Redditch Borough Council,20/12/2013,197253,0000046933,8.19,Toolstation Ltd,5151,Housing Repairs Account,Materials,4170
http://statistics.data.gov.uk/id/local-authority/47UD,Redditch Borough Council,20/12/2013,197254,0000046932,15.02,Toolstation Ltd,5151,Housing Repairs Account,Materials,4170
http://statistics.data.gov.uk/id/local-authority/47UD,Redditch Borough Council,20/12/2013,197255,0000046943,5.25,Toolstation Ltd,5151,Housing Repairs Account,Materials,4170
http://statistics.data.gov.uk/id/local-authority/47UD,Redditch Borough Council,20/12/2013,197256,0000046946,11.51,Toolstation Ltd,5151,Housing Repairs Account,Materials,4170
http://statistics.data.gov.uk/id/local-authority/47UD,Redditch Borough Council,06/12/2013,196950,INV00636,677.00,Limelight,5165,Executive Director Lec,Purchases For Resale,4050
http://statistics.data.gov.uk/id/local-authority/47UD,Redditch Borough Council,06/12/2013,196950,INV00636,666.00,Limelight,5165,Executive Director Lec,Purchases For Resale,4050
http://statistics.data.gov.uk/id/local-authority/47UD,Redditch Borough Council,06/12/2013,196950,INV00636,594.00,Limelight,5165,Executive Director Lec,Purchases For Resale,4050
http://statistics.data.gov.uk/id/local-authority/47UD,Redditch Borough Council,13/12/2013,197321,273,3850.00,Pro-Teq Surfacing (Uk) Ltd,5253,Executive Director Lec,Recreational Equip -Reps/Maint,4102
http://statistics.data.gov.uk/id/local-authority/47UD,Redditch Borough Council,06/12/2013,196953,BTBRED-281113,-342.00,Beyond The Barricade Ltd,5263,Executive Director Lec,Other Fees & Charges(Vatable),6302
http://statistics.data.gov.uk/id/local-authority/47UD,Redditch Borough Council,06/12/2013,196953,BTBRED-281113,4628.40,Beyond The Barricade Ltd,5263,Executive Director Lec,Professional Fees,4352
http://statistics.data.gov.uk/id/local-authority/47UD,Redditch Borough Council,13/12/2013,197408,RBC2311132,765.00,Uk Event And Entertainment Services,5288,Exec. Director Prrh,Project Work,4733
http://statistics.data.gov.uk/id/local-authority/47UD,Redditch Borough Council,13/12/2013,197408,RBC2311132,100.00,Uk Event And Entertainment Services,5288,Exec. Director Prrh,Project Work,4733
http://statistics.data.gov.uk/id/local-authority/47UD,Redditch Borough Council,13/12/2013,197409,RBC512132,998.00,Uk Event And Entertainment Services,5288,Exec. Director Prrh,Project Work,4733
http://statistics.data.gov.uk/id/local-authority/47UD,Redditch Borough Council,13/12/2013,197410,RBC812134,1325.00,Uk Event And Entertainment Services,5288,Exec. Director Prrh,Project Work,4733
http://statistics.data.gov.uk/id/local-authority/47UD,Redditch Borough Council,20/12/2013,197849,RBCF511134,200.00,Uk Event And Entertainment Services,5288,Executive Director Lec,Professional Fees,4352
http://statistics.data.gov.uk/id/local-authority/47UD,Redditch Borough Council,20/12/2013,197850,BBCF211132,200.00,Uk Event And Entertainment Services,5288,Executive Director Lec,Operation Equip- Hire & Rental,4151
http://statistics.data.gov.uk/id/local-authority/47UD,Redditch Borough Council,13/12/2013,197387,1301726/EG,550.00,Premex Services Ltd,5293,Internal Ins A/C,Third Party Claims,2941
http://statistics.data.gov.uk/id/local-authority/47UD,Redditch Borough Council,13/12/2013,197345,0011,660.00,Samantha Bayles,5301,Executive Director Lec,Casual Staff,3022
http://statistics.data.gov.uk/id/local-authority/47UD,Redditch Borough Council,13/12/2013,197439,IN7789,348.75,Matrix Scm Ltd,5367,Exec. Director Prrh,Agency Staff,3020
http://statistics.data.gov.uk/id/local-authority/47UD,Redditch Borough Council,13/12/2013,197439,IN7789,697.08,Matrix Scm Ltd,5367,Exec. Director Prrh,Agency Staff,3020
http://statistics.data.gov.uk/id/local-authority/47UD,Redditch Borough Council,13/12/2013,197439,IN7789,683.10,Matrix Scm Ltd,5367,Executive Director Lec,Agency Staff,3020
http://statistics.data.gov.uk/id/local-authority/47UD,Redditch Borough Council,13/12/2013,197439,IN7789,2115.96,Matrix Scm Ltd,5367,Executive Director Lec,Agency Staff,3020
http://statistics.data.gov.uk/id/local-authority/47UD,Redditch Borough Council,13/12/2013,197439,IN7789,6587.92,Matrix Scm Ltd,5367,Executive Director Lec,Agency Staff,3020
http://statistics.data.gov.uk/id/local-authority/47UD,Redditch Borough Council,13/12/2013,197439,IN7789,476.31,Matrix Scm Ltd,5367,Executive Director Lec,Agency Staff,3020
http://statistics.data.gov.uk/id/local-authority/47UD,Redditch Borough Council,13/12/2013,197439,IN7789,3016.43,Matrix Scm Ltd,5367,Executive Director Lec,Agency Staff,3020
http://statistics.data.gov.uk/id/local-authority/47UD,Redditch Borough Council,13/12/2013,197439,IN7789,645.25,Matrix Scm Ltd,5367,Executive Director Lec,Agency Staff,3020
http://statistics.data.gov.uk/id/local-authority/47UD,Redditch Borough Council,13/12/2013,197439,IN7789,1080.40,Matrix Scm Ltd,5367,Housing Repairs Account,Agency Staff,3020
http://statistics.data.gov.uk/id/local-authority/47UD,Redditch Borough Council,13/12/2013,197439,IN7789,2933.51,Matrix Scm Ltd,5367,Housing Repairs Account,Agency Staff,3020
http://statistics.data.gov.uk/id/local-authority/47UD,Redditch Borough Council,13/12/2013,197439,IN7789,964.27,Matrix Scm Ltd,5367,Housing Revenue Account,Agency Staff,3020
http://statistics.data.gov.uk/id/local-authority/47UD,Redditch Borough Council,13/12/2013,197439,IN7789,652.48,Matrix Scm Ltd,5367,Housing Revenue Account,Agency Staff,3020
http://statistics.data.gov.uk/id/local-authority/47UD,Redditch Borough Council,13/12/2013,197440,IN7853,683.10,Matrix Scm Ltd,5367,Executive Director Lec,Agency Staff,3020
http://statistics.data.gov.uk/id/local-authority/47UD,Redditch Borough Council,13/12/2013,197440,IN7853,3018.54,Matrix Scm Ltd,5367,Executive Director Lec,Agency Staff,3020
http://statistics.data.gov.uk/id/local-authority/47UD,Redditch Borough Council,13/12/2013,197440,IN7853,2837.78,Matrix Scm Ltd,5367,Executive Director Lec,Agency Staff,3020
http://statistics.data.gov.uk/id/local-authority/47UD,Redditch Borough Council,13/12/2013,197440,IN7853,88.35,Matrix Scm Ltd,5367,Executive Director Lec,Agency Staff,3020
http://statistics.data.gov.uk/id/local-authority/47UD,Redditch Borough Council,13/12/2013,197440,IN7853,761.25,Matrix Scm Ltd,5367,Executive Director Lec,Agency Staff,3020
http://statistics.data.gov.uk/id/local-authority/47UD,Redditch Borough Council,13/12/2013,197440,IN7853,1506.65,Matrix Scm Ltd,5367,Housing Repairs Account,Agency Staff,3020
http://statistics.data.gov.uk/id/local-authority/47UD,Redditch Borough Council,13/12/2013,197440,IN7853,2944.90,Matrix Scm Ltd,5367,Housing Repairs Account,Agency Staff,3020
http://statistics.data.gov.uk/id/local-authority/47UD,Redditch Borough Council,13/12/2013,197440,IN7853,534.20,Matrix Scm Ltd,5367,Housing Revenue Account,Agency Staff,3020
http://statistics.data.gov.uk/id/local-authority/47UD,Redditch Borough Council,20/12/2013,198014,IN7917,706.50,Matrix Scm Ltd,5367,Exec. Director Prrh,Agency Staff,3020
http://statistics.data.gov.uk/id/local-authority/47UD,Redditch Borough Council,20/12/2013,198014,IN7917,683.10,Matrix Scm Ltd,5367,Executive Director Lec,Agency Staff,3020
http://statistics.data.gov.uk/id/local-authority/47UD,Redditch Borough Council,20/12/2013,198014,IN7917,1946.35,Matrix Scm Ltd,5367,Executive Director Lec,Agency Staff,3020
http://statistics.data.gov.uk/id/local-authority/47UD,Redditch Borough Council,20/12/2013,198014,IN7917,808.92,Matrix Scm Ltd,5367,Executive Director Lec,Agency Staff,3020
http://statistics.data.gov.uk/id/local-authority/47UD,Redditch Borough Council,20/12/2013,198014,IN7917,507.29,Matrix Scm Ltd,5367,Executive Director Lec,Agency Staff,3020
http://statistics.data.gov.uk/id/local-authority/47UD,Redditch Borough Council,20/12/2013,198014,IN7917,348.75,Matrix Scm Ltd,5367,Housing Repairs Account,Agency Staff,3020
http://statistics.data.gov.uk/id/local-authority/47UD,Redditch Borough Council,20/12/2013,198014,IN7917,3231.27,Matrix Scm Ltd,5367,Housing Repairs Account,Agency Staff,3020
http://statistics.data.gov.uk/id/local-authority/47UD,Redditch Borough Council,20/12/2013,198014,IN7917,1711.20,Matrix Scm Ltd,5367,Housing Repairs Account,Agency Staff,3020
http://statistics.data.gov.uk/id/local-authority/47UD,Redditch Borough Council,20/12/2013,198014,IN7917,223.66,Matrix Scm Ltd,5367,Housing Revenue Account,Agency Staff,3020
http://statistics.data.gov.uk/id/local-authority/47UD,Redditch Borough Council,20/12/2013,198014,IN7917,587.62,Matrix Scm Ltd,5367,Housing Revenue Account,Agency Staff,3020
http://statistics.data.gov.uk/id/local-authority/47UD,Redditch Borough Council,13/12/2013,196782,F6563,1198.00,Hodges And Lawrence Ltd,5416,Executive Director Lec,Project Work,4733
http://statistics.data.gov.uk/id/local-authority/47UD,Redditch Borough Council,06/12/2013,195831,7009209696,49.13,Speedy Asset Services Limited,543,Housing Repairs Account,Materials,4170
http://statistics.data.gov.uk/id/local-authority/47UD,Redditch Borough Council,06/12/2013,195831,7009209696,40.58,Speedy Asset Services Limited,543,Housing Repairs Account,Materials,4170
http://statistics.data.gov.uk/id/local-authority/47UD,Redditch Borough Council,06/12/2013,196249,7009276750,1610.00,Speedy Asset Services Limited,543,Executive Director Lec,Operation Equip- Hire & Rental,4151
http://statistics.data.gov.uk/id/local-authority/47UD,Redditch Borough Council,06/12/2013,196251,7009276862,2944.15,Speedy Asset Services Limited,543,Executive Director Lec,Operation Equip- Hire & Rental,4151
http://statistics.data.gov.uk/id/local-authority/47UD,Redditch Borough Council,20/12/2013,196614,7009308419,3.30,Speedy Asset Services Limited,543,Housing Repairs Account,Materials,4170
http://statistics.data.gov.uk/id/local-authority/47UD,Redditch Borough Council,06/12/2013,195384,1628452,1928.09,Craemer Uk Limited,5471,Crossgate Stocks,Received Not Invoiced,2096
http://statistics.data.gov.uk/id/local-authority/47UD,Redditch Borough Council,13/12/2013,197301,0050/339026,28.98,Makro Food Service,5524,Executive Director Lec,Catering Provisions(Vat Exempt,4200
http://statistics.data.gov.uk/id/local-authority/47UD,Redditch Borough Council,13/12/2013,197301,0050/339026,28.98,Makro Food Service,5524,Executive Director Lec,Catering Provisions(Vat Exempt,4200
http://statistics.data.gov.uk/id/local-authority/47UD,Redditch Borough Council,13/12/2013,197301,0050/339026,127.92,Makro Food Service,5524,Executive Director Lec,Catering Provisions(Vat Exempt,4200
http://statistics.data.gov.uk/id/local-authority/47UD,Redditch Borough Council,13/12/2013,197301,0050/339026,92.95,Makro Food Service,5524,Executive Director Lec,Catering Provisions(Vat Exempt,4200
http://statistics.data.gov.uk/id/local-authority/47UD,Redditch Borough Council,13/12/2013,197301,0050/339026,83.98,Makro Food Service,5524,Executive Director Lec,Catering Provisions(Vat Exempt,4200
http://statistics.data.gov.uk/id/local-authority/47UD,Redditch Borough Council,13/12/2013,197301,0050/339026,41.99,Makro Food Service,5524,Executive Director Lec,Catering Provisions(Vat Exempt,4200
http://statistics.data.gov.uk/id/local-authority/47UD,Redditch Borough Council,13/12/2013,197301,0050/339026,74.36,Makro Food Service,5524,Executive Director Lec,Catering Provisions(Vat Exempt,4200
http://statistics.data.gov.uk/id/local-authority/47UD,Redditch Borough Council,13/12/2013,197301,0050/339026,17.97,Makro Food Service,5524,Executive Director Lec,Catering Provisions(Vat Exempt,4200
http://statistics.data.gov.uk/id/local-authority/47UD,Redditch Borough Council,13/12/2013,197301,0050/339026,27.45,Makro Food Service,5524,Executive Director Lec,Catering Provisions(Vat Exempt,4200
http://statistics.data.gov.uk/id/local-authority/47UD,Redditch Borough Council,06/12/2013,195345,6531,988.00,Maid Marions,5543,Executive Director Lec,Contract Cleaning,3600
http://statistics.data.gov.uk/id/local-authority/47UD,Redditch Borough Council,20/12/2013,196892,6687,877.50,Maid Marions,5543,Housing Revenue Account,Caretaking,3603
http://statistics.data.gov.uk/id/local-authority/47UD,Redditch Borough Council,20/12/2013,196892,6687,1950.00,Maid Marions,5543,Housing Revenue Account,Contract Cleaning,3600
http://statistics.data.gov.uk/id/local-authority/47UD,Redditch Borough Council,20/12/2013,196892,6687,975.00,Maid Marions,5543,Housing Revenue Account,Contract Cleaning,3600
http://statistics.data.gov.uk/id/local-authority/47UD,Redditch Borough Council,13/12/2013,197307,099520,500.00,Pete Burton,556,Executive Director Lec,Project Work,4733
http://statistics.data.gov.uk/id/local-authority/47UD,Redditch Borough Council,13/12/2013,197308,099519,300.00,Pete Burton,556,Executive Director Lec,Project Work,4733
http://statistics.data.gov.uk/id/local-authority/47UD,Redditch Borough Council,13/12/2013,197309,099521,400.00,Pete Burton,556,Executive Director Lec,Volunteer Costs,3206
http://statistics.data.gov.uk/id/local-authority/47UD,Redditch Borough Council,13/12/2013,197314,099522,80.00,Pete Burton,556,Executive Director Lec,Agency Staff,3020
http://statistics.data.gov.uk/id/local-authority/47UD,Redditch Borough Council,20/12/2013,195021,NS003686,1980.80,Progress Print Ltd,5577,Exec. Director Fin. & Resource,Misc. Expenses,4730
http://statistics.data.gov.uk/id/local-authority/47UD,Redditch Borough Council,06/12/2013,196924,11357,175.55,Pauls Electrical Services Ltd,559,Executive Director Lec,Operational Equip- Purchase,4150
http://statistics.data.gov.uk/id/local-authority/47UD,Redditch Borough Council,13/12/2013,196890,11265,7742.02,Pauls Electrical Services Ltd,559,Rbc Balance Sheet,Contract Payments,8131
http://statistics.data.gov.uk/id/local-authority/47UD,Redditch Borough Council,13/12/2013,196894,11261,1821.29,Pauls Electrical Services Ltd,559,Housing Repairs Account,Contractors,5158
http://statistics.data.gov.uk/id/local-authority/47UD,Redditch Borough Council,13/12/2013,196895,11264,870.73,Pauls Electrical Services Ltd,559,Housing Repairs Account,Contractors,5158
http://statistics.data.gov.uk/id/local-authority/47UD,Redditch Borough Council,13/12/2013,196896,11450,3094.00,Pauls Electrical Services Ltd,559,Housing Repairs Account,Contractors,5158
http://statistics.data.gov.uk/id/local-authority/47UD,Redditch Borough Council,13/12/2013,196897,11451,4291.00,Pauls Electrical Services Ltd,559,Housing Repairs Account,Contractors,5158
http://statistics.data.gov.uk/id/local-authority/47UD,Redditch Borough Council,13/12/2013,196898,11452,602.25,Pauls Electrical Services Ltd,559,Housing Repairs Account,Contractors,5158
http://statistics.data.gov.uk/id/local-authority/47UD,Redditch Borough Council,13/12/2013,196899,11263,4415.52,Pauls Electrical Services Ltd,559,Housing Repairs Account,Contractors,5158
http://statistics.data.gov.uk/id/local-authority/47UD,Redditch Borough Council,13/12/2013,196900,11262,1465.17,Pauls Electrical Services Ltd,559,Housing Repairs Account,Contractors,5158
http://statistics.data.gov.uk/id/local-authority/47UD,Redditch Borough Council,20/12/2013,197177,11485,3711.13,Pauls Electrical Services Ltd,559,Rbc Balance Sheet,Contract Payments,8131
http://statistics.data.gov.uk/id/local-authority/47UD,Redditch Borough Council,20/12/2013,197269,11476,136.11,Pauls Electrical Services Ltd,559,Executive Director Lec,Contractors,5158
http://statistics.data.gov.uk/id/local-authority/47UD,Redditch Borough Council,13/12/2013,197436,GRANT 2013/14,5000.00,Bromsgrove And Redditch Network,5680,Executive Director Lec,Grants To Voluntary Bodies,4661
http://statistics.data.gov.uk/id/local-authority/47UD,Redditch Borough Council,13/12/2013,196633,13688,959.19,Wavelength Stageco Ltd,5746,Executive Director Lec,Operation Equip- Hire & Rental,4151
http://statistics.data.gov.uk/id/local-authority/47UD,Redditch Borough Council,13/12/2013,196891,13701,959.19,Wavelength Stageco Ltd,5746,Executive Director Lec,Operation Equip- Hire & Rental,4151
http://statistics.data.gov.uk/id/local-authority/47UD,Redditch Borough Council,20/12/2013,197878,091213,920.00,Oasis Christian Centre,5747,Executive Director Lec,Contractors,5158
http://statistics.data.gov.uk/id/local-authority/47UD,Redditch Borough Council,13/12/2013,195444,9863,6150.00,Trash Uk Limited,5787,Executive Director Lec,Contractors,3701
http://statistics.data.gov.uk/id/local-authority/47UD,Redditch Borough Council,13/12/2013,194325,40568631,45.00,Evander Glazing And Locks,5788,Housing Repairs Account,Contractors,5158
http://statistics.data.gov.uk/id/local-authority/47UD,Redditch Borough Council,13/12/2013,194392,40568782,45.00,Evander Glazing And Locks,5788,Housing Repairs Account,Contractors,5158
http://statistics.data.gov.uk/id/local-authority/47UD,Redditch Borough Council,13/12/2013,194393,40568783,85.00,Evander Glazing And Locks,5788,Housing Repairs Account,Contractors,5158
http://statistics.data.gov.uk/id/local-authority/47UD,Redditch Borough Council,13/12/2013,194395,40568787,130.00,Evander Glazing And Locks,5788,Housing Repairs Account,Contractors,5158
http://statistics.data.gov.uk/id/local-authority/47UD,Redditch Borough Council,13/12/2013,194492,40568839,405.00,Evander Glazing And Locks,5788,Housing Repairs Account,Contractors,5158
http://statistics.data.gov.uk/id/local-authority/47UD,Redditch Borough Council,13/12/2013,194494,40568837,405.00,Evander Glazing And Locks,5788,Housing Repairs Account,Contractors,5158
http://statistics.data.gov.uk/id/local-authority/47UD,Redditch Borough Council,13/12/2013,194497,40568845,405.00,Evander Glazing And Locks,5788,Housing Repairs Account,Contractors,5158
http://statistics.data.gov.uk/id/local-authority/47UD,Redditch Borough Council,13/12/2013,194551,99535962,45.00,Evander Glazing And Locks,5788,Housing Repairs Account,Contractors,5158
http://statistics.data.gov.uk/id/local-authority/47UD,Redditch Borough Council,13/12/2013,194552,40568855,405.00,Evander Glazing And Locks,5788,Housing Repairs Account,Contractors,5158
http://statistics.data.gov.uk/id/local-authority/47UD,Redditch Borough Council,13/12/2013,194553,40568859,405.00,Evander Glazing And Locks,5788,Housing Repairs Account,Contractors,5158
http://statistics.data.gov.uk/id/local-authority/47UD,Redditch Borough Council,13/12/2013,194607,40568899,85.00,Evander Glazing And Locks,5788,Housing Repairs Account,Contractors,5158
http://statistics.data.gov.uk/id/local-authority/47UD,Redditch Borough Council,13/12/2013,195095,40568984,45.00,Evander Glazing And Locks,5788,Housing Repairs Account,Contractors,5158
http://statistics.data.gov.uk/id/local-authority/47UD,Redditch Borough Council,13/12/2013,195396,40569069,405.00,Evander Glazing And Locks,5788,Housing Repairs Account,Contractors,5158
http://statistics.data.gov.uk/id/local-authority/47UD,Redditch Borough Council,13/12/2013,195473,40569143,405.00,Evander Glazing And Locks,5788,Housing Repairs Account,Contractors,5158
http://statistics.data.gov.uk/id/local-authority/47UD,Redditch Borough Council,13/12/2013,196223,40569222,405.00,Evander Glazing And Locks,5788,Housing Repairs Account,Contractors,5158
http://statistics.data.gov.uk/id/local-authority/47UD,Redditch Borough Council,13/12/2013,196280,40569243,95.00,Evander Glazing And Locks,5788,Housing Repairs Account,Contractors,5158
http://statistics.data.gov.uk/id/local-authority/47UD,Redditch Borough Council,13/12/2013,196318,40569338,405.00,Evander Glazing And Locks,5788,Housing Repairs Account,Contractors,5158
http://statistics.data.gov.uk/id/local-authority/47UD,Redditch Borough Council,13/12/2013,196400,40569368,405.00,Evander Glazing And Locks,5788,Housing Repairs Account,Contractors,5158
http://statistics.data.gov.uk/id/local-authority/47UD,Redditch Borough Council,13/12/2013,197422,40569370,405.00,Evander Glazing And Locks,5788,Housing Repairs Account,Contractors,5158
http://statistics.data.gov.uk/id/local-authority/47UD,Redditch Borough Council,20/12/2013,196682,40569458,18.00,Evander Glazing And Locks,5788,Housing Repairs Account,Contractors,5158
http://statistics.data.gov.uk/id/local-authority/47UD,Redditch Borough Council,20/12/2013,196800,99538032,45.00,Evander Glazing And Locks,5788,Housing Repairs Account,Contractors,5158
http://statistics.data.gov.uk/id/local-authority/47UD,Redditch Borough Council,20/12/2013,196801,99538030,45.00,Evander Glazing And Locks,5788,Housing Repairs Account,Contractors,5158
http://statistics.data.gov.uk/id/local-authority/47UD,Redditch Borough Council,13/12/2013,196262,27073,4904.40,Harrold Jones Services,5804,Rbc Balance Sheet,Contract Payments,8131
http://statistics.data.gov.uk/id/local-authority/47UD,Redditch Borough Council,06/12/2013,196889,E32773539,69.20,Laser,5837,Exec. Director Fin. & Resource,Electricity,3300
http://statistics.data.gov.uk/id/local-authority/47UD,Redditch Borough Council,06/12/2013,196889,E32773539,113.93,Laser,5837,Exec. Director Fin. & Resource,Electricity,3300
http://statistics.data.gov.uk/id/local-authority/47UD,Redditch Borough Council,06/12/2013,196889,E32773539,71.72,Laser,5837,Exec. Director Fin. & Resource,Electricity,3300
http://statistics.data.gov.uk/id/local-authority/47UD,Redditch Borough Council,06/12/2013,196889,E32773539,1501.62,Laser,5837,Exec. Director Fin. & Resource,Electricity,3300
http://statistics.data.gov.uk/id/local-authority/47UD,Redditch Borough Council,06/12/2013,196889,E32773539,342.73,Laser,5837,Exec. Director Fin. & Resource,Electricity,3300
http://statistics.data.gov.uk/id/local-authority/47UD,Redditch Borough Council,06/12/2013,196889,E32773539,2.13,Laser,5837,Exec. Director Fin. & Resource,Electricity,3300
http://statistics.data.gov.uk/id/local-authority/47UD,Redditch Borough Council,06/12/2013,196889,E32773539,40.86,Laser,5837,Exec. Director Fin. & Resource,Electricity,3300
http://statistics.data.gov.uk/id/local-authority/47UD,Redditch Borough Council,06/12/2013,196889,E32773539,2.57,Laser,5837,Exec. Director Fin. & Resource,Electricity,3300
http://statistics.data.gov.uk/id/local-authority/47UD,Redditch Borough Council,06/12/2013,196889,E32773539,112.80,Laser,5837,Exec. Director Fin. & Resource,Electricity,3300
http://statistics.data.gov.uk/id/local-authority/47UD,Redditch Borough Council,06/12/2013,196889,E32773539,7080.18,Laser,5837,Exec. Director Fin. & Resource,Electricity,3300
http://statistics.data.gov.uk/id/local-authority/47UD,Redditch Borough Council,06/12/2013,196889,E32773539,92.85,Laser,5837,Exec. Director Fin. & Resource,Electricity,3300
http://statistics.data.gov.uk/id/local-authority/47UD,Redditch Borough Council,06/12/2013,196889,E32773539,67.53,Laser,5837,Exec. Director Fin. & Resource,Electricity,3300
http://statistics.data.gov.uk/id/local-authority/47UD,Redditch Borough Council,06/12/2013,196889,E32773539,55.29,Laser,5837,Exec. Director Fin. & Resource,Electricity,3300
http://statistics.data.gov.uk/id/local-authority/47UD,Redditch Borough Council,06/12/2013,196889,E32773539,34.38,Laser,5837,Exec. Director Fin. & Resource,Electricity,3300
http://statistics.data.gov.uk/id/local-authority/47UD,Redditch Borough Council,06/12/2013,196889,E32773539,401.01,Laser,5837,Exec. Director Fin. & Resource,Electricity,3300
http://statistics.data.gov.uk/id/local-authority/47UD,Redditch Borough Council,06/12/2013,196889,E32773539,1187.59,Laser,5837,Exec. Director Prrh,Electricity,3300
http://statistics.data.gov.uk/id/local-authority/47UD,Redditch Borough Council,06/12/2013,196889,E32773539,1004.97,Laser,5837,Exec. Director Prrh,Electricity,3300
http://statistics.data.gov.uk/id/local-authority/47UD,Redditch Borough Council,06/12/2013,196889,E32773539,26.13,Laser,5837,Exec. Director Prrh,Electricity,3300
http://statistics.data.gov.uk/id/local-authority/47UD,Redditch Borough Council,06/12/2013,196889,E32773539,10.13,Laser,5837,Exec. Director Prrh,Electricity,3300
http://statistics.data.gov.uk/id/local-authority/47UD,Redditch Borough Council,06/12/2013,196889,E32773539,795.31,Laser,5837,Executive Director Lec,Electricity,3300
http://statistics.data.gov.uk/id/local-authority/47UD,Redditch Borough Council,06/12/2013,196889,E32773539,7086.52,Laser,5837,Executive Director Lec,Electricity,3300
http://statistics.data.gov.uk/id/local-authority/47UD,Redditch Borough Council,06/12/2013,196889,E32773539,56.28,Laser,5837,Executive Director Lec,Electricity,3300
http://statistics.data.gov.uk/id/local-authority/47UD,Redditch Borough Council,06/12/2013,196889,E32773539,318.39,Laser,5837,Executive Director Lec,Electricity,3300
http://statistics.data.gov.uk/id/local-authority/47UD,Redditch Borough Council,06/12/2013,196889,E32773539,3.93,Laser,5837,Executive Director Lec,Electricity,3300
http://statistics.data.gov.uk/id/local-authority/47UD,Redditch Borough Council,06/12/2013,196889,E32773539,41.07,Laser,5837,Executive Director Lec,Electricity,3300
http://statistics.data.gov.uk/id/local-authority/47UD,Redditch Borough Council,06/12/2013,196889,E32773539,1124.90,Laser,5837,Executive Director Lec,Electricity,3300
http://statistics.data.gov.uk/id/local-authority/47UD,Redditch Borough Council,06/12/2013,196889,E32773539,76.38,Laser,5837,Executive Director Lec,Electricity,3300
http://statistics.data.gov.uk/id/local-authority/47UD,Redditch Borough Council,06/12/2013,196889,E32773539,-11425.98,Laser,5837,Executive Director Lec,Electricity,3300
http://statistics.data.gov.uk/id/local-authority/47UD,Redditch Borough Council,06/12/2013,196889,E32773539,2.69,Laser,5837,Executive Director Lec,Electricity,3300
http://statistics.data.gov.uk/id/local-authority/47UD,Redditch Borough Council,06/12/2013,196889,E32773539,628.77,Laser,5837,Executive Director Lec,Electricity,3300
http://statistics.data.gov.uk/id/local-authority/47UD,Redditch Borough Council,06/12/2013,196889,E32773539,1188.14,Laser,5837,Executive Director Lec,Electricity,3300
http://statistics.data.gov.uk/id/local-authority/47UD,Redditch Borough Council,06/12/2013,196889,E32773539,43.36,Laser,5837,Executive Director Lec,Electricity,3300
http://statistics.data.gov.uk/id/local-authority/47UD,Redditch Borough Council,06/12/2013,196889,E32773539,3.61,Laser,5837,Executive Director Lec,Electricity,3300
http://statistics.data.gov.uk/id/local-authority/47UD,Redditch Borough Council,06/12/2013,196889,E32773539,34.62,Laser,5837,Executive Director Lec,Electricity,3300
http://statistics.data.gov.uk/id/local-authority/47UD,Redditch Borough Council,06/12/2013,196889,E32773539,25.46,Laser,5837,Executive Director Lec,Electricity,3300
http://statistics.data.gov.uk/id/local-authority/47UD,Redditch Borough Council,06/12/2013,196889,E32773539,74.33,Laser,5837,Executive Director Lec,Electricity,3300
http://statistics.data.gov.uk/id/local-authority/47UD,Redditch Borough Council,06/12/2013,196889,E32773539,6.88,Laser,5837,Executive Director Lec,Electricity,3300
http://statistics.data.gov.uk/id/local-authority/47UD,Redditch Borough Council,06/12/2013,196889,E32773539,37.47,Laser,5837,Housing Revenue Account,Electricity,3300
http://statistics.data.gov.uk/id/local-authority/47UD,Redditch Borough Council,06/12/2013,196889,E32773539,5.88,Laser,5837,Housing Revenue Account,Electricity,3300
http://statistics.data.gov.uk/id/local-authority/47UD,Redditch Borough Council,06/12/2013,196889,E32773539,4.11,Laser,5837,Housing Revenue Account,Electricity,3300
http://statistics.data.gov.uk/id/local-authority/47UD,Redditch Borough Council,06/12/2013,196889,E32773539,21.25,Laser,5837,Housing Revenue Account,Electricity,3300
http://statistics.data.gov.uk/id/local-authority/47UD,Redditch Borough Council,06/12/2013,196889,E32773539,17.05,Laser,5837,Housing Revenue Account,Electricity,3300
http://statistics.data.gov.uk/id/local-authority/47UD,Redditch Borough Council,06/12/2013,196889,E32773539,9.84,Laser,5837,Housing Revenue Account,Electricity,3300
http://statistics.data.gov.uk/id/local-authority/47UD,Redditch Borough Council,06/12/2013,196889,E32773539,39.69,Laser,5837,Housing Revenue Account,Electricity,3300
http://statistics.data.gov.uk/id/local-authority/47UD,Redditch Borough Council,06/12/2013,196889,E32773539,4.63,Laser,5837,Housing Revenue Account,Electricity,3300
http://statistics.data.gov.uk/id/local-authority/47UD,Redditch Borough Council,06/12/2013,196889,E32773539,7.81,Laser,5837,Housing Revenue Account,Electricity,3300
http://statistics.data.gov.uk/id/local-authority/47UD,Redditch Borough Council,06/12/2013,196889,E32773539,31.30,Laser,5837,Housing Revenue Account,Electricity,3300
http://statistics.data.gov.uk/id/local-authority/47UD,Redditch Borough Council,06/12/2013,196889,E32773539,47.13,Laser,5837,Housing Revenue Account,Electricity,3300
http://statistics.data.gov.uk/id/local-authority/47UD,Redditch Borough Council,06/12/2013,196889,E32773539,20.06,Laser,5837,Housing Revenue Account,Electricity,3300
http://statistics.data.gov.uk/id/local-authority/47UD,Redditch Borough Council,06/12/2013,196889,E32773539,18.59,Laser,5837,Housing Revenue Account,Electricity,3300
http://statistics.data.gov.uk/id/local-authority/47UD,Redditch Borough Council,06/12/2013,196889,E32773539,266.73,Laser,5837,Housing Revenue Account,Electricity,3300
http://statistics.data.gov.uk/id/local-authority/47UD,Redditch Borough Council,06/12/2013,196889,E32773539,-3251.21,Laser,5837,Housing Revenue Account,Electricity,3300
http://statistics.data.gov.uk/id/local-authority/47UD,Redditch Borough Council,06/12/2013,196889,E32773539,85.57,Laser,5837,Housing Revenue Account,Electricity,3300
http://statistics.data.gov.uk/id/local-authority/47UD,Redditch Borough Council,06/12/2013,196889,E32773539,17.85,Laser,5837,Housing Revenue Account,Electricity,3300
http://statistics.data.gov.uk/id/local-authority/47UD,Redditch Borough Council,06/12/2013,196889,E32773539,225.54,Laser,5837,Housing Revenue Account,Electricity,3300
http://statistics.data.gov.uk/id/local-authority/47UD,Redditch Borough Council,06/12/2013,196889,E32773539,446.04,Laser,5837,Housing Revenue Account,Electricity,3300
http://statistics.data.gov.uk/id/local-authority/47UD,Redditch Borough Council,06/12/2013,196889,E32773539,2.61,Laser,5837,Housing Revenue Account,Electricity,3300
http://statistics.data.gov.uk/id/local-authority/47UD,Redditch Borough Council,06/12/2013,196889,E32773539,58.19,Laser,5837,Housing Revenue Account,Electricity,3300
http://statistics.data.gov.uk/id/local-authority/47UD,Redditch Borough Council,06/12/2013,196889,E32773539,-2724.73,Laser,5837,Housing Revenue Account,Electricity,3300
http://statistics.data.gov.uk/id/local-authority/47UD,Redditch Borough Council,06/12/2013,196889,E32773539,20.16,Laser,5837,Housing Revenue Account,Electricity,3300
http://statistics.data.gov.uk/id/local-authority/47UD,Redditch Borough Council,06/12/2013,196889,E32773539,-7.71,Laser,5837,Housing Revenue Account,Electricity,3300
http://statistics.data.gov.uk/id/local-authority/47UD,Redditch Borough Council,06/12/2013,196889,E32773539,45.88,Laser,5837,Housing Revenue Account,Electricity,3300
http://statistics.data.gov.uk/id/local-authority/47UD,Redditch Borough Council,06/12/2013,196889,E32773539,2893.87,Laser,5837,Housing Revenue Account,Electricity,3300
http://statistics.data.gov.uk/id/local-authority/47UD,Redditch Borough Council,06/12/2013,196889,E32773539,20.26,Laser,5837,Housing Revenue Account,Electricity,3300
http://statistics.data.gov.uk/id/local-authority/47UD,Redditch Borough Council,06/12/2013,196889,E32773539,99.23,Laser,5837,Housing Revenue Account,Electricity,3300
http://statistics.data.gov.uk/id/local-authority/47UD,Redditch Borough Council,06/12/2013,196889,E32773539,37.20,Laser,5837,Housing Revenue Account,Electricity,3300
http://statistics.data.gov.uk/id/local-authority/47UD,Redditch Borough Council,06/12/2013,196889,E32773539,41.05,Laser,5837,Housing Revenue Account,Electricity,3300
http://statistics.data.gov.uk/id/local-authority/47UD,Redditch Borough Council,06/12/2013,196889,E32773539,81.93,Laser,5837,Housing Revenue Account,Electricity,3300
http://statistics.data.gov.uk/id/local-authority/47UD,Redditch Borough Council,06/12/2013,196889,E32773539,5.02,Laser,5837,Housing Revenue Account,Electricity,3300
http://statistics.data.gov.uk/id/local-authority/47UD,Redditch Borough Council,06/12/2013,196889,E32773539,8.93,Laser,5837,Housing Revenue Account,Electricity,3300
http://statistics.data.gov.uk/id/local-authority/47UD,Redditch Borough Council,06/12/2013,196889,E32773539,43.44,Laser,5837,Housing Revenue Account,Electricity,3300
http://statistics.data.gov.uk/id/local-authority/47UD,Redditch Borough Council,06/12/2013,196889,E32773539,48.32,Laser,5837,Housing Revenue Account,Electricity,3300
http://statistics.data.gov.uk/id/local-authority/47UD,Redditch Borough Council,06/12/2013,196889,E32773539,34.41,Laser,5837,Housing Revenue Account,Electricity,3300
http://statistics.data.gov.uk/id/local-authority/47UD,Redditch Borough Council,06/12/2013,196889,E32773539,7.18,Laser,5837,Housing Revenue Account,Electricity,3300
http://statistics.data.gov.uk/id/local-authority/47UD,Redditch Borough Council,06/12/2013,196889,E32773539,12.77,Laser,5837,Housing Revenue Account,Electricity,3300
http://statistics.data.gov.uk/id/local-authority/47UD,Redditch Borough Council,06/12/2013,196889,E32773539,35.16,Laser,5837,Housing Revenue Account,Electricity,3300
http://statistics.data.gov.uk/id/local-authority/47UD,Redditch Borough Council,06/12/2013,196889,E32773539,72.37,Laser,5837,Housing Revenue Account,Electricity,3300
http://statistics.data.gov.uk/id/local-authority/47UD,Redditch Borough Council,06/12/2013,196889,E32773539,54.80,Laser,5837,Housing Revenue Account,Electricity,3300
http://statistics.data.gov.uk/id/local-authority/47UD,Redditch Borough Council,06/12/2013,196889,E32773539,25.49,Laser,5837,Housing Revenue Account,Electricity,3300
http://statistics.data.gov.uk/id/local-authority/47UD,Redditch Borough Council,06/12/2013,196889,E32773539,31.41,Laser,5837,Housing Revenue Account,Electricity,3300
http://statistics.data.gov.uk/id/local-authority/47UD,Redditch Borough Council,06/12/2013,196889,E32773539,-59.96,Laser,5837,Housing Revenue Account,Electricity,3300
http://statistics.data.gov.uk/id/local-authority/47UD,Redditch Borough Council,06/12/2013,196889,E32773539,13.15,Laser,5837,Housing Revenue Account,Electricity,3300
http://statistics.data.gov.uk/id/local-authority/47UD,Redditch Borough Council,06/12/2013,196889,E32773539,48.21,Laser,5837,Housing Revenue Account,Electricity,3300
http://statistics.data.gov.uk/id/local-authority/47UD,Redditch Borough Council,06/12/2013,196889,E32773539,-67.82,Laser,5837,Housing Revenue Account,Electricity,3300
http://statistics.data.gov.uk/id/local-authority/47UD,Redditch Borough Council,06/12/2013,196889,E32773539,85.20,Laser,5837,Housing Revenue Account,Electricity,3300
http://statistics.data.gov.uk/id/local-authority/47UD,Redditch Borough Council,06/12/2013,196889,E32773539,4.74,Laser,5837,Housing Revenue Account,Electricity,3300
http://statistics.data.gov.uk/id/local-authority/47UD,Redditch Borough Council,06/12/2013,196889,E32773539,1.05,Laser,5837,Housing Revenue Account,Electricity,3300
http://statistics.data.gov.uk/id/local-authority/47UD,Redditch Borough Council,06/12/2013,196889,E32773539,78.68,Laser,5837,Housing Revenue Account,Electricity,3300
http://statistics.data.gov.uk/id/local-authority/47UD,Redditch Borough Council,06/12/2013,196889,E32773539,22.45,Laser,5837,Housing Revenue Account,Electricity,3300
http://statistics.data.gov.uk/id/local-authority/47UD,Redditch Borough Council,06/12/2013,196889,E32773539,35.25,Laser,5837,Housing Revenue Account,Electricity,3300
http://statistics.data.gov.uk/id/local-authority/47UD,Redditch Borough Council,06/12/2013,196889,E32773539,430.86,Laser,5837,Housing Revenue Account,Electricity,3300
http://statistics.data.gov.uk/id/local-authority/47UD,Redditch Borough Council,06/12/2013,196889,E32773539,84.70,Laser,5837,Housing Revenue Account,Electricity,3300
http://statistics.data.gov.uk/id/local-authority/47UD,Redditch Borough Council,06/12/2013,196889,E32773539,34.14,Laser,5837,Housing Revenue Account,Electricity,3300
http://statistics.data.gov.uk/id/local-authority/47UD,Redditch Borough Council,06/12/2013,196889,E32773539,46.59,Laser,5837,Housing Revenue Account,Electricity,3300
http://statistics.data.gov.uk/id/local-authority/47UD,Redditch Borough Council,06/12/2013,196889,E32773539,53.52,Laser,5837,Housing Revenue Account,Electricity,3300
http://statistics.data.gov.uk/id/local-authority/47UD,Redditch Borough Council,06/12/2013,196889,E32773539,-10.55,Laser,5837,Housing Revenue Account,Electricity,3300
http://statistics.data.gov.uk/id/local-authority/47UD,Redditch Borough Council,06/12/2013,196889,E32773539,-59.40,Laser,5837,Housing Revenue Account,Electricity,3300
http://statistics.data.gov.uk/id/local-authority/47UD,Redditch Borough Council,06/12/2013,196889,E32773539,59.70,Laser,5837,Housing Revenue Account,Electricity,3300
http://statistics.data.gov.uk/id/local-authority/47UD,Redditch Borough Council,06/12/2013,196889,E32773539,35.84,Laser,5837,Housing Revenue Account,Electricity,3300
http://statistics.data.gov.uk/id/local-authority/47UD,Redditch Borough Council,06/12/2013,196889,E32773539,17.77,Laser,5837,Housing Revenue Account,Electricity,3300
http://statistics.data.gov.uk/id/local-authority/47UD,Redditch Borough Council,06/12/2013,196889,E32773539,-18.58,Laser,5837,Housing Revenue Account,Electricity,3300
http://statistics.data.gov.uk/id/local-authority/47UD,Redditch Borough Council,06/12/2013,196889,E32773539,20.98,Laser,5837,Housing Revenue Account,Electricity,3300
http://statistics.data.gov.uk/id/local-authority/47UD,Redditch Borough Council,06/12/2013,196889,E32773539,9.63,Laser,5837,Housing Revenue Account,Electricity,3300
http://statistics.data.gov.uk/id/local-authority/47UD,Redditch Borough Council,06/12/2013,196889,E32773539,106.26,Laser,5837,Housing Revenue Account,Electricity,3300
http://statistics.data.gov.uk/id/local-authority/47UD,Redditch Borough Council,06/12/2013,196889,E32773539,-0.93,Laser,5837,Housing Revenue Account,Electricity,3300
http://statistics.data.gov.uk/id/local-authority/47UD,Redditch Borough Council,06/12/2013,196889,E32773539,27.55,Laser,5837,Housing Revenue Account,Electricity,3300
http://statistics.data.gov.uk/id/local-authority/47UD,Redditch Borough Council,06/12/2013,196889,E32773539,52.50,Laser,5837,Housing Revenue Account,Electricity,3300
http://statistics.data.gov.uk/id/local-authority/47UD,Redditch Borough Council,06/12/2013,196889,E32773539,49.79,Laser,5837,Housing Revenue Account,Electricity,3300
http://statistics.data.gov.uk/id/local-authority/47UD,Redditch Borough Council,06/12/2013,196889,E32773539,7.75,Laser,5837,Housing Revenue Account,Electricity,3300
http://statistics.data.gov.uk/id/local-authority/47UD,Redditch Borough Council,06/12/2013,196889,E32773539,825.15,Laser,5837,Housing Revenue Account,Electricity,3300
http://statistics.data.gov.uk/id/local-authority/47UD,Redditch Borough Council,06/12/2013,196889,E32773539,374.77,Laser,5837,Housing Revenue Account,Electricity,3300
http://statistics.data.gov.uk/id/local-authority/47UD,Redditch Borough Council,06/12/2013,196889,E32773539,105.61,Laser,5837,Housing Revenue Account,Electricity,3300
http://statistics.data.gov.uk/id/local-authority/47UD,Redditch Borough Council,06/12/2013,196889,E32773539,44.01,Laser,5837,Housing Revenue Account,Electricity,3300
http://statistics.data.gov.uk/id/local-authority/47UD,Redditch Borough Council,06/12/2013,196914,G3273540,150.47,Laser,5837,Exec. Director Fin. & Resource,Gas,3301
http://statistics.data.gov.uk/id/local-authority/47UD,Redditch Borough Council,06/12/2013,196914,G3273540,1419.08,Laser,5837,Exec. Director Fin. & Resource,Gas,3301
http://statistics.data.gov.uk/id/local-authority/47UD,Redditch Borough Council,06/12/2013,196914,G3273540,37.02,Laser,5837,Exec. Director Fin. & Resource,Gas,3301
http://statistics.data.gov.uk/id/local-authority/47UD,Redditch Borough Council,06/12/2013,196914,G3273540,626.77,Laser,5837,Exec. Director Fin. & Resource,Gas,3301
http://statistics.data.gov.uk/id/local-authority/47UD,Redditch Borough Council,06/12/2013,196914,G3273540,1616.36,Laser,5837,Exec. Director Fin. & Resource,Gas,3301
http://statistics.data.gov.uk/id/local-authority/47UD,Redditch Borough Council,06/12/2013,196914,G3273540,2.17,Laser,5837,Exec. Director Fin. & Resource,Gas,3301
http://statistics.data.gov.uk/id/local-authority/47UD,Redditch Borough Council,06/12/2013,196914,G3273540,55.78,Laser,5837,Exec. Director Fin. & Resource,Gas,3301
http://statistics.data.gov.uk/id/local-authority/47UD,Redditch Borough Council,06/12/2013,196914,G3273540,100.27,Laser,5837,Exec. Director Fin. & Resource,Gas,3301
http://statistics.data.gov.uk/id/local-authority/47UD,Redditch Borough Council,06/12/2013,196914,G3273540,919.97,Laser,5837,Exec. Director Prrh,Gas,3301
http://statistics.data.gov.uk/id/local-authority/47UD,Redditch Borough Council,06/12/2013,196914,G3273540,487.55,Laser,5837,Exec. Director Prrh,Gas,3301
http://statistics.data.gov.uk/id/local-authority/47UD,Redditch Borough Council,06/12/2013,196914,G3273540,1166.65,Laser,5837,Exec. Director Prrh,Gas,3301
http://statistics.data.gov.uk/id/local-authority/47UD,Redditch Borough Council,06/12/2013,196914,G3273540,5653.30,Laser,5837,Executive Director Lec,Gas,3301
http://statistics.data.gov.uk/id/local-authority/47UD,Redditch Borough Council,06/12/2013,196914,G3273540,124.29,Laser,5837,Executive Director Lec,Gas,3301
http://statistics.data.gov.uk/id/local-authority/47UD,Redditch Borough Council,06/12/2013,196914,G3273540,596.19,Laser,5837,Executive Director Lec,Gas,3301
http://statistics.data.gov.uk/id/local-authority/47UD,Redditch Borough Council,06/12/2013,196914,G3273540,2330.52,Laser,5837,Executive Director Lec,Gas,3301
http://statistics.data.gov.uk/id/local-authority/47UD,Redditch Borough Council,06/12/2013,196914,G3273540,25.44,Laser,5837,Executive Director Lec,Gas,3301
http://statistics.data.gov.uk/id/local-authority/47UD,Redditch Borough Council,06/12/2013,196914,G3273540,825.67,Laser,5837,Executive Director Lec,Gas,3301
http://statistics.data.gov.uk/id/local-authority/47UD,Redditch Borough Council,06/12/2013,196914,G3273540,174.07,Laser,5837,Executive Director Lec,Gas,3301
http://statistics.data.gov.uk/id/local-authority/47UD,Redditch Borough Council,06/12/2013,196914,G3273540,223.40,Laser,5837,Executive Director Lec,Gas,3301
http://statistics.data.gov.uk/id/local-authority/47UD,Redditch Borough Council,06/12/2013,196914,G3273540,474.04,Laser,5837,Executive Director Lec,Gas,3301
http://statistics.data.gov.uk/id/local-authority/47UD,Redditch Borough Council,06/12/2013,196914,G3273540,72.54,Laser,5837,Executive Director Lec,Gas,3301
http://statistics.data.gov.uk/id/local-authority/47UD,Redditch Borough Council,06/12/2013,196914,G3273540,153.52,Laser,5837,Executive Director Lec,Gas,3301
http://statistics.data.gov.uk/id/local-authority/47UD,Redditch Borough Council,06/12/2013,196914,G3273540,145.49,Laser,5837,Executive Director Lec,Gas,3301
http://statistics.data.gov.uk/id/local-authority/47UD,Redditch Borough Council,06/12/2013,196914,G3273540,114.51,Laser,5837,Executive Director Lec,Gas,3301
http://statistics.data.gov.uk/id/local-authority/47UD,Redditch Borough Council,06/12/2013,196914,G3273540,226.67,Laser,5837,Housing Revenue Account,Gas,3301
http://statistics.data.gov.uk/id/local-authority/47UD,Redditch Borough Council,06/12/2013,196914,G3273540,8.11,Laser,5837,Housing Revenue Account,Gas,3301
http://statistics.data.gov.uk/id/local-authority/47UD,Redditch Borough Council,06/12/2013,196914,G3273540,86.75,Laser,5837,Housing Revenue Account,Gas,3301
http://statistics.data.gov.uk/id/local-authority/47UD,Redditch Borough Council,06/12/2013,196914,G3273540,934.10,Laser,5837,Housing Revenue Account,Gas,3301
http://statistics.data.gov.uk/id/local-authority/47UD,Redditch Borough Council,06/12/2013,196914,G3273540,4.45,Laser,5837,Housing Revenue Account,Gas,3301
http://statistics.data.gov.uk/id/local-authority/47UD,Redditch Borough Council,06/12/2013,196914,G3273540,2.17,Laser,5837,Housing Revenue Account,Gas,3301
http://statistics.data.gov.uk/id/local-authority/47UD,Redditch Borough Council,06/12/2013,196914,G3273540,9.92,Laser,5837,Housing Revenue Account,Gas,3301
http://statistics.data.gov.uk/id/local-authority/47UD,Redditch Borough Council,06/12/2013,196914,G3273540,249.51,Laser,5837,Housing Revenue Account,Gas,3301
http://statistics.data.gov.uk/id/local-authority/47UD,Redditch Borough Council,06/12/2013,196914,G3273540,867.84,Laser,5837,Housing Revenue Account,Gas,3301
http://statistics.data.gov.uk/id/local-authority/47UD,Redditch Borough Council,06/12/2013,196914,G3273540,52.50,Laser,5837,Housing Revenue Account,Gas,3301
http://statistics.data.gov.uk/id/local-authority/47UD,Redditch Borough Council,06/12/2013,196914,G3273540,154.20,Laser,5837,Housing Revenue Account,Gas,3301
http://statistics.data.gov.uk/id/local-authority/47UD,Redditch Borough Council,06/12/2013,196914,G3273540,458.96,Laser,5837,Housing Revenue Account,Gas,3301
http://statistics.data.gov.uk/id/local-authority/47UD,Redditch Borough Council,06/12/2013,196914,G3273540,58.72,Laser,5837,Housing Revenue Account,Gas,3301
http://statistics.data.gov.uk/id/local-authority/47UD,Redditch Borough Council,06/12/2013,196914,G3273540,832.55,Laser,5837,Housing Revenue Account,Gas,3301
http://statistics.data.gov.uk/id/local-authority/47UD,Redditch Borough Council,06/12/2013,196914,G3273540,1077.45,Laser,5837,Housing Revenue Account,Gas,3301
http://statistics.data.gov.uk/id/local-authority/47UD,Redditch Borough Council,06/12/2013,196914,G3273540,42.47,Laser,5837,Housing Revenue Account,Gas,3301
http://statistics.data.gov.uk/id/local-authority/47UD,Redditch Borough Council,06/12/2013,196914,G3273540,1561.45,Laser,5837,Housing Revenue Account,Gas,3301
http://statistics.data.gov.uk/id/local-authority/47UD,Redditch Borough Council,06/12/2013,196929,STLTG3273541,6.96,Laser,5837,Executive Director Lec,Electricity,3300
http://statistics.data.gov.uk/id/local-authority/47UD,Redditch Borough Council,06/12/2013,196929,STLTG3273541,0.08,Laser,5837,Executive Director Lec,Electricity,3300
http://statistics.data.gov.uk/id/local-authority/47UD,Redditch Borough Council,06/12/2013,196929,STLTG3273541,221.96,Laser,5837,Executive Director Lec,Electricity,3300
http://statistics.data.gov.uk/id/local-authority/47UD,Redditch Borough Council,06/12/2013,196929,STLTG3273541,1.44,Laser,5837,Executive Director Lec,Electricity,3300
http://statistics.data.gov.uk/id/local-authority/47UD,Redditch Borough Council,06/12/2013,196929,STLTG3273541,510.41,Laser,5837,Executive Director Lec,Electricity,3300
http://statistics.data.gov.uk/id/local-authority/47UD,Redditch Borough Council,06/12/2013,196929,STLTG3273541,544.08,Laser,5837,Executive Director Lec,Electricity,3300
http://statistics.data.gov.uk/id/local-authority/47UD,Redditch Borough Council,06/12/2013,196929,STLTG3273541,735.47,Laser,5837,Executive Director Lec,Electricity,3300
http://statistics.data.gov.uk/id/local-authority/47UD,Redditch Borough Council,06/12/2013,196929,STLTG3273541,17.91,Laser,5837,Executive Director Lec,Electricity,3300
http://statistics.data.gov.uk/id/local-authority/47UD,Redditch Borough Council,06/12/2013,196929,STLTG3273541,212.11,Laser,5837,Housing Revenue Account,Electricity,3300
http://statistics.data.gov.uk/id/local-authority/47UD,Redditch Borough Council,06/12/2013,196356,11236,4540.00,Jubilee Fireworks,5838,Executive Director Lec,Operational Equip- Purchase,4150
http://statistics.data.gov.uk/id/local-authority/47UD,Redditch Borough Council,06/12/2013,196359,11235,4540.00,Jubilee Fireworks,5838,Executive Director Lec,Operational Equip- Purchase,4150
http://statistics.data.gov.uk/id/local-authority/47UD,Redditch Borough Council,06/12/2013,196217,A1051960,29.63,"Newsquest (Midlands, Wales & South West) Ltd",584,Executive Director Lec,Advertising,4735
http://statistics.data.gov.uk/id/local-authority/47UD,Redditch Borough Council,13/12/2013,196216,A1051959,29.97,"Newsquest (Midlands, Wales & South West) Ltd",584,Executive Director Lec,Advertising,4735
http://statistics.data.gov.uk/id/local-authority/47UD,Redditch Borough Council,13/12/2013,197413,6156027,83.13,"Newsquest (Midlands, Wales & South West) Ltd",584,Executive Director Lec,Advertising,4735
http://statistics.data.gov.uk/id/local-authority/47UD,Redditch Borough Council,13/12/2013,197413,6156027,11.87,"Newsquest (Midlands, Wales & South West) Ltd",584,Executive Director Lec,Advertising,4735
http://statistics.data.gov.uk/id/local-authority/47UD,Redditch Borough Council,20/12/2013,191829,5953862,308.00,"Newsquest (Midlands, Wales & South West) Ltd",584,Executive Director Lec,Advertising,4735
http://statistics.data.gov.uk/id/local-authority/47UD,Redditch Borough Council,20/12/2013,192597,5975591,308.00,"Newsquest (Midlands, Wales & South West) Ltd",584,Executive Director Lec,Advertising,4735
http://statistics.data.gov.uk/id/local-authority/47UD,Redditch Borough Council,20/12/2013,192598,5975540,95.00,"Newsquest (Midlands, Wales & South West) Ltd",584,Executive Director Lec,Advertising,4735
http://statistics.data.gov.uk/id/local-authority/47UD,Redditch Borough Council,20/12/2013,197820,6090272,100.00,"Newsquest (Midlands, Wales & South West) Ltd",584,Executive Director Lec,Advertising,4735
http://statistics.data.gov.uk/id/local-authority/47UD,Redditch Borough Council,13/12/2013,196880,NG101131,4000.00,Newgap,585,Executive Director Lec,Other Works,5161
http://statistics.data.gov.uk/id/local-authority/47UD,Redditch Borough Council,20/12/2013,197150,DRBGM4456,850.00,Drb Facilities Management Ltd,5883,Rbc Balance Sheet,Contract Payments,8131
http://statistics.data.gov.uk/id/local-authority/47UD,Redditch Borough Council,13/12/2013,197340,NOV13,212.76,Bromsgrove Gymnastics Club,5892,Executive Director Lec,Casual Staff,3022
http://statistics.data.gov.uk/id/local-authority/47UD,Redditch Borough Council,13/12/2013,197340,NOV13,153.66,Bromsgrove Gymnastics Club,5892,Executive Director Lec,Casual Staff,3022
http://statistics.data.gov.uk/id/local-authority/47UD,Redditch Borough Council,13/12/2013,197340,NOV13,307.32,Bromsgrove Gymnastics Club,5892,Executive Director Lec,Casual Staff,3022
http://statistics.data.gov.uk/id/local-authority/47UD,Redditch Borough Council,13/12/2013,197340,NOV13,14.20,Bromsgrove Gymnastics Club,5892,Executive Director Lec,Casual Staff,3022
http://statistics.data.gov.uk/id/local-authority/47UD,Redditch Borough Council,06/12/2013,196371,11729,1235.00,Wychavon Leisure Community Association,5911,Executive Director Lec,Hire Of Premises,3351
http://statistics.data.gov.uk/id/local-authority/47UD,Redditch Borough Council,13/12/2013,196790,TH00995,1500.00,Trevor Hill Falconry,5928,Exec. Director Prrh,Project Work,4733
http://statistics.data.gov.uk/id/local-authority/47UD,Redditch Borough Council,20/12/2013,197873,010,370.00,Rubery Festival,5931,Executive Director Lec,Operation Equip- Hire & Rental,4151
http://statistics.data.gov.uk/id/local-authority/47UD,Redditch Borough Council,20/12/2013,197874,011,200.00,Rubery Festival,5931,Executive Director Lec,Professional Fees,4352
http://statistics.data.gov.uk/id/local-authority/47UD,Redditch Borough Council,20/12/2013,197874,011,100.00,Rubery Festival,5931,Executive Director Lec,Professional Fees,4352
http://statistics.data.gov.uk/id/local-authority/47UD,Redditch Borough Council,06/12/2013,195304,920661694,537.37,Cryo Service Limited,5951,Executive Director Lec,Materials,4170
http://statistics.data.gov.uk/id/local-authority/47UD,Redditch Borough Council,06/12/2013,195426,680575,373.75,Morgan Hunt Recruitment,596,Exec. Director Prrh,Agency Staff,3020
http://statistics.data.gov.uk/id/local-authority/47UD,Redditch Borough Council,06/12/2013,195874,682266,690.00,Morgan Hunt Recruitment,596,Exec. Director Prrh,Agency Staff,3020
http://statistics.data.gov.uk/id/local-authority/47UD,Redditch Borough Council,06/12/2013,196332,683922,708.75,Morgan Hunt Recruitment,596,Housing Revenue Account,Agency Staff,3020
http://statistics.data.gov.uk/id/local-authority/47UD,Redditch Borough Council,13/12/2013,196334,683921,701.50,Morgan Hunt Recruitment,596,Exec. Director Prrh,Agency Staff,3020
http://statistics.data.gov.uk/id/local-authority/47UD,Redditch Borough Council,13/12/2013,196710,685605,816.50,Morgan Hunt Recruitment,596,Exec. Director Prrh,Agency Staff,3020
http://statistics.data.gov.uk/id/local-authority/47UD,Redditch Borough Council,20/12/2013,196712,685606,782.25,Morgan Hunt Recruitment,596,Housing Revenue Account,Agency Staff,3020
http://statistics.data.gov.uk/id/local-authority/47UD,Redditch Borough Council,20/12/2013,197167,687383,29.15,Morgan Hunt Recruitment,596,Housing Revenue Account,Agency Staff,3020
http://statistics.data.gov.uk/id/local-authority/47UD,Redditch Borough Council,20/12/2013,197168,687385,798.00,Morgan Hunt Recruitment,596,Housing Revenue Account,Agency Staff,3020
http://statistics.data.gov.uk/id/local-authority/47UD,Redditch Borough Council,20/12/2013,198030,111 PROSPECT RD,575.00,Westfields,5978,Exec. Director Fin. & Resource,Misc Exp Non Vat,4723
http://statistics.data.gov.uk/id/local-authority/47UD,Redditch Borough Council,20/12/2013,198030,111 PROSPECT RD,575.00,Westfields,5978,Exec. Director Prrh,Rent Deposit Scheme,4701
http://statistics.data.gov.uk/id/local-authority/47UD,Redditch Borough Council,20/12/2013,198017,NOV 13,106.40,National Westminster Bank Plc,6015,Chief Executive,Computer Equipment,4506
http://statistics.data.gov.uk/id/local-authority/47UD,Redditch Borough Council,20/12/2013,198017,NOV 13,12.12,National Westminster Bank Plc,6015,Exec. Director Fin. & Resource,Hospitality,4603
http://statistics.data.gov.uk/id/local-authority/47UD,Redditch Borough Council,20/12/2013,198017,NOV 13,324.00,National Westminster Bank Plc,6015,Exec. Director Fin. & Resource,Legal Fees,4350
http://statistics.data.gov.uk/id/local-authority/47UD,Redditch Borough Council,20/12/2013,198017,NOV 13,117.00,National Westminster Bank Plc,6015,Exec. Director Fin. & Resource,Legal Fees,4350
http://statistics.data.gov.uk/id/local-authority/47UD,Redditch Borough Council,20/12/2013,198017,NOV 13,159.12,National Westminster Bank Plc,6015,Exec. Director Fin. & Resource,Misc. Expenses,4730
http://statistics.data.gov.uk/id/local-authority/47UD,Redditch Borough Council,20/12/2013,198017,NOV 13,3719.12,National Westminster Bank Plc,6015,Exec. Director Fin. & Resource,Misc Exp Non Vat,4723
http://statistics.data.gov.uk/id/local-authority/47UD,Redditch Borough Council,20/12/2013,198017,NOV 13,46.67,National Westminster Bank Plc,6015,Exec. Director Fin. & Resource,Office Equipment Purchase,4000
http://statistics.data.gov.uk/id/local-authority/47UD,Redditch Borough Council,20/12/2013,198017,NOV 13,25.00,National Westminster Bank Plc,6015,Exec. Director Prrh,Operational Equip- Purchase,4150
http://statistics.data.gov.uk/id/local-authority/47UD,Redditch Borough Council,20/12/2013,198017,NOV 13,-10.00,National Westminster Bank Plc,6015,Exec. Director Prrh,Temporary Accomodation,4557
http://statistics.data.gov.uk/id/local-authority/47UD,Redditch Borough Council,20/12/2013,198017,NOV 13,260.41,National Westminster Bank Plc,6015,Exec. Director Prrh,Training,3043
http://statistics.data.gov.uk/id/local-authority/47UD,Redditch Borough Council,20/12/2013,198017,NOV 13,227.50,National Westminster Bank Plc,6015,Executive Director Lec,Materials (Veh),3700
http://statistics.data.gov.uk/id/local-authority/47UD,Redditch Borough Council,20/12/2013,198017,NOV 13,548.00,National Westminster Bank Plc,6015,Executive Director Lec,Materials (Veh),3700
http://statistics.data.gov.uk/id/local-authority/47UD,Redditch Borough Council,20/12/2013,198017,NOV 13,322.00,National Westminster Bank Plc,6015,Executive Director Lec,Materials (Veh),3700
http://statistics.data.gov.uk/id/local-authority/47UD,Redditch Borough Council,20/12/2013,198017,NOV 13,222.50,National Westminster Bank Plc,6015,Executive Director Lec,Mechanics Recharge,3702
http://statistics.data.gov.uk/id/local-authority/47UD,Redditch Borough Council,20/12/2013,198017,NOV 13,205.00,National Westminster Bank Plc,6015,Executive Director Lec,Office Consumables,4304
http://statistics.data.gov.uk/id/local-authority/47UD,Redditch Borough Council,20/12/2013,198017,NOV 13,5.94,National Westminster Bank Plc,6015,Executive Director Lec,Office Equipment Purchase,4000
http://statistics.data.gov.uk/id/local-authority/47UD,Redditch Borough Council,20/12/2013,198017,NOV 13,343.77,National Westminster Bank Plc,6015,Executive Director Lec,Operational Equip- Purchase,4150
http://statistics.data.gov.uk/id/local-authority/47UD,Redditch Borough Council,20/12/2013,198017,NOV 13,341.48,National Westminster Bank Plc,6015,Executive Director Lec,Operational Equip- Purchase,4150
http://statistics.data.gov.uk/id/local-authority/47UD,Redditch Borough Council,20/12/2013,198017,NOV 13,34.06,National Westminster Bank Plc,6015,Executive Director Lec,Operational Equip- Purchase,4150
http://statistics.data.gov.uk/id/local-authority/47UD,Redditch Borough Council,20/12/2013,198017,NOV 13,71.99,National Westminster Bank Plc,6015,Executive Director Lec,Operational Equip- Purchase,4150
http://statistics.data.gov.uk/id/local-authority/47UD,Redditch Borough Council,20/12/2013,198017,NOV 13,21.95,National Westminster Bank Plc,6015,Executive Director Lec,Operational Equip- Purchase,4150
http://statistics.data.gov.uk/id/local-authority/47UD,Redditch Borough Council,20/12/2013,198017,NOV 13,14.02,National Westminster Bank Plc,6015,Executive Director Lec,Operational Equip- Purchase,4150
http://statistics.data.gov.uk/id/local-authority/47UD,Redditch Borough Council,20/12/2013,198017,NOV 13,137.00,National Westminster Bank Plc,6015,Housing Repairs Account,Materials (Veh),3700
http://statistics.data.gov.uk/id/local-authority/47UD,Redditch Borough Council,20/12/2013,198017,NOV 13,285.00,National Westminster Bank Plc,6015,Housing Revenue Account,Legal Fees,4350
http://statistics.data.gov.uk/id/local-authority/47UD,Redditch Borough Council,20/12/2013,198017,NOV 13,133.32,National Westminster Bank Plc,6015,Housing Revenue Account,Misc Exp Non Vat,4723
http://statistics.data.gov.uk/id/local-authority/47UD,Redditch Borough Council,20/12/2013,198017,NOV 13,311.24,National Westminster Bank Plc,6015,Surestart Project,Project Work,4733
http://statistics.data.gov.uk/id/local-authority/47UD,Redditch Borough Council,06/12/2013,196340,0000104458,723.20,Tynetec Ltd,6016,Executive Director Lec,Operational Equip- Purchase,4150
http://statistics.data.gov.uk/id/local-authority/47UD,Redditch Borough Council,13/12/2013,197329,INV2013-11,380.00,Anne Randles,6041,Executive Director Lec,Casual Staff,3022
http://statistics.data.gov.uk/id/local-authority/47UD,Redditch Borough Council,13/12/2013,197329,INV2013-11,140.00,Anne Randles,6041,Executive Director Lec,Casual Staff,3022
http://statistics.data.gov.uk/id/local-authority/47UD,Redditch Borough Council,13/12/2013,197306,015,18.00,Jon Miller,6047,Executive Director Lec,Casual Staff,3022
http://statistics.data.gov.uk/id/local-authority/47UD,Redditch Borough Council,13/12/2013,197306,015,4.50,Jon Miller,6047,Executive Director Lec,Casual Staff,3022
http://statistics.data.gov.uk/id/local-authority/47UD,Redditch Borough Council,13/12/2013,197306,015,54.00,Jon Miller,6047,Executive Director Lec,Casual Staff,3022
http://statistics.data.gov.uk/id/local-authority/47UD,Redditch Borough Council,13/12/2013,197306,015,15.00,Jon Miller,6047,Executive Director Lec,Casual Staff,3022
http://statistics.data.gov.uk/id/local-authority/47UD,Redditch Borough Council,13/12/2013,197306,015,11.05,Jon Miller,6047,Executive Director Lec,Casual Staff,3022
http://statistics.data.gov.uk/id/local-authority/47UD,Redditch Borough Council,13/12/2013,197310,003A,100.00,Jon Miller,6047,Executive Director Lec,Operation Equip- Hire & Rental,4151
http://statistics.data.gov.uk/id/local-authority/47UD,Redditch Borough Council,13/12/2013,197424,017,90.00,Jon Miller,6047,Executive Director Lec,Casual Staff,3022
http://statistics.data.gov.uk/id/local-authority/47UD,Redditch Borough Council,13/12/2013,197424,017,60.00,Jon Miller,6047,Executive Director Lec,Casual Staff,3022
http://statistics.data.gov.uk/id/local-authority/47UD,Redditch Borough Council,13/12/2013,197424,017,33.15,Jon Miller,6047,Executive Director Lec,Casual Staff,3022
http://statistics.data.gov.uk/id/local-authority/47UD,Redditch Borough Council,13/12/2013,197425,R0016,54.00,Jon Miller,6047,Executive Director Lec,Casual Staff,3022
http://statistics.data.gov.uk/id/local-authority/47UD,Redditch Borough Council,13/12/2013,197425,R0016,27.00,Jon Miller,6047,Executive Director Lec,Casual Staff,3022
http://statistics.data.gov.uk/id/local-authority/47UD,Redditch Borough Council,13/12/2013,197425,R0016,45.00,Jon Miller,6047,Executive Director Lec,Casual Staff,3022
http://statistics.data.gov.uk/id/local-authority/47UD,Redditch Borough Council,13/12/2013,197425,R0016,72.00,Jon Miller,6047,Executive Director Lec,Casual Staff,3022
http://statistics.data.gov.uk/id/local-authority/47UD,Redditch Borough Council,13/12/2013,197425,R0016,60.00,Jon Miller,6047,Executive Director Lec,Casual Staff,3022
http://statistics.data.gov.uk/id/local-authority/47UD,Redditch Borough Council,13/12/2013,197425,R0016,54.00,Jon Miller,6047,Executive Director Lec,Casual Staff,3022
http://statistics.data.gov.uk/id/local-authority/47UD,Redditch Borough Council,06/12/2013,194345,113590,320.00,Mercia Waste Management,610,Housing Repairs Account,Trade Waste Disposal,5000
http://statistics.data.gov.uk/id/local-authority/47UD,Redditch Borough Council,06/12/2013,194346,113589,1491.20,Mercia Waste Management,610,Housing Repairs Account,Trade Waste Disposal,5000
http://statistics.data.gov.uk/id/local-authority/47UD,Redditch Borough Council,06/12/2013,195832,113616,2000.00,Mercia Waste Management,610,Housing Repairs Account,Trade Waste Disposal,5000
http://statistics.data.gov.uk/id/local-authority/47UD,Redditch Borough Council,06/12/2013,195464,680/0044499,196.13,Howdens Joinery Ltd,620,Housing Repairs Account,Materials,4170
http://statistics.data.gov.uk/id/local-authority/47UD,Redditch Borough Council,06/12/2013,195858,680/0044628,702.27,Howdens Joinery Ltd,620,Housing Repairs Account,Materials,4170
http://statistics.data.gov.uk/id/local-authority/47UD,Redditch Borough Council,13/12/2013,194366,680/0043720,63.86,Howdens Joinery Ltd,620,Housing Repairs Account,Materials,4170
http://statistics.data.gov.uk/id/local-authority/47UD,Redditch Borough Council,13/12/2013,196319,680/0044911,16.56,Howdens Joinery Ltd,620,Housing Repairs Account,Materials,4170
http://statistics.data.gov.uk/id/local-authority/47UD,Redditch Borough Council,13/12/2013,196321,680/0045005,68.40,Howdens Joinery Ltd,620,Housing Repairs Account,Materials,4170
http://statistics.data.gov.uk/id/local-authority/47UD,Redditch Borough Council,13/12/2013,196322,680/0045059,12.74,Howdens Joinery Ltd,620,Housing Repairs Account,Materials,4170
http://statistics.data.gov.uk/id/local-authority/47UD,Redditch Borough Council,13/12/2013,196432,680/0045203,-18.89,Howdens Joinery Ltd,620,Housing Repairs Account,Materials,4170
http://statistics.data.gov.uk/id/local-authority/47UD,Redditch Borough Council,13/12/2013,196664,680/0045374,55.00,Howdens Joinery Ltd,620,Housing Repairs Account,Materials,4170
http://statistics.data.gov.uk/id/local-authority/47UD,Redditch Borough Council,13/12/2013,196666,680/0045175,5.52,Howdens Joinery Ltd,620,Housing Repairs Account,Materials,4170
http://statistics.data.gov.uk/id/local-authority/47UD,Redditch Borough Council,13/12/2013,196669,680/0045167,222.00,Howdens Joinery Ltd,620,Crossgate Stocks,Received Not Invoiced,2096
http://statistics.data.gov.uk/id/local-authority/47UD,Redditch Borough Council,13/12/2013,196670,680/0045170,49.36,Howdens Joinery Ltd,620,Housing Repairs Account,Materials,4170
http://statistics.data.gov.uk/id/local-authority/47UD,Redditch Borough Council,13/12/2013,196672,680/0045123,767.22,Howdens Joinery Ltd,620,Housing Repairs Account,Materials,4170
http://statistics.data.gov.uk/id/local-authority/47UD,Redditch Borough Council,13/12/2013,196882,680/0045585,222.00,Howdens Joinery Ltd,620,Crossgate Stocks,Received Not Invoiced,2096
http://statistics.data.gov.uk/id/local-authority/47UD,Redditch Borough Council,13/12/2013,196883,680/0045573,41.98,Howdens Joinery Ltd,620,Housing Repairs Account,Materials,4170
http://statistics.data.gov.uk/id/local-authority/47UD,Redditch Borough Council,13/12/2013,196884,680/0045572,80.38,Howdens Joinery Ltd,620,Housing Repairs Account,Materials,4170
http://statistics.data.gov.uk/id/local-authority/47UD,Redditch Borough Council,13/12/2013,196885,680/0045571,55.00,Howdens Joinery Ltd,620,Housing Repairs Account,Materials,4170
http://statistics.data.gov.uk/id/local-authority/47UD,Redditch Borough Council,13/12/2013,196886,680/0045580,40.19,Howdens Joinery Ltd,620,Housing Repairs Account,Materials,4170
http://statistics.data.gov.uk/id/local-authority/47UD,Redditch Borough Council,13/12/2013,196909,680/0045628,80.38,Howdens Joinery Ltd,620,Housing Repairs Account,Materials,4170
http://statistics.data.gov.uk/id/local-authority/47UD,Redditch Borough Council,13/12/2013,196910,680/0045621,106.63,Howdens Joinery Ltd,620,Housing Repairs Account,Materials,4170
http://statistics.data.gov.uk/id/local-authority/47UD,Redditch Borough Council,20/12/2013,194770,680/0044033,40.19,Howdens Joinery Ltd,620,Housing Repairs Account,Materials,4170
http://statistics.data.gov.uk/id/local-authority/47UD,Redditch Borough Council,20/12/2013,196320,680/0044943,220.24,Howdens Joinery Ltd,620,Housing Repairs Account,Materials,4170
http://statistics.data.gov.uk/id/local-authority/47UD,Redditch Borough Council,20/12/2013,197148,680/0045649,939.07,Howdens Joinery Ltd,620,Housing Repairs Account,Materials,4170
http://statistics.data.gov.uk/id/local-authority/47UD,Redditch Borough Council,20/12/2013,197149,680/0045684,82.94,Howdens Joinery Ltd,620,Housing Repairs Account,Materials,4170
http://statistics.data.gov.uk/id/local-authority/47UD,Redditch Borough Council,20/12/2013,197823,091,1000.00,Sculpture Logic,6261,Executive Director Lec,Project Work,4733
http://statistics.data.gov.uk/id/local-authority/47UD,Redditch Borough Council,06/12/2013,195884,00873,4354.10,Show Services Group Ltd,6267,Executive Director Lec,Operation Equip- Hire & Rental,4151
http://statistics.data.gov.uk/id/local-authority/47UD,Redditch Borough Council,06/12/2013,195885,00872,3930.50,Show Services Group Ltd,6267,Executive Director Lec,Operation Equip- Hire & Rental,4151
http://statistics.data.gov.uk/id/local-authority/47UD,Redditch Borough Council,06/12/2013,196622,00886,1200.00,Show Services Group Ltd,6267,Exec. Director Prrh,Project Work,4733
http://statistics.data.gov.uk/id/local-authority/47UD,Redditch Borough Council,13/12/2013,196628,47880,286.90,Hilltop Supplies Ltd,628,Housing Repairs Account,Materials,4170
http://statistics.data.gov.uk/id/local-authority/47UD,Redditch Borough Council,13/12/2013,196697,48012,49.48,Hilltop Supplies Ltd,628,Executive Director Lec,Materials,4170
http://statistics.data.gov.uk/id/local-authority/47UD,Redditch Borough Council,13/12/2013,196700,48009,18.70,Hilltop Supplies Ltd,628,Housing Repairs Account,Materials,4170
http://statistics.data.gov.uk/id/local-authority/47UD,Redditch Borough Council,13/12/2013,196701,48010,952.50,Hilltop Supplies Ltd,628,Crossgate Stocks,Received Not Invoiced,2096
http://statistics.data.gov.uk/id/local-authority/47UD,Redditch Borough Council,13/12/2013,196703,48013,14.88,Hilltop Supplies Ltd,628,Housing Repairs Account,Materials,4170
http://statistics.data.gov.uk/id/local-authority/47UD,Redditch Borough Council,13/12/2013,196706,48014,48.00,Hilltop Supplies Ltd,628,Housing Repairs Account,Materials,4170
http://statistics.data.gov.uk/id/local-authority/47UD,Redditch Borough Council,13/12/2013,196711,48016,208.00,Hilltop Supplies Ltd,628,Executive Director Lec,Other Works,5161
http://statistics.data.gov.uk/id/local-authority/47UD,Redditch Borough Council,13/12/2013,196713,48017,678.00,Hilltop Supplies Ltd,628,Housing Repairs Account,Materials,4170
http://statistics.data.gov.uk/id/local-authority/47UD,Redditch Borough Council,13/12/2013,196714,48018,43.20,Hilltop Supplies Ltd,628,Housing Repairs Account,Materials,4170
http://statistics.data.gov.uk/id/local-authority/47UD,Redditch Borough Council,13/12/2013,196716,47945,2.50,Hilltop Supplies Ltd,628,Housing Repairs Account,Materials,4170
http://statistics.data.gov.uk/id/local-authority/47UD,Redditch Borough Council,13/12/2013,196718,48019,78.00,Hilltop Supplies Ltd,628,Housing Repairs Account,Materials,4170
http://statistics.data.gov.uk/id/local-authority/47UD,Redditch Borough Council,13/12/2013,196763,48011,242.40,Hilltop Supplies Ltd,628,Executive Director Lec,Operational Equip- Purchase,4150
http://statistics.data.gov.uk/id/local-authority/47UD,Redditch Borough Council,13/12/2013,196764,47973,197.00,Hilltop Supplies Ltd,628,Executive Director Lec,Recreational Equip -Reps/Maint,4102
http://statistics.data.gov.uk/id/local-authority/47UD,Redditch Borough Council,06/12/2013,196937,13/060,500.00,Access All Areas,6296,Executive Director Lec,Professional Fees,4352
http://statistics.data.gov.uk/id/local-authority/47UD,Redditch Borough Council,13/12/2013,194547,12007,195.00,Hall Mechanical Services Ltd,644,Housing Repairs Account,Contractors,5158
http://statistics.data.gov.uk/id/local-authority/47UD,Redditch Borough Council,13/12/2013,194750,12019,2120.00,Hall Mechanical Services Ltd,644,Rbc Balance Sheet,Contract Payments,8131
http://statistics.data.gov.uk/id/local-authority/47UD,Redditch Borough Council,13/12/2013,194751,12020,2120.00,Hall Mechanical Services Ltd,644,Rbc Balance Sheet,Contract Payments,8131
http://statistics.data.gov.uk/id/local-authority/47UD,Redditch Borough Council,13/12/2013,194752,12021,1660.00,Hall Mechanical Services Ltd,644,Rbc Balance Sheet,Contract Payments,8131
http://statistics.data.gov.uk/id/local-authority/47UD,Redditch Borough Council,13/12/2013,195481,12066,621.00,Hall Mechanical Services Ltd,644,Housing Repairs Account,Contractors,5158
http://statistics.data.gov.uk/id/local-authority/47UD,Redditch Borough Council,13/12/2013,196793,12102,85.00,Hall Mechanical Services Ltd,644,Rbc Balance Sheet,Contract Payments,8131
http://statistics.data.gov.uk/id/local-authority/47UD,Redditch Borough Council,20/12/2013,196792,12103,245.00,Hall Mechanical Services Ltd,644,Housing Repairs Account,Contractors,5158
http://statistics.data.gov.uk/id/local-authority/47UD,Redditch Borough Council,06/12/2013,195433,21712,5.10,Alliance Electrical Wholesalers Ltd,6451,Exec. Director Fin. & Resource,Materials,4170
http://statistics.data.gov.uk/id/local-authority/47UD,Redditch Borough Council,13/12/2013,196405,23493,9.79,Alliance Electrical Wholesalers Ltd,6451,Exec. Director Fin. & Resource,Materials,4170
http://statistics.data.gov.uk/id/local-authority/47UD,Redditch Borough Council,13/12/2013,196406,23536,1032.56,Alliance Electrical Wholesalers Ltd,6451,Exec. Director Fin. & Resource,Materials,4170
http://statistics.data.gov.uk/id/local-authority/47UD,Redditch Borough Council,13/12/2013,196641,23569,317.84,Alliance Electrical Wholesalers Ltd,6451,Exec. Director Fin. & Resource,Materials,4170
http://statistics.data.gov.uk/id/local-authority/47UD,Redditch Borough Council,13/12/2013,196695,23609,17.14,Alliance Electrical Wholesalers Ltd,6451,Housing Repairs Account,Materials,4170
http://statistics.data.gov.uk/id/local-authority/47UD,Redditch Borough Council,06/12/2013,195890,18/141912,131.52,Greenham Trading Limited,650,Crossgate Stocks,Received Not Invoiced,2096
http://statistics.data.gov.uk/id/local-authority/47UD,Redditch Borough Council,13/12/2013,196271,18/145103,36.40,Greenham Trading Limited,650,Executive Director Lec,Misc. Expenses,4730
http://statistics.data.gov.uk/id/local-authority/47UD,Redditch Borough Council,13/12/2013,196272,12/793261,36.40,Greenham Trading Limited,650,Executive Director Lec,Misc. Expenses,4730
http://statistics.data.gov.uk/id/local-authority/47UD,Redditch Borough Council,13/12/2013,196274,18/146648,64.87,Greenham Trading Limited,650,Executive Director Lec,Protective Clothing,4250
http://statistics.data.gov.uk/id/local-authority/47UD,Redditch Borough Council,13/12/2013,196275,01/095978,72.80,Greenham Trading Limited,650,Executive Director Lec,Misc. Expenses,4730
http://statistics.data.gov.uk/id/local-authority/47UD,Redditch Borough Council,13/12/2013,196678,18/145072,28.02,Greenham Trading Limited,650,Exec. Director Fin. & Resource,Materials,4170
http://statistics.data.gov.uk/id/local-authority/47UD,Redditch Borough Council,13/12/2013,196804,04/762960,43.96,Greenham Trading Limited,650,Housing Repairs Account,Materials,4170
http://statistics.data.gov.uk/id/local-authority/47UD,Redditch Borough Council,13/12/2013,196809,18/149834,113.94,Greenham Trading Limited,650,Executive Director Lec,Protective Clothing,4250
http://statistics.data.gov.uk/id/local-authority/47UD,Redditch Borough Council,20/12/2013,196805,04/762556,72.60,Greenham Trading Limited,650,Crossgate Stocks,Received Not Invoiced,2096
http://statistics.data.gov.uk/id/local-authority/47UD,Redditch Borough Council,20/12/2013,196810,18/149562,337.50,Greenham Trading Limited,650,Crossgate Stocks,Received Not Invoiced,2096
http://statistics.data.gov.uk/id/local-authority/47UD,Redditch Borough Council,20/12/2013,196815,18/146335,338.00,Greenham Trading Limited,650,Crossgate Stocks,Received Not Invoiced,2096
http://statistics.data.gov.uk/id/local-authority/47UD,Redditch Borough Council,20/12/2013,196816,18/149869,353.80,Greenham Trading Limited,650,Crossgate Stocks,Received Not Invoiced,2096
http://statistics.data.gov.uk/id/local-authority/47UD,Redditch Borough Council,20/12/2013,197818,233230,1062.00,The Graphic Design House,6500,Executive Director Lec,External Printing,4302
http://statistics.data.gov.uk/id/local-authority/47UD,Redditch Borough Council,13/12/2013,197322,581,260.00,3 Lions Removals,6519,Housing Revenue Account,Removal Costs,4550
http://statistics.data.gov.uk/id/local-authority/47UD,Redditch Borough Council,13/12/2013,197323,582,620.00,3 Lions Removals,6519,Housing Revenue Account,Removal Costs,4550
http://statistics.data.gov.uk/id/local-authority/47UD,Redditch Borough Council,06/12/2013,194766,0895/0143542,44.61,Graham,652,Housing Repairs Account,Materials,4170
http://statistics.data.gov.uk/id/local-authority/47UD,Redditch Borough Council,06/12/2013,195073,0895/0143694,105.01,Graham,652,Exec. Director Fin. & Resource,Materials,4170
http://statistics.data.gov.uk/id/local-authority/47UD,Redditch Borough Council,06/12/2013,195078,0895/0143579,44.90,Graham,652,Housing Repairs Account,Materials,4170
http://statistics.data.gov.uk/id/local-authority/47UD,Redditch Borough Council,13/12/2013,196335,0895/0144193,69.20,Graham,652,Crossgate Stocks,Received Not Invoiced,2096
http://statistics.data.gov.uk/id/local-authority/47UD,Redditch Borough Council,13/12/2013,196341,0895/0144132,8.99,Graham,652,Housing Repairs Account,Materials,4170
http://statistics.data.gov.uk/id/local-authority/47UD,Redditch Borough Council,13/12/2013,196343,0895/0144146,95.06,Graham,652,Housing Repairs Account,Materials,4170
http://statistics.data.gov.uk/id/local-authority/47UD,Redditch Borough Council,13/12/2013,196345,0895/0144117,33.33,Graham,652,Exec. Director Fin. & Resource,Materials,4170
http://statistics.data.gov.uk/id/local-authority/47UD,Redditch Borough Council,13/12/2013,196347,0895/0144119,5.99,Graham,652,Housing Repairs Account,Materials,4170
http://statistics.data.gov.uk/id/local-authority/47UD,Redditch Borough Council,13/12/2013,196348,0895/0144110,23.82,Graham,652,Crossgate Stocks,Received Not Invoiced,2096
http://statistics.data.gov.uk/id/local-authority/47UD,Redditch Borough Council,13/12/2013,196351,0895/0144107,17.90,Graham,652,Crossgate Stocks,Received Not Invoiced,2096
http://statistics.data.gov.uk/id/local-authority/47UD,Redditch Borough Council,13/12/2013,196353,0895/0144108,955.22,Graham,652,Crossgate Stocks,Received Not Invoiced,2096
http://statistics.data.gov.uk/id/local-authority/47UD,Redditch Borough Council,13/12/2013,196354,0895/0144092,18.62,Graham,652,Housing Repairs Account,Materials,4170
http://statistics.data.gov.uk/id/local-authority/47UD,Redditch Borough Council,13/12/2013,196355,0895/0144076,261.06,Graham,652,Exec. Director Fin. & Resource,Materials,4170
http://statistics.data.gov.uk/id/local-authority/47UD,Redditch Borough Council,13/12/2013,196357,0895/0144089,41.48,Graham,652,Housing Repairs Account,Materials,4170
http://statistics.data.gov.uk/id/local-authority/47UD,Redditch Borough Council,13/12/2013,196861,0895/0144366,33.37,Graham,652,Housing Repairs Account,Materials,4170
http://statistics.data.gov.uk/id/local-authority/47UD,Redditch Borough Council,13/12/2013,196862,0895/0144291,39.44,Graham,652,Housing Repairs Account,Materials,4170
http://statistics.data.gov.uk/id/local-authority/47UD,Redditch Borough Council,20/12/2013,196350,0895/0144101,32.72,Graham,652,Housing Repairs Account,Materials,4170
http://statistics.data.gov.uk/id/local-authority/47UD,Redditch Borough Council,20/12/2013,196859,0895/0144314,4.00,Graham,652,Crossgate Stocks,Received Not Invoiced,2096
http://statistics.data.gov.uk/id/local-authority/47UD,Redditch Borough Council,20/12/2013,196860,0895/0144356,185.00,Graham,652,Crossgate Stocks,Received Not Invoiced,2096
http://statistics.data.gov.uk/id/local-authority/47UD,Redditch Borough Council,06/12/2013,196932,FF08,240.00,Short Stepperz Academy & Studios,6560,Executive Director Lec,Casual Staff,3022
http://statistics.data.gov.uk/id/local-authority/47UD,Redditch Borough Council,06/12/2013,196932,FF08,80.00,Short Stepperz Academy & Studios,6560,Executive Director Lec,Casual Staff,3022
http://statistics.data.gov.uk/id/local-authority/47UD,Redditch Borough Council,06/12/2013,196932,FF08,60.00,Short Stepperz Academy & Studios,6560,Executive Director Lec,Casual Staff,3022
http://statistics.data.gov.uk/id/local-authority/47UD,Redditch Borough Council,06/12/2013,196932,FF08,80.00,Short Stepperz Academy & Studios,6560,Executive Director Lec,Casual Staff,3022
http://statistics.data.gov.uk/id/local-authority/47UD,Redditch Borough Council,06/12/2013,196932,FF08,160.00,Short Stepperz Academy & Studios,6560,Executive Director Lec,Casual Staff,3022
http://statistics.data.gov.uk/id/local-authority/47UD,Redditch Borough Council,20/12/2013,198024,FF09,60.00,Short Stepperz Academy & Studios,6560,Executive Director Lec,Casual Staff,3022
http://statistics.data.gov.uk/id/local-authority/47UD,Redditch Borough Council,20/12/2013,198024,FF09,20.00,Short Stepperz Academy & Studios,6560,Executive Director Lec,Casual Staff,3022
http://statistics.data.gov.uk/id/local-authority/47UD,Redditch Borough Council,20/12/2013,198024,FF09,60.00,Short Stepperz Academy & Studios,6560,Executive Director Lec,Casual Staff,3022
http://statistics.data.gov.uk/id/local-authority/47UD,Redditch Borough Council,20/12/2013,198024,FF09,20.00,Short Stepperz Academy & Studios,6560,Executive Director Lec,Casual Staff,3022
http://statistics.data.gov.uk/id/local-authority/47UD,Redditch Borough Council,20/12/2013,198024,FF09,45.00,Short Stepperz Academy & Studios,6560,Executive Director Lec,Casual Staff,3022
http://statistics.data.gov.uk/id/local-authority/47UD,Redditch Borough Council,20/12/2013,198024,FF09,120.00,Short Stepperz Academy & Studios,6560,Executive Director Lec,Casual Staff,3022
http://statistics.data.gov.uk/id/local-authority/47UD,Redditch Borough Council,13/12/2013,195815,SVI24670,863.75,Faun Zoeller (Uk) Ltd,658,Executive Director Lec,Materials (Veh),3700
http://statistics.data.gov.uk/id/local-authority/47UD,Redditch Borough Council,06/12/2013,196352,A11950,501.30,Automail Envelopes,6580,Chief Executive,Office Consumables,4304
http://statistics.data.gov.uk/id/local-authority/47UD,Redditch Borough Council,13/12/2013,197302,47433,477.95,First Service Frozen Foods Ltd,66,Executive Director Lec,Catering Provisions(Vat Exempt,4200
http://statistics.data.gov.uk/id/local-authority/47UD,Redditch Borough Council,13/12/2013,197303,47417,199.00,First Service Frozen Foods Ltd,66,Executive Director Lec,Operational Equip- Purchase,4150
http://statistics.data.gov.uk/id/local-authority/47UD,Redditch Borough Council,20/12/2013,198019,10994,1280.51,Ymca,661,Surestart Project,Hire Of Premises,3351
http://statistics.data.gov.uk/id/local-authority/47UD,Redditch Borough Council,20/12/2013,198019,10994,19614.30,Ymca,661,Surestart Project,Ymca Support,5011
http://statistics.data.gov.uk/id/local-authority/47UD,Redditch Borough Council,06/12/2013,196803,363128,615.00,Catch The Spirit,6634,Executive Director Lec,General Repairs,3100
http://statistics.data.gov.uk/id/local-authority/47UD,Redditch Borough Council,06/12/2013,195840,INVS054286,1543.00,Euro Dismantling Services Ltd,6727,Rbc Balance Sheet,Contract Payments,8131
http://statistics.data.gov.uk/id/local-authority/47UD,Redditch Borough Council,06/12/2013,193918,OHRSI-00355172,697.50,Occupational Health Recruitment,6733,Chief Executive,Agency Staff,3020
http://statistics.data.gov.uk/id/local-authority/47UD,Redditch Borough Council,06/12/2013,194542,OHRSI-00357258,697.50,Occupational Health Recruitment,6733,Chief Executive,Agency Staff,3020
http://statistics.data.gov.uk/id/local-authority/47UD,Redditch Borough Council,06/12/2013,196375,OHRSI-00361479,697.50,Occupational Health Recruitment,6733,Chief Executive,Agency Staff,3020
http://statistics.data.gov.uk/id/local-authority/47UD,Redditch Borough Council,20/12/2013,197259,OHRSI-00363599,697.50,Occupational Health Recruitment,6733,Chief Executive,Agency Staff,3020
http://statistics.data.gov.uk/id/local-authority/47UD,Redditch Borough Council,20/12/2013,196613,PKP0074138,10550.75,Wychavon District Council,674,Executive Director Lec,Other Local Authorities,5009
http://statistics.data.gov.uk/id/local-authority/47UD,Redditch Borough Council,13/12/2013,196604,GB/22NOV/F010,12362.88,Intelligent Disabled Solutions Limited,6763,Rbc Balance Sheet,Contract Payments,8131
http://statistics.data.gov.uk/id/local-authority/47UD,Redditch Borough Council,20/12/2013,197822,OCT-DEC 13,830.70,Jo Freeman,6793,Executive Director Lec,Casual Staff,3022
http://statistics.data.gov.uk/id/local-authority/47UD,Redditch Borough Council,20/12/2013,194604,2107,400.00,South Staffordshire Windows Ltd,6812,Rbc Balance Sheet,Contract Payments,8131
http://statistics.data.gov.uk/id/local-authority/47UD,Redditch Borough Council,20/12/2013,194605,2106,300.00,South Staffordshire Windows Ltd,6812,Rbc Balance Sheet,Contract Payments,8131
http://statistics.data.gov.uk/id/local-authority/47UD,Redditch Borough Council,20/12/2013,195764,2117,225.00,South Staffordshire Windows Ltd,6812,Housing Repairs Account,Contractors,5158
http://statistics.data.gov.uk/id/local-authority/47UD,Redditch Borough Council,20/12/2013,195765,2116,135.00,South Staffordshire Windows Ltd,6812,Housing Repairs Account,Contractors,5158
http://statistics.data.gov.uk/id/local-authority/47UD,Redditch Borough Council,20/12/2013,195766,2115,75.00,South Staffordshire Windows Ltd,6812,Housing Repairs Account,Contractors,5158
http://statistics.data.gov.uk/id/local-authority/47UD,Redditch Borough Council,20/12/2013,195767,2114,75.00,South Staffordshire Windows Ltd,6812,Housing Repairs Account,Contractors,5158
http://statistics.data.gov.uk/id/local-authority/47UD,Redditch Borough Council,20/12/2013,195770,2113,400.00,South Staffordshire Windows Ltd,6812,Rbc Balance Sheet,Contract Payments,8131
http://statistics.data.gov.uk/id/local-authority/47UD,Redditch Borough Council,20/12/2013,195771,2112,400.00,South Staffordshire Windows Ltd,6812,Rbc Balance Sheet,Contract Payments,8131
http://statistics.data.gov.uk/id/local-authority/47UD,Redditch Borough Council,20/12/2013,196230,2125,525.00,South Staffordshire Windows Ltd,6812,Rbc Balance Sheet,Contract Payments,8131
http://statistics.data.gov.uk/id/local-authority/47UD,Redditch Borough Council,20/12/2013,196257,2122,800.00,South Staffordshire Windows Ltd,6812,Rbc Balance Sheet,Contract Payments,8131
http://statistics.data.gov.uk/id/local-authority/47UD,Redditch Borough Council,20/12/2013,196258,2121,600.00,South Staffordshire Windows Ltd,6812,Rbc Balance Sheet,Contract Payments,8131
http://statistics.data.gov.uk/id/local-authority/47UD,Redditch Borough Council,20/12/2013,196590,2130,450.00,South Staffordshire Windows Ltd,6812,Rbc Balance Sheet,Contract Payments,8131
http://statistics.data.gov.uk/id/local-authority/47UD,Redditch Borough Council,20/12/2013,196591,2129,400.00,South Staffordshire Windows Ltd,6812,Rbc Balance Sheet,Contract Payments,8131
http://statistics.data.gov.uk/id/local-authority/47UD,Redditch Borough Council,20/12/2013,196600,2128,430.00,South Staffordshire Windows Ltd,6812,Rbc Balance Sheet,Contract Payments,8131
http://statistics.data.gov.uk/id/local-authority/47UD,Redditch Borough Council,20/12/2013,196601,2131,400.00,South Staffordshire Windows Ltd,6812,Rbc Balance Sheet,Contract Payments,8131
http://statistics.data.gov.uk/id/local-authority/47UD,Redditch Borough Council,20/12/2013,196656,2134,400.00,South Staffordshire Windows Ltd,6812,Rbc Balance Sheet,Contract Payments,8131
http://statistics.data.gov.uk/id/local-authority/47UD,Redditch Borough Council,20/12/2013,196674,2135,900.00,South Staffordshire Windows Ltd,6812,Rbc Balance Sheet,Contract Payments,8131
http://statistics.data.gov.uk/id/local-authority/47UD,Redditch Borough Council,20/12/2013,197966,CREDIT 2125,-525.00,South Staffordshire Windows Ltd,6812,Rbc Balance Sheet,Contract Payments,8131
http://statistics.data.gov.uk/id/local-authority/47UD,Redditch Borough Council,20/12/2013,197968,CREDIT OUT 2121,-600.00,South Staffordshire Windows Ltd,6812,Rbc Balance Sheet,Contract Payments,8131
http://statistics.data.gov.uk/id/local-authority/47UD,Redditch Borough Council,20/12/2013,197969,CREDIT OUT 2122,-800.00,South Staffordshire Windows Ltd,6812,Rbc Balance Sheet,Contract Payments,8131
http://statistics.data.gov.uk/id/local-authority/47UD,Redditch Borough Council,20/12/2013,197970,CREDIT OUT 2112,-400.00,South Staffordshire Windows Ltd,6812,Rbc Balance Sheet,Contract Payments,8131
http://statistics.data.gov.uk/id/local-authority/47UD,Redditch Borough Council,20/12/2013,197971,CREDIT OUT 2113,-400.00,South Staffordshire Windows Ltd,6812,Rbc Balance Sheet,Contract Payments,8131
http://statistics.data.gov.uk/id/local-authority/47UD,Redditch Borough Council,20/12/2013,197973,CREDIT OUT 2114,-75.00,South Staffordshire Windows Ltd,6812,Housing Repairs Account,Contractors,5158
http://statistics.data.gov.uk/id/local-authority/47UD,Redditch Borough Council,20/12/2013,197974,CREDIT OUT 2115,-75.00,South Staffordshire Windows Ltd,6812,Housing Repairs Account,Contractors,5158
http://statistics.data.gov.uk/id/local-authority/47UD,Redditch Borough Council,20/12/2013,197975,CREDIT OUT 2116,-135.00,South Staffordshire Windows Ltd,6812,Housing Repairs Account,Contractors,5158
http://statistics.data.gov.uk/id/local-authority/47UD,Redditch Borough Council,20/12/2013,197976,CREDIT OUT 2117,-225.00,South Staffordshire Windows Ltd,6812,Housing Repairs Account,Contractors,5158
http://statistics.data.gov.uk/id/local-authority/47UD,Redditch Borough Council,20/12/2013,197977,CREDIT OUT 2106,-300.00,South Staffordshire Windows Ltd,6812,Rbc Balance Sheet,Contract Payments,8131
http://statistics.data.gov.uk/id/local-authority/47UD,Redditch Borough Council,20/12/2013,197978,CREDIT OUT 2107,-400.00,South Staffordshire Windows Ltd,6812,Rbc Balance Sheet,Contract Payments,8131
http://statistics.data.gov.uk/id/local-authority/47UD,Redditch Borough Council,20/12/2013,197980,REDO 2106,300.00,South Staffordshire Windows Ltd,6812,Rbc Balance Sheet,Contract Payments,8131
http://statistics.data.gov.uk/id/local-authority/47UD,Redditch Borough Council,20/12/2013,197982,REDO 2107,400.00,South Staffordshire Windows Ltd,6812,Rbc Balance Sheet,Contract Payments,8131
http://statistics.data.gov.uk/id/local-authority/47UD,Redditch Borough Council,20/12/2013,197983,REDO 2112,400.00,South Staffordshire Windows Ltd,6812,Rbc Balance Sheet,Contract Payments,8131
http://statistics.data.gov.uk/id/local-authority/47UD,Redditch Borough Council,20/12/2013,197985,REDO 2113,400.00,South Staffordshire Windows Ltd,6812,Rbc Balance Sheet,Contract Payments,8131
http://statistics.data.gov.uk/id/local-authority/47UD,Redditch Borough Council,20/12/2013,197986,REDO 2114,75.00,South Staffordshire Windows Ltd,6812,Housing Repairs Account,Contractors,5158
http://statistics.data.gov.uk/id/local-authority/47UD,Redditch Borough Council,20/12/2013,197987,REDO 2115,75.00,South Staffordshire Windows Ltd,6812,Housing Repairs Account,Contractors,5158
http://statistics.data.gov.uk/id/local-authority/47UD,Redditch Borough Council,20/12/2013,197989,REDO 2116,135.00,South Staffordshire Windows Ltd,6812,Housing Repairs Account,Contractors,5158
http://statistics.data.gov.uk/id/local-authority/47UD,Redditch Borough Council,20/12/2013,197994,REDO 2117,225.00,South Staffordshire Windows Ltd,6812,Housing Repairs Account,Contractors,5158
http://statistics.data.gov.uk/id/local-authority/47UD,Redditch Borough Council,20/12/2013,197995,REDO 2121,600.00,South Staffordshire Windows Ltd,6812,Rbc Balance Sheet,Contract Payments,8131
http://statistics.data.gov.uk/id/local-authority/47UD,Redditch Borough Council,20/12/2013,197996,REDO 2122,800.00,South Staffordshire Windows Ltd,6812,Rbc Balance Sheet,Contract Payments,8131
http://statistics.data.gov.uk/id/local-authority/47UD,Redditch Borough Council,20/12/2013,197997,REDO 2125,525.00,South Staffordshire Windows Ltd,6812,Rbc Balance Sheet,Contract Payments,8131
http://statistics.data.gov.uk/id/local-authority/47UD,Redditch Borough Council,06/12/2013,196922,3,80.00,Hannah Kemp,6843,Executive Director Lec,Casual Staff,3022
http://statistics.data.gov.uk/id/local-authority/47UD,Redditch Borough Council,06/12/2013,196922,3,80.00,Hannah Kemp,6843,Executive Director Lec,Casual Staff,3022
http://statistics.data.gov.uk/id/local-authority/47UD,Redditch Borough Council,06/12/2013,196922,3,80.00,Hannah Kemp,6843,Executive Director Lec,Casual Staff,3022
http://statistics.data.gov.uk/id/local-authority/47UD,Redditch Borough Council,06/12/2013,196922,3,160.00,Hannah Kemp,6843,Executive Director Lec,Casual Staff,3022
http://statistics.data.gov.uk/id/local-authority/47UD,Redditch Borough Council,06/12/2013,196922,3,120.00,Hannah Kemp,6843,Executive Director Lec,Casual Staff,3022
http://statistics.data.gov.uk/id/local-authority/47UD,Redditch Borough Council,06/12/2013,196922,3,90.00,Hannah Kemp,6843,Executive Director Lec,Casual Staff,3022
http://statistics.data.gov.uk/id/local-authority/47UD,Redditch Borough Council,20/12/2013,198023,3,60.00,Hannah Kemp,6843,Executive Director Lec,Casual Staff,3022
http://statistics.data.gov.uk/id/local-authority/47UD,Redditch Borough Council,20/12/2013,198023,3,90.00,Hannah Kemp,6843,Executive Director Lec,Casual Staff,3022
http://statistics.data.gov.uk/id/local-authority/47UD,Redditch Borough Council,20/12/2013,198023,3,20.00,Hannah Kemp,6843,Executive Director Lec,Casual Staff,3022
http://statistics.data.gov.uk/id/local-authority/47UD,Redditch Borough Council,20/12/2013,198023,3,40.00,Hannah Kemp,6843,Executive Director Lec,Casual Staff,3022
http://statistics.data.gov.uk/id/local-authority/47UD,Redditch Borough Council,06/12/2013,196330,13/12,1700.00,Steve Haskey Design Ltd,6853,Rbc Balance Sheet,Contract Payments,8131
http://statistics.data.gov.uk/id/local-authority/47UD,Redditch Borough Council,13/12/2013,197364,OCT13,690.00,The Greens Restaurant And Bar,6899,Executive Director Lec,Contract Cleaning,3600
http://statistics.data.gov.uk/id/local-authority/47UD,Redditch Borough Council,20/12/2013,196390,092652,749.00,Barcham Trees Plc,6907,Executive Director Lec,Materials,4170
http://statistics.data.gov.uk/id/local-authority/47UD,Redditch Borough Council,20/12/2013,196391,092654,367.20,Barcham Trees Plc,6907,Executive Director Lec,Materials,4170
http://statistics.data.gov.uk/id/local-authority/47UD,Redditch Borough Council,13/12/2013,196623,JMCI/13/114/241,6280.00,J M C Green,6911,Rbc Balance Sheet,Contract Payments,8131
http://statistics.data.gov.uk/id/local-authority/47UD,Redditch Borough Council,13/12/2013,196645,9082,1195.00,Massage For Babies,6925,Surestart Project,Training,3043
http://statistics.data.gov.uk/id/local-authority/47UD,Redditch Borough Council,06/12/2013,196933,141113,85.25,Mrs Andrea Paice,6930,Executive Director Lec,Casual Staff,3022
http://statistics.data.gov.uk/id/local-authority/47UD,Redditch Borough Council,06/12/2013,196934,011113,221.65,Mrs Andrea Paice,6930,Executive Director Lec,Casual Staff,3022
http://statistics.data.gov.uk/id/local-authority/47UD,Redditch Borough Council,06/12/2013,196934,011113,153.45,Mrs Andrea Paice,6930,Executive Director Lec,Casual Staff,3022
http://statistics.data.gov.uk/id/local-authority/47UD,Redditch Borough Council,06/12/2013,196934,011113,153.27,Mrs Andrea Paice,6930,Executive Director Lec,Casual Staff,3022
http://statistics.data.gov.uk/id/local-authority/47UD,Redditch Borough Council,06/12/2013,196934,011113,306.90,Mrs Andrea Paice,6930,Executive Director Lec,Casual Staff,3022
http://statistics.data.gov.uk/id/local-authority/47UD,Redditch Borough Council,20/12/2013,197842,NKL077,2700.00,Nkl Golf Ltd,6952,Executive Director Lec,Professional Fees,4352
http://statistics.data.gov.uk/id/local-authority/47UD,Redditch Borough Council,04/12/2013,196946,213 BEOLEY RD,600.00,Mr I D Mcgillicuddy,6954,Exec. Director Prrh,Rent Deposit Scheme,4701
http://statistics.data.gov.uk/id/local-authority/47UD,Redditch Borough Council,06/12/2013,196983,RENT DEPOSIT,675.00,Kevin Ricketts,6956,Exec. Director Fin. & Resource,Misc. Expenses,4730
http://statistics.data.gov.uk/id/local-authority/47UD,Redditch Borough Council,06/12/2013,196983,RENT DEPOSIT,675.00,Kevin Ricketts,6956,Exec. Director Prrh,Rent Deposit Scheme,4701
http://statistics.data.gov.uk/id/local-authority/47UD,Redditch Borough Council,06/12/2013,196984,RENT DEPOSIT,650.00,Miss K A Bradburn,6957,Exec. Director Fin. & Resource,Misc. Expenses,4730
http://statistics.data.gov.uk/id/local-authority/47UD,Redditch Borough Council,13/12/2013,197393,PHU/292752.0001,518.48,Walker Smith Way Limited,6960,Internal Ins A/C,Third Party Claims,2941
http://statistics.data.gov.uk/id/local-authority/47UD,Redditch Borough Council,13/12/2013,197435,3RD QTR 2013/14,500.00,Alzheimers Society Redditch Friends Together,6961,Executive Director Lec,Grants To Voluntary Bodies,4661
http://statistics.data.gov.uk/id/local-authority/47UD,Redditch Borough Council,13/12/2013,197445,17 EVESHAM ROAD,500.00,Mr M Khan,6963,Rbc Balance Sheet,Mortgage Rescue Prog,2014
http://statistics.data.gov.uk/id/local-authority/47UD,Redditch Borough Council,20/12/2013,198028,37/14,1800.00,Noel Neely Building Maintenance,6967,Executive Director Lec,Contractors,5158
http://statistics.data.gov.uk/id/local-authority/47UD,Redditch Borough Council,18/12/2013,197802,25 HAIG LANE,1000.00,Bridges Lettings,6968,Exec. Director Fin. & Resource,Misc Exp Non Vat,4723
http://statistics.data.gov.uk/id/local-authority/47UD,Redditch Borough Council,06/12/2013,196210,42/013,865.00,D & R Jones Landscapes,698,Housing Repairs Account,Repairs In House Team,3107
http://statistics.data.gov.uk/id/local-authority/47UD,Redditch Borough Council,06/12/2013,196211,44/013,1500.00,D & R Jones Landscapes,698,Executive Director Lec,Special Works,3209
http://statistics.data.gov.uk/id/local-authority/47UD,Redditch Borough Council,06/12/2013,196212,43/013,940.00,D & R Jones Landscapes,698,Executive Director Lec,Operational Equip- Purchase,4150
http://statistics.data.gov.uk/id/local-authority/47UD,Redditch Borough Council,13/12/2013,193923,36/013,1400.00,D & R Jones Landscapes,698,Housing Repairs Account,Contractors,5158
http://statistics.data.gov.uk/id/local-authority/47UD,Redditch Borough Council,13/12/2013,194377,35/013,1620.00,D & R Jones Landscapes,698,Executive Director Lec,Operation Equip -Rep & Maint,4152
http://statistics.data.gov.uk/id/local-authority/47UD,Redditch Borough Council,13/12/2013,194377,35/013,1200.00,D & R Jones Landscapes,698,Executive Director Lec,Routine Grounds Maintenance,3200
http://statistics.data.gov.uk/id/local-authority/47UD,Redditch Borough Council,13/12/2013,195834,8200044926,504.10,Veolia Es Cleanaway (Uk) Ltd,727,Exec. Director Prrh,Refuse Collection,3602
http://statistics.data.gov.uk/id/local-authority/47UD,Redditch Borough Council,13/12/2013,195864,8200048052,39.95,Veolia Es Cleanaway (Uk) Ltd,727,Exec. Director Prrh,Refuse Collection,3602
http://statistics.data.gov.uk/id/local-authority/47UD,Redditch Borough Council,20/12/2013,197963,8200052790,298.00,Veolia Es Cleanaway (Uk) Ltd,727,Exec. Director Prrh,Refuse Collection,3602
http://statistics.data.gov.uk/id/local-authority/47UD,Redditch Borough Council,06/12/2013,196385,SIN331636,1791.20,Handicare,779,Rbc Balance Sheet,Contract Payments,8131
http://statistics.data.gov.uk/id/local-authority/47UD,Redditch Borough Council,06/12/2013,196973,SI-0010,136.00,Handicare,779,Housing Repairs Account,Contractors,5158
http://statistics.data.gov.uk/id/local-authority/47UD,Redditch Borough Council,13/12/2013,196655,SIN331923,1609.20,Handicare,779,Rbc Balance Sheet,Contract Payments,8131
http://statistics.data.gov.uk/id/local-authority/47UD,Redditch Borough Council,13/12/2013,196786,SI-00020,544.00,Handicare,779,Housing Repairs Account,Contractors,5158
http://statistics.data.gov.uk/id/local-authority/47UD,Redditch Borough Council,13/12/2013,197403,SI-0012,408.00,Handicare,779,Housing Repairs Account,Contractors,5158
http://statistics.data.gov.uk/id/local-authority/47UD,Redditch Borough Council,06/12/2013,196305,811,10274.83,Abbey & Lyndon Building Ltd,798,Rbc Balance Sheet,Contract Payments,8131
http://statistics.data.gov.uk/id/local-authority/47UD,Redditch Borough Council,06/12/2013,196305,811,2987.81,Abbey & Lyndon Building Ltd,798,Rbc Balance Sheet,Dlo,8130
http://statistics.data.gov.uk/id/local-authority/47UD,Redditch Borough Council,13/12/2013,194329,774,3252.85,Abbey & Lyndon Building Ltd,798,Housing Repairs Account,Contractors,5158
http://statistics.data.gov.uk/id/local-authority/47UD,Redditch Borough Council,13/12/2013,194329,774,578.63,Abbey & Lyndon Building Ltd,798,Rbc Balance Sheet,Dlo,8130
